Workbook

Sheet Ramme
A1: =IF(Valg!A1,"G","VG") -> G | B1: ='Lønn og sosiale'!AB8+Driftsutgifter!AB8+Erstatningskjøp_Overføringer!AB8+Driftsinntekter!AB8 -> 7 | C1: ='Lønn og sosiale'!I8+Driftsutgifter!I8+Erstatningskjøp_Overføringer!I8+Driftsinntekter!I8 -> 0 | D1: ='Lønn og sosiale'!AC8 -> 33243 | E1: =Valg!C1 -> FALSE
C2: Budsjett 2017 for kostnadssted: | E2: Versjon 2017.1.0
C3: 12213 | D3: Marienlyst skole
C4: Funksjon
C5: 202
C6: Prosjekt
D8: Rammebevilgning (hele 1000) | E8: 68764
C9: 000-099 LØNN OG SOSIALE UTGIFTER | E9: ='Lønn og sosiale'!H131 -> 66739
C10: 100-299 KJØP AV VARER OG TJ. SOM INNGÅR I KOMM TJ.PROD. | E10: =Driftsutgifter!H205 -> 6272
C11: 300-399 KJØP AV TJEN. SOM ERSTATTER KOMM. EGENPROD. | E11: =Erstatningskjøp_Overføringer!H33 -> 0
C12: 400-499 OVERFØRINGSUTGIFTER | E12: =Erstatningskjøp_Overføringer!H60 -> 0
C13: SUM DRIFTSUTGIFTER | E13: =SUM(E9:E12) -> 73011
C14: 600-699 SALGSINNTEKTER | E14: =Driftsinntekter!H51 -> 1697
C15: 700-799 REFUSJONER | E15: =Driftsinntekter!H96 -> 2132
C16: 800-899 OVERFØRINGSINNTEKTER | E16: =Driftsinntekter!H114 -> 120
C17: SUM DRIFTSINNTEKTER | E17: =SUM(E14:E16) -> 3949
C18: NETTO DRIFTSUTGIFTER | E18: =E13-E17 -> 69062
C19: REST | D19: =IF(C1>0,"OBS! Budsjettet inneholder feil i periodiseringen!","") ->  | E19: =E8-E18 -> -298

Sheet Lønn og sosiale
M2: JAN | N2: FEB | O2: MAR | P2: APR | Q2: MAI | R2: JUN | S2: JUL | T2: AUG | U2: SEP | V2: OKT | W2: NOV | X2: DES
B3: =CONCATENATE(Ramme!C3," - ",Ramme!D3,IF(Ramme!C7>0,CONCATENATE(" (Prosjekt: ",Ramme!C7," ",Ramme!D7,")"),"")) -> 12213 - Marienlyst skole
B4: LØNN OG SOSIALE UTGIFTER | H4: TOTAL | M4: Budsjett 2017
AA5: Per_std | AB5: Endret? | AC5: Sum endret
B8: 010-019 FAST LØNN | D8: F | E8: A | F8: S/O | H8: ( 1000 ) | I8: =COUNTIF(I9:I107,"UGYLDIG ->") -> 0 | J8: Periodisering | M8: =IF(ISERROR(SUM(M9:M13)/(SUM($H9:$H13)*1000)),0,SUM(M9:M13)/(SUM($H9:$H13)*1000)) -> 0.09494756215 | N8: =IF(ISERROR(SUM(N9:N13)/(SUM($H9:$H13)*1000)),0,SUM(N9:N13)/(SUM($H9:$H13)*1000)) -> 0.09539747146 | O8: 0.09514053665 | P8: 0.0951677958 | Q8: 0.09205699883 | R8: -0.01360162168 | S8: 0.08318451936 | T8: 0.09118571962 | U8: 0.09186581137 | V8: 0.09155638536 | W8: 0.09149567908 | X8: 0.09160324869 | AB8: =SUM(AB9:AB129) -> 1 | AC8: =SUM(AC9:AC129) -> 33243
A9: x | B9: 10110 | C9: LØNN PED. PERS.: ORDINÆR UNDERVISNING | D9: F | E9: A | F9: S | H9: 33243 | I9: =IF(AB9=1,IF(INDEX(Periodiserings_tabell,MATCH($J9,Periodiserings_koder,0),15)<>1,"UGYLDIG ->",""),"") ->  | J9: 27 | K9: =INDEX(Periodiserings_tabell,MATCH($J9,Periodiserings_koder,0),MATCH("Beskrivelse",Periodiserings_heading,0)) -> annet | M9: =ROUND(($H9*1000)*INDEX(Periodiserings_tabell,MATCH($J9,Periodiserings_koder,0),MATCH(M$2,Periodiserings_heading,0)),0) -> 3174707 | N9: 3174707 | O9: 3174707 | P9: 3174707 | Q9: 3058356 | R9: -452105 | S9: 2729250 | T9: 3041735 | U9: 3041735 | V9: 3041735 | W9: 3041735 | X9: 3041735 | Y9: =IF(H9<>0,"x","") -> x | AA9: 1 | AB9: =IF(J9<>AA9,1,0) -> 1 | AC9: =IF(AB9>0,H9,0) -> 33243
A10: x | B10: 10113 | C10: LØNN PED. PERS.: REKTOR-/INSPEKTØRLØNN | D10: F | E10: A | F10: S | H10: 3469 | I10: =IF(AB10=1,IF(INDEX(Periodiserings_tabell,MATCH($J10,Periodiserings_koder,0),15)<>1,"UGYLDIG ->",""),"") ->  | J10: 1 | K10: =INDEX(Periodiserings_tabell,MATCH($J10,Periodiserings_koder,0),MATCH("Beskrivelse",Periodiserings_heading,0)) -> Lønn ped. | M10: 314379 | N10: 328151 | O10: 320286 | P10: 321121 | Q10: 320893 | R10: -47228 | S10: 318002 | T10: 307793 | U10: 328611 | V10: 319139 | W10: 317281 | X10: 320573 | Y10: =IF(H10<>0,"x","") -> x | AA10: 1 | AB10: =IF(J10<>AA10,1,0) -> 0 | AC10: =IF(AB10>0,H10,0) -> 0
A11: x | B11: 10114 | C11: LØNN PED. PERS.: REDUKSJON PGA. ALDER | D11: F | E11: A | F11: S | H11: 686 | I11: =IF(AB11=1,IF(INDEX(Periodiserings_tabell,MATCH($J11,Periodiserings_koder,0),15)<>1,"UGYLDIG ->",""),"") ->  | J11: 1 | K11: =INDEX(Periodiserings_tabell,MATCH($J11,Periodiserings_koder,0),MATCH("Beskrivelse",Periodiserings_heading,0)) -> Lønn ped. | M11: 62169 | N11: 64892 | O11: 63337 | P11: 63502 | Q11: 63457 | R11: -9339 | S11: 62885 | T11: 60867 | U11: 64983 | V11: 63110 | W11: 62743 | X11: 63394 | Y11: =IF(H11<>0,"x","") -> x | AA11: 1 | AB11: 0 | AC11: 0
A12: x | B12: 10115 | C12: LØNN PED. PERS.: ØVINGSLÆRERDEL (REF.BER.) | D12: F | E12: A | F12: S | H12: 94 | I12: =IF(AB12=1,IF(INDEX(Periodiserings_tabell,MATCH($J12,Periodiserings_koder,0),15)<>1,"UGYLDIG ->",""),"") ->  | J12: 1 | K12: =INDEX(Periodiserings_tabell,MATCH($J12,Periodiserings_koder,0),MATCH("Beskrivelse",Periodiserings_heading,0)) -> Lønn ped. | M12: 8519 | N12: 8892 | O12: 8679 | P12: 8701 | Q12: 8695 | R12: -1280 | S12: 8617 | T12: 8340 | U12: 8904 | V12: 8648 | W12: 8597 | X12: 8687 | Y12: =IF(H12<>0,"x","") -> x | AA12: 1 | AB12: 0 | AC12: 0
A13: x | B13: 10119 | C13: LØNN PED. PERS.: DRIFTSANSVARLIGE IKT | D13: F | E13: A | F13: S | I13: =IF(AB13=1,IF(INDEX(Periodiserings_tabell,MATCH($J13,Periodiserings_koder,0),15)<>1,"UGYLDIG ->",""),"") ->  | J13: 1 | K13: =INDEX(Periodiserings_tabell,MATCH($J13,Periodiserings_koder,0),MATCH("Beskrivelse",Periodiserings_heading,0)) -> Lønn ped. | M13: 0 | N13: 0 | O13: 0 | P13: 0 | Q13: 0 | R13: 0 | S13: 0 | T13: 0 | U13: 0 | V13: 0 | W13: 0 | X13: 0 | Y13: =IF(H13<>0,"x","") ->  | AA13: 1 | AB13: 0 | AC13: 0
M15: =IF(ISERROR(SUM(M16:M22)/(SUM($H16:$H22)*1000)),0,SUM(M16:M22)/(SUM($H16:$H22)*1000)) -> 0.08723607197 | N15: 0.09150726209 | O15: 0.09130197269 | P15: 0.09203121613 | Q15: 0.09100281812 | R15: -0.006048991979 | S15: 0.09096011272 | T15: 0.08696184695 | U15: 0.09410925645 | V15: 0.09251073054 | W15: 0.09360459571 | X15: 0.09482267505
A16: x | B16: 10120 | C16: LØNN ØVRIGE KOMMUNALE STILLINGER | D16: F | E16: A | F16: O | H16: 768 | I16: =IF(AB16=1,IF(INDEX(Periodiserings_tabell,MATCH($J16,Periodiserings_koder,0),15)<>1,"UGYLDIG ->",""),"") ->  | J16: 2 | K16: =INDEX(Periodiserings_tabell,MATCH($J16,Periodiserings_koder,0),MATCH("Beskrivelse",Periodiserings_heading,0)) -> Lønn komm. | M16: =ROUND(($H16*1000)*INDEX(Periodiserings_tabell,MATCH($J16,Periodiserings_koder,0),MATCH(M$2,Periodiserings_heading,0)),0) -> 66997 | N16: 70278 | O16: 70120 | P16: 70680 | Q16: 69890 | R16: -4646 | S16: 69857 | T16: 66787 | U16: 72276 | V16: 71048 | W16: 71888 | X16: 72824 | Y16: =IF(H16<>0,"x","") -> x | AA16: 2 | AB16: 0 | AC16: 0
A17: x | B17: 10122 | C17: LØNN VAKTMESTERE OG MASKINSJEFER | D17: F | E17: A | F17: O | J17: 2 | K17: Lønn komm. | M17: 0 | N17: 0 | O17: 0 | P17: 0 | Q17: 0 | R17: 0 | S17: 0 | T17: 0 | U17: 0 | V17: 0 | W17: 0 | X17: 0 | AA17: 2 | AB17: 0 | AC17: 0
A18: x | B18: 10123 | C18: LØNN SKOLEASSISTENTER | D18: F | E18: A | F18: O | H18: 3845 | J18: 2 | K18: Lønn komm. | M18: 335423 | N18: 351845 | O18: 351056 | P18: 353860 | Q18: 349906 | R18: -23258 | S18: 349742 | T18: 334368 | U18: 361850 | V18: 355704 | W18: 359910 | X18: 364593 | Y18: x | AA18: 2 | AB18: 0 | AC18: 0
A19: x | B19: 10124 | C19: LØNN SVØMMEASSISTENTER | D19: F | E19: A | F19: O | J19: 2 | K19: Lønn komm. | M19: 0 | N19: 0 | O19: 0 | P19: 0 | Q19: 0 | R19: 0 | S19: 0 | T19: 0 | U19: 0 | V19: 0 | W19: 0 | X19: 0 | AA19: 2 | AB19: =IF(J19<>AA19,1,0) -> 0 | AC19: 0
A20: x | B20: 10125 | C20: LØNN LEDER AKTIVITETSSKOLEN | D20: F | E20: A | F20: O | J20: 2 | K20: Lønn komm. | M20: 0 | N20: 0 | O20: 0 | P20: 0 | Q20: 0 | R20: 0 | S20: 0 | T20: 0 | U20: 0 | V20: 0 | W20: 0 | X20: 0 | AA20: 2 | AB20: =IF(J20<>AA20,1,0) -> 0 | AC20: 0
A21: x | B21: 10126 | C21: LØNN BASELEDER AKTIVITETSSKOLEN | D21: F | E21: A | F21: O | J21: 2 | K21: Lønn komm. | M21: 0 | N21: 0 | O21: 0 | P21: 0 | Q21: 0 | R21: 0 | S21: 0 | T21: 0 | U21: 0 | V21: 0 | W21: 0 | X21: 0 | AA21: 2 | AB21: =IF(J21<>AA21,1,0) -> 0 | AC21: 0
A22: x | B22: 10127 | C22: LØNN ASSISTENT AKTIVITETSSKOLEN | D22: F | E22: A | F22: O | J22: 2 | K22: Lønn komm. | M22: 0 | N22: 0 | O22: 0 | P22: 0 | Q22: 0 | R22: 0 | S22: 0 | T22: 0 | U22: 0 | V22: 0 | W22: 0 | X22: 0 | AA22: 2 | AB22: 0 | AC22: 0
A24: x | B24: 10130 | C24: HELG- OG HELLIGDAGSTILLEGG | D24: F | E24: A | I24: =IF(AB24=1,IF(INDEX(Periodiserings_tabell,MATCH($J24,Periodiserings_koder,0),15)<>1,"UGYLDIG ->",""),"") ->  | J24: 3 | K24: Lønn tillegg | M24: 0 | N24: 0 | O24: 0 | P24: 0 | Q24: 0 | R24: 0 | S24: 0 | T24: 0 | U24: 0 | V24: 0 | W24: 0 | X24: 0 | Y24: =IF(H24<>0,"x","") ->  | AA24: 3 | AB24: 0 | AC24: 0
A25: x | B25: 10140 | C25: KVELDS- OG NATTILLEGG | D25: F | E25: A | J25: 3 | K25: Lønn tillegg | M25: 0 | N25: 0 | O25: 0 | P25: 0 | Q25: 0 | R25: 0 | S25: 0 | T25: 0 | U25: 0 | V25: 0 | W25: 0 | X25: 0 | AA25: 3 | AB25: 0 | AC25: 0
A26: x | B26: 10150 | C26: ANDRE AVTALEFESTEDE TILLEGG | D26: F | E26: A | H26: 24 | I26: =IF(AB26=1,IF(INDEX(Periodiserings_tabell,MATCH($J26,Periodiserings_koder,0),15)<>1,"UGYLDIG ->",""),"") ->  | J26: 3 | K26: Lønn tillegg | M26: 2342 | N26: 2196 | O26: 2229 | P26: 2239 | Q26: 2179 | R26: -170 | S26: 2278 | T26: 1801 | U26: 2030 | V26: 2233 | W26: 2182 | X26: 2462 | Y26: =IF(H26<>0,"x","") -> x | AA26: 3 | AB26: =IF(J26<>AA26,1,0) -> 0 | AC26: 0
A27: x | B27: 10151 | C27: KONTAKTLÆRERTILLEGG | D27: F | E27: A | H27: 842 | J27: 3 | K27: Lønn tillegg | M27: 82171 | N27: 77026 | O27: 78196 | P27: 78551 | Q27: 76435 | R27: -5964 | S27: 79909 | T27: 63186 | U27: 71216 | V27: 78347 | W27: 76540 | X27: 86386 | Y27: x | AA27: 3 | AB27: 0 | AC27: 0
A28: x | B28: 10152 | C28: TILLEGG RÅDGIVER/SOSIALLÆRER | D28: F | E28: A | H28: 7 | J28: 3 | K28: Lønn tillegg | M28: 683 | N28: 640 | O28: 650 | P28: 653 | Q28: 635 | R28: -50 | S28: 664 | T28: 525 | U28: 592 | V28: 651 | W28: 636 | X28: 718 | Y28: x | AA28: 3 | AB28: 0 | AC28: 0
A29: x | B29: 10153 | C29: TILLEGG IKT-ANSVARLIG | D29: F | E29: A | J29: 3 | K29: Lønn tillegg | M29: 0 | N29: 0 | O29: 0 | P29: 0 | Q29: 0 | R29: 0 | S29: 0 | T29: 0 | U29: 0 | V29: 0 | W29: 0 | X29: 0 | AA29: 3 | AB29: 0 | AC29: 0
A30: x | B30: 10154 | C30: PERSONLIGE TILLEGG LÆRERE | D30: F | E30: A | H30: 12 | J30: 3 | K30: Lønn tillegg | M30: 1171 | N30: 1098 | O30: 1114 | P30: 1119 | Q30: 1089 | R30: -85 | S30: 1139 | T30: 901 | U30: 1015 | V30: 1117 | W30: 1091 | X30: 1231 | Y30: x | AA30: 3 | AB30: 0 | AC30: 0
A31: x | B31: 10155 | C31: SAMLINGSSTYRERTILL./TIMEPLANLEGGING | D31: F | E31: A | H31: 116 | J31: 3 | K31: Lønn tillegg | M31: 11320 | N31: 10612 | O31: 10773 | P31: 10822 | Q31: 10530 | R31: -822 | S31: 11009 | T31: 8705 | U31: 9811 | V31: 10794 | W31: 10545 | X31: 11901 | Y31: x | AA31: 3 | AB31: 0 | AC31: 0
A32: x | B32: 10156 | C32: ØVINGSLÆRERTILLEGG | D32: F | E32: A | H32: 36 | J32: 3 | K32: Lønn tillegg | M32: 3513 | N32: 3293 | O32: 3343 | P32: 3358 | Q32: 3268 | R32: -255 | S32: 3417 | T32: 2702 | U32: 3045 | V32: 3350 | W32: 3272 | X32: 3693 | Y32: x | AA32: 3 | AB32: 0 | AC32: 0
A33: x | B33: 10157 | C33: VARIABLE TILLEGG VED LEIRSKOLEOPPHOLD | D33: F | E33: A | J33: 3 | K33: Lønn tillegg | M33: 0 | N33: 0 | O33: 0 | P33: 0 | Q33: 0 | R33: 0 | S33: 0 | T33: 0 | U33: 0 | V33: 0 | W33: 0 | X33: 0 | AA33: 3 | AB33: 0 | AC33: 0
A34: x | B34: 10158 | C34: LØNN ETTER FELLESBESTEMMELSENE § 18 | D34: F | E34: A | J34: 3 | K34: Lønn tillegg | M34: =ROUND(($H34*1000)*INDEX(Periodiserings_tabell,MATCH($J34,Periodiserings_koder,0),MATCH(M$2,Periodiserings_heading,0)),0) -> 0 | N34: 0 | O34: 0 | P34: 0 | Q34: 0 | R34: 0 | S34: 0 | T34: 0 | U34: 0 | V34: 0 | W34: 0 | X34: 0 | AA34: 3 | AB34: 0 | AC34: 0
A35: x | B35: 10159 | C35: SENIORTILLEGG | D35: F | E35: A | J35: 3 | K35: Lønn tillegg | M35: 0 | N35: 0 | O35: 0 | P35: 0 | Q35: 0 | R35: 0 | S35: 0 | T35: 0 | U35: 0 | V35: 0 | W35: 0 | X35: 0 | AA35: 3 | AB35: 0 | AC35: 0
B37: 010-019 FAST LØNN | H37: =SUM(H9:H35) -> 43142 | M37: =SUM(M9:M13)+SUM(M16:M35) -> 4063394 | N37: 4093630 | O37: 4084490 | P37: 4089313 | Q37: 3965333 | R37: -545202 | S37: 3636769 | T37: 3897710 | U37: 3966068 | V37: 3955876 | W37: 3956420 | X37: 3978197 | Y37: x
Y38: x
Y39: x
B40: 020-029 VIKARER (lønn som kommer i tillegg til fast lønn under art 010-019) | H40: ( 1000 )
A41: x | B41: 10201 | C41: VIKARLØNN KOMM. TILS. - SYKEFR. KORT (<16D) | D41: F | E41: A | H41: 550 | I41: =IF(AB41=1,IF(INDEX(Periodiserings_tabell,MATCH($J41,Periodiserings_koder,0),15)<>1,"UGYLDIG ->",""),"") ->  | J41: 4 | K41: =INDEX(Periodiserings_tabell,MATCH($J41,Periodiserings_koder,0),MATCH("Beskrivelse",Periodiserings_heading,0)) -> Lønn variabel | M41: =ROUND((($H41*1000)*INDEX(Periodiserings_tabell,MATCH($J41,Periodiserings_koder,0),MATCH(M$2,Periodiserings_heading,0))),0) -> 33107 | N41: 56452 | O41: 45914 | P41: 54061 | Q41: 47465 | R41: 36511 | S41: 63952 | T41: 15348 | U41: 33631 | V41: 39049 | W41: 46301 | X41: 78210 | Y41: =IF(H41<>0,"x","") -> x | AA41: 4 | AB41: 0 | AC41: 0
A42: x | B42: 10202 | C42: VIKARLØNN KOMM. TILS. - SYKEFR. LANG (17D+) | D42: F | E42: A | F42: O | I42: =IF(AB42=1,IF(INDEX(Periodiserings_tabell,MATCH($J42,Periodiserings_koder,0),15)<>1,"UGYLDIG ->",""),"") ->  | J42: 4 | K42: Lønn variabel | M42: 0 | N42: 0 | O42: 0 | P42: 0 | Q42: 0 | R42: 0 | S42: 0 | T42: 0 | U42: 0 | V42: 0 | W42: 0 | X42: 0 | Y42: =IF(H42<>0,"x","") ->  | AA42: 4 | AB42: =IF(J42<>AA42,1,0) -> 0 | AC42: 0
A43: x | B43: 10203 | C43: VIKARLØNN KOMM. TILS. - TILLITSVALGTE | D43: F | E43: A | J43: 4 | K43: Lønn variabel | M43: 0 | N43: 0 | O43: 0 | P43: 0 | Q43: 0 | R43: 0 | S43: 0 | T43: 0 | U43: 0 | V43: 0 | W43: 0 | X43: 0 | AA43: 4 | AB43: 0 | AC43: 0
A44: x | B44: 10204 | C44: VIKARLØNN KOMM. TILS. - SVANGERSKAPSPERM. | D44: F | E44: A | F44: O | I44: =IF(AB44=1,IF(INDEX(Periodiserings_tabell,MATCH($J44,Periodiserings_koder,0),15)<>1,"UGYLDIG ->",""),"") ->  | J44: 4 | K44: Lønn variabel | M44: 0 | N44: 0 | O44: 0 | P44: 0 | Q44: 0 | R44: 0 | S44: 0 | T44: 0 | U44: 0 | V44: 0 | W44: 0 | X44: 0 | Y44: =IF(H44<>0,"x","") ->  | AA44: 4 | AB44: =IF(J44<>AA44,1,0) -> 0 | AC44: 0
A45: x | B45: 10205 | C45: VIKARLØNN KOMM. TILS. - FERIE | D45: F | E45: A | J45: 4 | K45: Lønn variabel | M45: 0 | N45: 0 | O45: 0 | P45: 0 | Q45: 0 | R45: 0 | S45: 0 | T45: 0 | U45: 0 | V45: 0 | W45: 0 | X45: 0 | AA45: 4 | AB45: 0 | AC45: 0
A46: x | B46: 10210 | C46: VIKARLØNN PED. PERS. - SYKEFR. KORT (<16D) | D46: F | E46: A | H46: 1000 | J46: 4 | K46: Lønn variabel | M46: 60194 | N46: 102640 | O46: 83479 | P46: 98294 | Q46: 86300 | R46: 66384 | S46: 116276 | T46: 27905 | U46: 61146 | V46: 70998 | W46: 84184 | X46: 142200 | Y46: x | AA46: 4 | AB46: 0 | AC46: 0
A47: x | B47: 10211 | C47: VIKARLØNN PED. PERS. - SYKEFR. LANG (17D+) | D47: F | E47: A | F47: S | J47: 4 | K47: Lønn variabel | M47: 0 | N47: 0 | O47: 0 | P47: 0 | Q47: 0 | R47: 0 | S47: 0 | T47: 0 | U47: 0 | V47: 0 | W47: 0 | X47: 0 | AA47: 4 | AB47: 0 | AC47: 0
A48: x | B48: 10212 | C48: VIKARLØNN PED. PERS. - TILLITSVALGTE | D48: F | E48: A | J48: 4 | K48: Lønn variabel | M48: 0 | N48: 0 | O48: 0 | P48: 0 | Q48: 0 | R48: 0 | S48: 0 | T48: 0 | U48: 0 | V48: 0 | W48: 0 | X48: 0 | AA48: 4 | AB48: 0 | AC48: 0
A49: x | B49: 10213 | C49: VIKARLØNN PED. PERS. - SVANGERSKAPSPERM. | D49: F | E49: A | F49: S | H49: 662 | J49: 4 | K49: Lønn variabel | M49: 39848 | N49: 67948 | O49: 55263 | P49: 65070 | Q49: 57131 | R49: 43946 | S49: 76975 | T49: 18473 | U49: 40479 | V49: 47001 | W49: 55730 | X49: 94136 | Y49: x | AA49: 4 | AB49: 0 | AC49: 0
A50: x | B50: 10214 | C50: VIKARLØNN PED. PERS. - FERIE | D50: F | E50: A | H50: 25 | J50: 4 | K50: Lønn variabel | M50: 1505 | N50: 2566 | O50: 2087 | P50: 2457 | Q50: 2158 | R50: 1660 | S50: 2907 | T50: 698 | U50: 1529 | V50: 1775 | W50: 2105 | X50: 3555 | Y50: x | AA50: 4 | AB50: 0 | AC50: 0
A51: x | B51: 10220 | C51: VIKARLØNN FOR ANS. SOM HAR PERM M/LØNN | D51: F | E51: A | H51: 150 | J51: 4 | K51: Lønn variabel | M51: 9029 | N51: 15396 | O51: 12522 | P51: 14744 | Q51: 12945 | R51: 9958 | S51: 17441 | T51: 4186 | U51: 9172 | V51: 10650 | W51: 12628 | X51: 21330 | Y51: x | AA51: 4 | AB51: 0 | AC51: 0
A52: x | B52: 10230 | C52: VIKAR FOR ANS. SOM HAR OPPLÆRING M/LØNN | D52: F | E52: A | H52: 50 | J52: 4 | K52: Lønn variabel | M52: 3010 | N52: 5132 | O52: 4174 | P52: 4915 | Q52: 4315 | R52: 3319 | S52: 5814 | T52: 1395 | U52: 3057 | V52: 3550 | W52: 4209 | X52: 7110 | Y52: x | AA52: 4 | AB52: 0 | AC52: 0
B54: 020-029 VIKARER | H54: =SUM(H41:H52) -> 2437 | M54: =SUM(M41:M52) -> 146693 | N54: 250134 | O54: 203439 | P54: 239541 | Q54: 210314 | R54: 161778 | S54: 283365 | T54: 68005 | U54: 149014 | V54: 173023 | W54: 205157 | X54: 346541 | Y54: x
Y55: x
Y56: x
B57: 030-039 EKSTRAHJELP | H57: ( 1000 )
A58: x | B58: 10310 | C58: LØNN VED UTLEIE (TILSYNSV, RENGJ.PERS. ETC.) | D58: F | E58: A | I58: =IF(AB58=1,IF(INDEX(Periodiserings_tabell,MATCH($J58,Periodiserings_koder,0),15)<>1,"UGYLDIG ->",""),"") ->  | J58: 4 | K58: =INDEX(Periodiserings_tabell,MATCH($J58,Periodiserings_koder,0),MATCH("Beskrivelse",Periodiserings_heading,0)) -> Lønn variabel | M58: =ROUND((($H58*1000)*INDEX(Periodiserings_tabell,MATCH($J58,Periodiserings_koder,0),MATCH(M$2,Periodiserings_heading,0))),0) -> 0 | N58: 0 | O58: 0 | P58: 0 | Q58: 0 | R58: 0 | S58: 0 | T58: 0 | U58: 0 | V58: 0 | W58: 0 | X58: 0 | Y58: =IF(H58<>0,"x","") ->  | AA58: 4 | AB58: 0 | AC58: 0
A59: x | B59: 10311 | C59: LØNN TILSYNSV.OSLO IDR.KR. NÅR LEIET. ER < 19 ÅR | D59: F | E59: A | I59: =IF(AB59=1,IF(INDEX(Periodiserings_tabell,MATCH($J59,Periodiserings_koder,0),15)<>1,"UGYLDIG ->",""),"") ->  | J59: 4 | K59: =INDEX(Periodiserings_tabell,MATCH($J59,Periodiserings_koder,0),MATCH("Beskrivelse",Periodiserings_heading,0)) -> Lønn variabel | M59: 0 | N59: 0 | O59: 0 | P59: 0 | Q59: 0 | R59: 0 | S59: 0 | T59: 0 | U59: 0 | V59: 0 | W59: 0 | X59: 0 | Y59: =IF(H59<>0,"x","") ->  | AA59: 4 | AB59: 0 | AC59: 0
A60: x | B60: 10312 | C60: LØNN I FORB. M/PRØVER | D60: F | E60: A | H60: 68 | I60: =IF(AB60=1,IF(INDEX(Periodiserings_tabell,MATCH($J60,Periodiserings_koder,0),15)<>1,"UGYLDIG ->",""),"") ->  | J60: 4 | K60: =INDEX(Periodiserings_tabell,MATCH($J60,Periodiserings_koder,0),MATCH("Beskrivelse",Periodiserings_heading,0)) -> Lønn variabel | M60: 4093 | N60: 6980 | O60: 5677 | P60: 6684 | Q60: 5868 | R60: 4514 | S60: 7907 | T60: 1898 | U60: 4158 | V60: 4828 | W60: 5725 | X60: 9670 | Y60: =IF(H60<>0,"x","") -> x | AA60: 4 | AB60: 0 | AC60: 0
A61: x | B61: 10350 | C61: ANNEN EKSTRAHJELP | D61: F | E61: A | I61: =IF(AB61=1,IF(INDEX(Periodiserings_tabell,MATCH($J61,Periodiserings_koder,0),15)<>1,"UGYLDIG ->",""),"") ->  | J61: 4 | K61: =INDEX(Periodiserings_tabell,MATCH($J61,Periodiserings_koder,0),MATCH("Beskrivelse",Periodiserings_heading,0)) -> Lønn variabel | M61: 0 | N61: 0 | O61: 0 | P61: 0 | Q61: 0 | R61: 0 | S61: 0 | T61: 0 | U61: 0 | V61: 0 | W61: 0 | X61: 0 | Y61: =IF(H61<>0,"x","") ->  | AA61: 4 | AB61: 0 | AC61: 0
B63: 030-039 EKSTRAHJELP | H63: =SUM(H58:H61) -> 68 | M63: =SUM(M58:M61) -> 4093 | N63: 6980 | O63: 5677 | P63: 6684 | Q63: 5868 | R63: 4514 | S63: 7907 | T63: 1898 | U63: 4158 | V63: 4828 | W63: 5725 | X63: 9670 | Y63: x
Y64: x
Y65: x
B66: 040-049 OVERTID | H66: ( 1000 )
A67: x | B67: 10400 | C67: OVERTID FAST ANSATTE | D67: F | E67: A | H67: 40 | I67: =IF(AB67=1,IF(INDEX(Periodiserings_tabell,MATCH($J67,Periodiserings_koder,0),15)<>1,"UGYLDIG ->",""),"") ->  | J67: 4 | K67: =INDEX(Periodiserings_tabell,MATCH($J67,Periodiserings_koder,0),MATCH("Beskrivelse",Periodiserings_heading,0)) -> Lønn variabel | M67: =ROUND((($H67*1000)*INDEX(Periodiserings_tabell,MATCH($J67,Periodiserings_koder,0),MATCH(M$2,Periodiserings_heading,0))),0) -> 2408 | N67: 4106 | O67: 3339 | P67: 3932 | Q67: 3452 | R67: 2655 | S67: 4651 | T67: 1116 | U67: 2446 | V67: 2840 | W67: 3367 | X67: 5688 | Y67: =IF(H67<>0,"x","") -> x | AA67: 4 | AB67: 0 | AC67: 0
A68: x | B68: 10401 | C68: OVERTID VIKARER | D68: F | E68: A | I68: =IF(AB68=1,IF(INDEX(Periodiserings_tabell,MATCH($J68,Periodiserings_koder,0),15)<>1,"UGYLDIG ->",""),"") ->  | J68: 4 | K68: =INDEX(Periodiserings_tabell,MATCH($J68,Periodiserings_koder,0),MATCH("Beskrivelse",Periodiserings_heading,0)) -> Lønn variabel | M68: 0 | N68: 0 | O68: 0 | P68: 0 | Q68: 0 | R68: 0 | S68: 0 | T68: 0 | U68: 0 | V68: 0 | W68: 0 | X68: 0 | Y68: =IF(H68<>0,"x","") ->  | AA68: 4 | AB68: 0 | AC68: 0
B70: 040-049 OVERTID | H70: =SUM(H67:H68) -> 40 | M70: =SUM(M67:M68) -> 2408 | N70: 4106 | O70: 3339 | P70: 3932 | Q70: 3452 | R70: 2655 | S70: 4651 | T70: 1116 | U70: 2446 | V70: 2840 | W70: 3367 | X70: 5688 | Y70: x
Y71: x
Y72: x
B73: 050-069 ANNEN LØNN OG TREKKPLIKTIGE GODTGJØRELSER | H73: ( 1000 )
A74: x | B74: 10510 | C74: LØNN TILLITSVALGTE - PED. PERS. (ORG. ANDEL) | D74: F | E74: A | H74: 45 | I74: =IF(AB74=1,IF(INDEX(Periodiserings_tabell,MATCH($J74,Periodiserings_koder,0),15)<>1,"UGYLDIG ->",""),"") ->  | J74: 2 | K74: =INDEX(Periodiserings_tabell,MATCH($J74,Periodiserings_koder,0),MATCH("Beskrivelse",Periodiserings_heading,0)) -> Lønn komm. | M74: =ROUND((($H74*1000)*INDEX(Periodiserings_tabell,MATCH($J74,Periodiserings_koder,0),MATCH(M$2,Periodiserings_heading,0))),0) -> 3926 | N74: 4118 | O74: 4109 | P74: 4141 | Q74: 4095 | R74: -272 | S74: 4093 | T74: 3913 | U74: 4235 | V74: 4163 | W74: 4212 | X74: 4267 | Y74: =IF(H74<>0,"x","") -> x | AA74: 2 | AB74: 0 | AC74: =IF(AB74>0,H74,0) -> 0
A75: x | B75: 10511 | C75: LØNN TILLITSVALGTE - IKKE REF. BER. | D75: F | E75: A | I75: =IF(AB75=1,IF(INDEX(Periodiserings_tabell,MATCH($J75,Periodiserings_koder,0),15)<>1,"UGYLDIG ->",""),"") ->  | J75: 2 | K75: =INDEX(Periodiserings_tabell,MATCH($J75,Periodiserings_koder,0),MATCH("Beskrivelse",Periodiserings_heading,0)) -> Lønn komm. | M75: 0 | N75: 0 | O75: 0 | P75: 0 | Q75: 0 | R75: 0 | S75: 0 | T75: 0 | U75: 0 | V75: 0 | W75: 0 | X75: 0 | Y75: =IF(H75<>0,"x","") ->  | AA75: 2 | AB75: 0 | AC75: 0
A76: x | B76: 10620 | C76: ANDRE AVGIFTSPLIKTIGE YTELSER | D76: F | E76: A | H76: 36 | I76: =IF(AB76=1,IF(INDEX(Periodiserings_tabell,MATCH($J76,Periodiserings_koder,0),15)<>1,"UGYLDIG ->",""),"") ->  | J76: 2 | K76: =INDEX(Periodiserings_tabell,MATCH($J76,Periodiserings_koder,0),MATCH("Beskrivelse",Periodiserings_heading,0)) -> Lønn komm. | M76: 3141 | N76: 3294 | O76: 3287 | P76: 3313 | Q76: 3276 | R76: -218 | S76: 3275 | T76: 3131 | U76: 3388 | V76: 3330 | W76: 3370 | X76: 3414 | Y76: =IF(H76<>0,"x","") -> x | AA76: 2 | AB76: =IF(J76<>AA76,1,0) -> 0 | AC76: =IF(AB76>0,H76,0) -> 0
A77: x | B77: 10641 | C77: LÆRLINGER | D77: F | E77: A | I77: =IF(AB77=1,IF(INDEX(Periodiserings_tabell,MATCH($J77,Periodiserings_koder,0),15)<>1,"UGYLDIG ->",""),"") ->  | J77: 2 | K77: =INDEX(Periodiserings_tabell,MATCH($J77,Periodiserings_koder,0),MATCH("Beskrivelse",Periodiserings_heading,0)) -> Lønn komm. | M77: 0 | N77: 0 | O77: 0 | P77: 0 | Q77: 0 | R77: 0 | S77: 0 | T77: 0 | U77: 0 | V77: 0 | W77: 0 | X77: 0 | Y77: =IF(H77<>0,"x","") ->  | AA77: 2 | AB77: 0 | AC77: 0
B79: 050-069 ANNEN LØNN OG TREKKPLIKTIGE GODTGJ. | H79: =SUM(H74:H77) -> 81 | M79: =SUM(M74:M77) -> 7067 | N79: 7412 | O79: 7396 | P79: 7454 | Q79: 7371 | R79: -490 | S79: 7368 | T79: 7044 | U79: 7623 | V79: 7493 | W79: 7582 | X79: 7681 | Y79: x
Y80: x
Y81: x
B82: 070-074 LØNN VEDLIKEHOLD | H82: ( 1000 )
A83: x | B83: 10700 | C83: LØNN TIL EGNE ANSATTE VEDR. VEDLIKEHOLD | D83: F | E83: A | F83: O | I83: =IF(AB83=1,IF(INDEX(Periodiserings_tabell,MATCH($J83,Periodiserings_koder,0),15)<>1,"UGYLDIG ->",""),"") ->  | J83: 2 | K83: =INDEX(Periodiserings_tabell,MATCH($J83,Periodiserings_koder,0),MATCH("Beskrivelse",Periodiserings_heading,0)) -> Lønn komm. | M83: =ROUND((($H83*1000)*INDEX(Periodiserings_tabell,MATCH($J83,Periodiserings_koder,0),MATCH(M$2,Periodiserings_heading,0))),0) -> 0 | N83: 0 | O83: 0 | P83: 0 | Q83: 0 | R83: 0 | S83: 0 | T83: 0 | U83: 0 | V83: 0 | W83: 0 | X83: 0 | Y83: =IF(H83<>0,"x","") ->  | AA83: 2 | AB83: =IF(J83<>AA83,1,0) -> 0 | AC83: 0
A84: x | B84: 10710 | C84: OVERTID / AVTALEFESTEDE TILL. VEDR. VEDL. | D84: F | E84: A | I84: =IF(AB84=1,IF(INDEX(Periodiserings_tabell,MATCH($J84,Periodiserings_koder,0),15)<>1,"UGYLDIG ->",""),"") ->  | J84: 2 | K84: =INDEX(Periodiserings_tabell,MATCH($J84,Periodiserings_koder,0),MATCH("Beskrivelse",Periodiserings_heading,0)) -> Lønn komm. | M84: 0 | N84: 0 | O84: 0 | P84: 0 | Q84: 0 | R84: 0 | S84: 0 | T84: 0 | U84: 0 | V84: 0 | W84: 0 | X84: 0 | Y84: =IF(H84<>0,"x","") ->  | AA84: 2 | AB84: =IF(J84<>AA84,1,0) -> 0 | AC84: 0
A85: x | B85: 10720 | C85: VIKARER / EKSTRAHJELP VEDR. VEDLIKEHOLD | D85: F | E85: A | I85: =IF(AB85=1,IF(INDEX(Periodiserings_tabell,MATCH($J85,Periodiserings_koder,0),15)<>1,"UGYLDIG ->",""),"") ->  | J85: 2 | K85: =INDEX(Periodiserings_tabell,MATCH($J85,Periodiserings_koder,0),MATCH("Beskrivelse",Periodiserings_heading,0)) -> Lønn komm. | M85: 0 | N85: 0 | O85: 0 | P85: 0 | Q85: 0 | R85: 0 | S85: 0 | T85: 0 | U85: 0 | V85: 0 | W85: 0 | X85: 0 | Y85: =IF(H85<>0,"x","") ->  | AA85: 2 | AB85: =IF(J85<>AA85,1,0) -> 0 | AC85: 0
B87: 070-074 LØNN VEDLIKEHOLD | H87: =SUM(H83:H85) -> 0 | M87: =SUM(M83:M85) -> 0 | N87: =SUM(N83:N85) -> 0 | O87: 0 | P87: 0 | Q87: 0 | R87: 0 | S87: 0 | T87: 0 | U87: 0 | V87: 0 | W87: 0 | X87: 0 | Y87: x
Y88: x
Y89: x
B90: 075-079 LØNN RENHOLD | H90: ( 1000 )
A91: x | B91: 10750 | C91: LØNN TIL EGNE ANSATTE VEDR. RENHOLD | D91: F | E91: A | F91: O | I91: =IF(AB91=1,IF(INDEX(Periodiserings_tabell,MATCH($J91,Periodiserings_koder,0),15)<>1,"UGYLDIG ->",""),"") ->  | J91: 2 | K91: =INDEX(Periodiserings_tabell,MATCH($J91,Periodiserings_koder,0),MATCH("Beskrivelse",Periodiserings_heading,0)) -> Lønn komm. | M91: 0 | N91: 0 | O91: 0 | P91: 0 | Q91: 0 | R91: 0 | S91: 0 | T91: 0 | U91: 0 | V91: 0 | W91: 0 | X91: 0 | Y91: =IF(H91<>0,"x","") ->  | AA91: 2 | AB91: =IF(J91<>AA91,1,0) -> 0 | AC91: 0
A92: x | B92: 10770 | C92: VIKARER / EKSTRAHJELP VEDR. RENHOLD | D92: F | E92: A | I92: =IF(AB92=1,IF(INDEX(Periodiserings_tabell,MATCH($J92,Periodiserings_koder,0),15)<>1,"UGYLDIG ->",""),"") ->  | J92: 2 | K92: =INDEX(Periodiserings_tabell,MATCH($J92,Periodiserings_koder,0),MATCH("Beskrivelse",Periodiserings_heading,0)) -> Lønn komm. | M92: 0 | N92: 0 | O92: 0 | P92: 0 | Q92: 0 | R92: 0 | S92: 0 | T92: 0 | U92: 0 | V92: 0 | W92: 0 | X92: 0 | Y92: =IF(H92<>0,"x","") ->  | AA92: 2 | AB92: =IF(J92<>AA92,1,0) -> 0 | AC92: 0
B94: 075-079 LØNN RENHOLD | H94: =SUM(H91:H92) -> 0 | M94: =SUM(M91:M92) -> 0 | N94: =SUM(N91:N92) -> 0 | O94: 0 | P94: 0 | Q94: 0 | R94: 0 | S94: 0 | T94: 0 | U94: 0 | V94: 0 | W94: 0 | X94: 0 | Y94: x
Y95: x
Y96: x
C97: FERIEPENGER | I97: Sats
A98: x | B98: 10170 | C98: PÅLØPTE FERIEPENGER AV ARTENE 010-015 | E98: A | H98: =ROUND(SUM(M98:X98)/1000,0) -> 5177 | I98: 0.12 | M98: =ROUND(SUMIF($D$9:$D$35,"F",M$9:M$35)*$I98,0) -> 487607 | N98: 491236 | O98: 490139 | P98: 490718 | Q98: 475840 | R98: -65424 | S98: 436412 | T98: 467725 | U98: 475928 | V98: 474705 | W98: 474770 | X98: 477384 | Y98: =IF(H98<>0,"x","") -> x
A99: x | B99: 10270 | C99: PÅLØPTE FERIEPENGER AV ARTENE 020-025 | E99: A | H99: 292 | I99: 0.12 | M99: =ROUND(SUMIF($D$41:$D$52,"F",M$41:M$52)*$I99,0) -> 17603 | N99: 30016 | O99: 24413 | P99: 28745 | Q99: 25238 | R99: 19413 | S99: 34004 | T99: 8161 | U99: 17882 | V99: 20763 | W99: 24619 | X99: 41585 | Y99: x
A100: x | B100: 10370 | C100: PÅLØPTE FERIEPENGER AV ARTENE 030-035 | E100: A | H100: 8 | I100: 0.12 | M100: =ROUND(SUMIF($D$58:$D$61,"F",M$58:M$61)*$I100,0) -> 491 | N100: =ROUND(SUMIF($D$58:$D$61,"F",N$58:N$61)*$I100,0) -> 838 | O100: 681 | P100: 802 | Q100: 704 | R100: 542 | S100: 949 | T100: 228 | U100: 499 | V100: 579 | W100: 687 | X100: 1160 | Y100: x
A101: x | B101: 10470 | C101: PÅLØPTE FERIEPENGER AV ARTENE 040-045 | E101: A | H101: 5 | I101: 0.12 | M101: =ROUND(SUMIF($D$67:$D$68,"F",M$67:M$68)*$I101,0) -> 289 | N101: =ROUND(SUMIF($D$67:$D$68,"F",N$67:N$68)*$I101,0) -> 493 | O101: 401 | P101: 472 | Q101: 414 | R101: 319 | S101: 558 | T101: 134 | U101: 294 | V101: 341 | W101: 404 | X101: 683 | Y101: x
A102: x | B102: 10670 | C102: PÅLØPTE FERIEPENGER AV ARTENE 050-065 | E102: A | H102: 10 | I102: 0.12 | M102: =ROUND(SUMIF($D$74:$D$77,"F",M$74:M$77)*$I102,0) -> 848 | N102: 889 | O102: 888 | P102: 894 | Q102: 885 | R102: -59 | S102: 884 | T102: 845 | U102: 915 | V102: 899 | W102: 910 | X102: 922 | Y102: x
A103: x | B103: 10730 | C103: PÅLØPTE FERIEPENGER AV ARTENE 070-074 | E103: A | H103: 0 | I103: 0.12 | M103: =ROUND(SUMIF($D$83:$D$85,"F",M$83:M$85)*$I103,0) -> 0 | N103: =ROUND(SUMIF($D$83:$D$85,"F",N$83:N$85)*$I103,0) -> 0 | O103: 0 | P103: 0 | Q103: 0 | R103: 0 | S103: 0 | T103: 0 | U103: 0 | V103: 0 | W103: 0 | X103: 0 | Y103: =IF(H103<>0,"x","") -> 
A104: x | B104: 10780 | C104: PÅLØPTE FERIEPENGER AV ARTENE 075-079 | E104: A | H104: 0 | I104: 0.12 | M104: =ROUND(SUMIF($D$91:$D$92,"F",M$91:M$92)*$I104,0) -> 0 | N104: =ROUND(SUMIF($D$91:$D$92,"F",N$91:N$92)*$I104,0) -> 0 | O104: 0 | P104: 0 | Q104: 0 | R104: 0 | S104: 0 | T104: 0 | U104: 0 | V104: 0 | W104: 0 | X104: 0
C106: FERIEPENGER, KORRIGERING
A107: x | B107: 10173 | C107: DIFF. PÅLØPTE/UTBETALTE FERIEPENGER | E107: A | I107: =IF(AB107=1,IF(INDEX(Periodiserings_tabell,MATCH($J107,Periodiserings_koder,0),15)<>1,"UGYLDIG ->",""),"") ->  | J107: 10 | K107: =INDEX(Periodiserings_tabell,MATCH($J107,Periodiserings_koder,0),MATCH("Beskrivelse",Periodiserings_heading,0)) -> Korr. feriep. | M107: =ROUND(($H107*1000)*INDEX(Periodiserings_tabell,MATCH($J107,Periodiserings_koder,0),MATCH(M$2,Periodiserings_heading,0)),0) -> 0 | N107: 0 | O107: 0 | P107: 0 | Q107: 0 | R107: 0 | S107: 0 | T107: 0 | U107: 0 | V107: 0 | W107: 0 | X107: 0 | Y107: =IF(H107<>0,"x","") ->  | AA107: 10 | AB107: =IF(J107<>AA107,1,0) -> 0 | AC107: 0
C109: SUM FERIEPENGER | H109: =SUM(H98:H107) -> 5492 | M109: =SUM(M98:M107) -> 506838 | N109: =SUM(N98:N107) -> 523472 | O109: 516522 | P109: 521631 | Q109: 503081 | R109: -45209 | S109: 472807 | T109: 477093 | U109: 495518 | V109: 497287 | W109: 501390 | X109: 521734 | Y109: x
Y110: x
Y111: x
B112: 090-094 PENSJONSINNSKUDD OG TREKKPL. FORSIKRINGSORDNINGER | H112: ( 1000 ) | I112: Sats
A113: x | B113: 10900 | C113: PENSJONSINNSKUDD OPF | E113: A | H113: =ROUND(SUM(M113:X113)/1000,0) -> 1174 | I113: 0.232 | J113: Pensjonspremie | M113: =ROUND(SUMIF($F$9:$F$92,"O",M$9:M$92)*$I$113,0) -> 93361 | N113: =ROUND(SUMIF($F$9:$F$92,"O",N$9:N$92)*$I$113,0) -> 97933 | O113: =ROUND(SUMIF($F$9:$F$92,"O",O$9:O$92)*$I$113,0) -> 97713 | P113: =ROUND(SUMIF($F$9:$F$92,"O",P$9:P$92)*$I$113,0) -> 98493 | Q113: =ROUND(SUMIF($F$9:$F$92,"O",Q$9:Q$92)*$I$113,0) -> 97393 | R113: =ROUND((((SUMIF($F$9:$F$92,"O",H$9:H$92))*1000)/11)*$I$113,0) -> 97292 | S113: =ROUND(SUMIF($F$9:$F$92,"O",S$9:S$92)*$I$113,0) -> 97347 | T113: 93068 | U113: 100717 | V113: 99006 | W113: 100177 | X113: 101481 | Y113: =IF(H113<>0,"x","") -> x
A114: x | B114: 10905 | C114: PENSJONSINNSKUDD SPK | E114: A | H114: =ROUND(SUM(M114:X114)/1000,0) -> 5356 | I114: =IF(Ramme!A1="G",0.1252,IF(Ramme!A1="VG",0.1436,0)) -> 0.1252 | J114: Pensjonspremie | M114: =ROUND(SUMIF($F$9:$F$92,"S",M$9:M$92)*$I$114,0) -> 450673 | N114: =ROUND(SUMIF($F$9:$F$92,"S",N$9:N$92)*$I$114,0) -> 456303 | O114: =ROUND(SUMIF($F$9:$F$92,"S",O$9:O$92)*$I$114,0) -> 453508 | P114: =ROUND(SUMIF($F$9:$F$92,"S",P$9:P$92)*$I$114,0) -> 454864 | Q114: =ROUND(SUMIF($F$9:$F$92,"S",Q$9:Q$92)*$I$114,0) -> 439268 | R114: =ROUND((((SUMIF($F$9:$F$92,"S",H$9:H$92))*1000)/11)*$I$114*1.2,0) -> 521114 | S114: =ROUND(SUMIF($F$9:$F$92,"S",S$9:S$92)*$I$114,0) -> 400105 | T114: 430338 | U114: 436286 | V114: 435650 | W114: 436458 | X114: 441771 | Y114: =IF(H114<>0,"x","") -> x
B116: 090-094 PENSJ.INNSK. OG TREKKPL. FORSIKR.ORDN. | H116: =SUM(H113:H115) -> 6530 | M116: =SUM(M113:M115) -> 544034 | N116: 554236 | O116: 551221 | P116: 553357 | Q116: 536661 | R116: 618406 | S116: 497452 | T116: 523406 | U116: 537003 | V116: 534656 | W116: 536635 | X116: 543252 | Y116: x
Y117: x
Y118: x
B119: 099-099 ARBEIDSGIVERAVGIFT | I119: Sats
A120: x | B120: 10990 | C120: ARB.GIVERAVG. AV ALL AVG.PL. LØNN/YTELSER | H120: =ROUND(SUM(M120:X120)/1000,0) -> 6453 | I120: 0.141 | M120: =ROUND((SUMIF($E$9:$E$92,"A",M$9:M$92))*$I$120,0) -> 595535 | N120: 615079 | O120: 606912 | P120: 612916 | Q120: 591120 | R120: -53121 | S120: 555548 | T120: 560584 | U120: 582233 | V120: 584312 | W120: 589133 | X120: 613037 | Y120: =IF(H120<>0,"x","") -> x
A121: x | B121: 10991 | C121: ARB.GIVERAVG. AV PENSJONSINNSKUDD | H121: =ROUND(SUM(M121:X121)/1000,0) -> 921 | I121: 0.141 | M121: =ROUND((SUMIF($E$113:$E$114,"A",M$113:M$114))*$I$121,0) -> 76709 | N121: 78147 | O121: 77722 | P121: 78023 | Q121: 75669 | R121: 87195 | S121: 70141 | T121: 73800 | U121: 75717 | V121: 75386 | W121: 75666 | X121: 76599 | Y121: =IF(H121<>0,"x","") -> x
A122: x | B122: 10995 | C122: REFUSJON ARB.G.AVG. AV SYKEPENGER MV. | H122: -200 | I122: =IF(AB122=1,IF(INDEX(Periodiserings_tabell,MATCH($J122,Periodiserings_koder,0),15)<>1,"UGYLDIG ->",""),"") ->  | J122: 9 | K122: =INDEX(Periodiserings_tabell,MATCH($J122,Periodiserings_koder,0),MATCH("Beskrivelse",Periodiserings_heading,0)) -> Ref. lønn | M122: =ROUND((($H122*1000)*INDEX(Periodiserings_tabell,MATCH($J122,Periodiserings_koder,0),MATCH(M$2,Periodiserings_heading,0))),0) -> -20022 | N122: -19984 | O122: -22620 | P122: -14912 | Q122: -20252 | R122: -16530 | S122: -1727 | T122: -17003 | U122: -15778 | V122: -20886 | W122: -18714 | X122: -11572 | Y122: =IF(H122<>0,"x","") -> x | AA122: 9 | AB122: 0 | AC122: 0
A123: x | B123: 10998 | C123: ARBEIDSGIVERAVGIFT AV PÅLØPTE FERIEP. | H123: =ROUND(SUM(M123:X123)/1000,0) -> 774 | I123: 0.141 | M123: =ROUND(SUMIF($E$98:$E$104,"A",M$98:M$104)*$I$123,0) -> 71464 | N123: 73810 | O123: 72830 | P123: 73550 | Q123: 70934 | R123: -6374 | S123: 66666 | T123: 67270 | U123: 69868 | V123: 70117 | W123: 70696 | X123: 73564 | Y123: =IF(H123<>0,"x","") -> x
A124: x | B124: 10999 | C124: DIFF. ARB.GIVERAVG. AV PÅL./UTB. FERIEP. | H124: =ROUND(SUM(M124:X124)/1000,0) -> 0 | I124: 0.141 | M124: =ROUND(SUMIF($E$107:$E$107,"A",M$107:M$107)*$I$124,0) -> 0 | N124: 0 | O124: 0 | P124: 0 | Q124: 0 | R124: 0 | S124: 0 | T124: 0 | U124: 0 | V124: 0 | W124: 0 | X124: 0 | Y124: =IF(H124<>0,"x","") -> 
B126: 099-099 ARBEIDSGIVERAVGIFT | H126: =SUM(H120:H124) -> 7948 | M126: =SUM(M120:M124) -> 723686 | N126: =SUM(N120:N124) -> 747052 | O126: 734844 | P126: 749577 | Q126: 717471 | R126: 11170 | S126: 690628 | T126: 684651 | U126: 712040 | V126: 708929 | W126: 716781 | X126: 751628 | Y126: x
Y127: x
B128: LØNNSOPPGJØR | I128: Sats
A129: x | B129: 10169 | C129: LØNNSOPPGJØR (kun budsjett) | H129: =ROUND((((SUM(H9:H13))*(1+I98)*(1+I114)*(1+I120))+((SUM(H16:H22)+H83+H91)*(1+I98)*(1+I113)*(1+I116)))*$I$129,0) -> 1001 | I129: 0.0166 | J129: 20 | K129: =INDEX(Periodiserings_tabell,MATCH($J129,Periodiserings_koder,0),MATCH("Beskrivelse",Periodiserings_heading,0)) -> Komp. lønns. | M129: =ROUND(($H129*1000)*INDEX(Periodiserings_tabell,MATCH($J129,Periodiserings_koder,0),MATCH(M$2,Periodiserings_heading,0)),0) -> 0 | N129: 0 | O129: 0 | P129: 0 | Q129: 0 | R129: 0 | S129: 0 | T129: 417327 | U129: 145918 | V129: 145918 | W129: 145918 | X129: 145918 | Y129: =IF(H129<>0,"x","") -> x | AA129: 20 | AB129: =IF(J129<>AA129,1,0) -> 0 | AC129: 0
Y130: x
B131: 000-099 LØNN OG SOSIALE UTGIFTER | H131: =H37+H54+H63+H70+H79+H87+H94+H109+H116+H126+H129 -> 66739 | M131: =M37+M54+M63+M70+M79+M87+M94+M109+M116+M126+M129 -> 5998213 | N131: =N37+N54+N63+N70+N79+N87+N94+N109+N116+N126+N129 -> 6187022 | O131: 6106928 | P131: 6171489 | Q131: 5949551 | R131: 207622 | S131: 5600947 | T131: 6078250 | U131: 6019788 | V131: 6030850 | W131: 6078975 | X131: 6310309 | Y131: x

Sheet Driftsutgifter
M2: JAN | N2: FEB | O2: MAR | P2: APR | Q2: MAI | R2: JUN | S2: JUL | T2: AUG | U2: SEP | V2: OKT | W2: NOV | X2: DES
B3: =CONCATENATE(Ramme!C3," - ",Ramme!D3,IF(Ramme!C7>0,CONCATENATE(" (Prosjekt: ",Ramme!C7," ",Ramme!D7,")"),"")) -> 12213 - Marienlyst skole
B4: DRIFTSUTGIFTER | H4: TOTAL | M4: ='Lønn og sosiale'!M4 -> Budsjett 2017
B8: 100-104 KONTORMATERIELL | H8: ( 1000 ) | I8: =COUNTIF(I9:I192,"UGYLDIG ->") -> 0 | J8: Periodisering | AB8: =SUM(AB9:AB203) -> 6
A9: x | B9: 11000 | C9: FORBRUKSMATERIELL, KONTORREKVISITA | H9: 50 | I9: =IF(AB9=1,IF(INDEX(Periodiserings_tabell,MATCH($J9,Periodiserings_koder,0),15)<>1,"UGYLDIG ->",""),"") ->  | J9: 5 | K9: =INDEX(Periodiserings_tabell,MATCH($J9,Periodiserings_koder,0),MATCH("Beskrivelse",Periodiserings_heading,0)) -> Driftsutgifter | M9: =ROUND((($H9*1000)*INDEX(Periodiserings_tabell,MATCH($J9,Periodiserings_koder,0),MATCH(M$2,Periodiserings_heading,0))),0) -> 1152 | N9: 1170 | O9: 3642 | P9: 3398 | Q9: 5014 | R9: 3748 | S9: 1468 | T9: 4042 | U9: 4131 | V9: 5443 | W9: 4901 | X9: 11891 | Y9: =IF(H9<>0,"x","") -> x | AA9: 5 | AB9: =IF(J9<>AA9,1,0) -> 0
A10: x | B10: 11010 | C10: PAPIR TIL KOPIMASK. OG SKRIVERE (UTENFOR SERVICEAVTALE) | I10: =IF(AB10=1,IF(INDEX(Periodiserings_tabell,MATCH($J10,Periodiserings_koder,0),15)<>1,"UGYLDIG ->",""),"") ->  | J10: 5 | K10: =INDEX(Periodiserings_tabell,MATCH($J10,Periodiserings_koder,0),MATCH("Beskrivelse",Periodiserings_heading,0)) -> Driftsutgifter | M10: 0 | N10: 0 | O10: 0 | P10: 0 | Q10: 0 | R10: 0 | S10: 0 | T10: 0 | U10: 0 | V10: 0 | W10: 0 | X10: 0 | Y10: =IF(H10<>0,"x","") ->  | AA10: 5 | AB10: 0
A11: x | B11: 11020 | C11: PAPIRPENGER ELEVER | I11: =IF(AB11=1,IF(INDEX(Periodiserings_tabell,MATCH($J11,Periodiserings_koder,0),15)<>1,"UGYLDIG ->",""),"") ->  | J11: 5 | K11: =INDEX(Periodiserings_tabell,MATCH($J11,Periodiserings_koder,0),MATCH("Beskrivelse",Periodiserings_heading,0)) -> Driftsutgifter | M11: 0 | N11: 0 | O11: 0 | P11: 0 | Q11: 0 | R11: 0 | S11: 0 | T11: 0 | U11: 0 | V11: 0 | W11: 0 | X11: 0 | Y11: =IF(H11<>0,"x","") ->  | AA11: 5 | AB11: 0
A12: x | B12: 11030 | C12: ABONNEMENT TIDSSKRIFTER, KJØP AV FAGLITT./KARTVERK | H12: 10 | I12: =IF(AB12=1,IF(INDEX(Periodiserings_tabell,MATCH($J12,Periodiserings_koder,0),15)<>1,"UGYLDIG ->",""),"") ->  | J12: 5 | K12: =INDEX(Periodiserings_tabell,MATCH($J12,Periodiserings_koder,0),MATCH("Beskrivelse",Periodiserings_heading,0)) -> Driftsutgifter | M12: 230 | N12: 234 | O12: 728 | P12: 680 | Q12: 1003 | R12: 750 | S12: 294 | T12: 808 | U12: 826 | V12: 1089 | W12: 980 | X12: 2378 | Y12: =IF(H12<>0,"x","") -> x | AA12: 5 | AB12: 0
A13: x | B13: 11040 | C13: ANNET KONTORMATERIELL | I13: =IF(AB13=1,IF(INDEX(Periodiserings_tabell,MATCH($J13,Periodiserings_koder,0),15)<>1,"UGYLDIG ->",""),"") ->  | J13: 5 | K13: =INDEX(Periodiserings_tabell,MATCH($J13,Periodiserings_koder,0),MATCH("Beskrivelse",Periodiserings_heading,0)) -> Driftsutgifter | M13: 0 | N13: 0 | O13: 0 | P13: 0 | Q13: 0 | R13: 0 | S13: 0 | T13: 0 | U13: 0 | V13: 0 | W13: 0 | X13: 0 | Y13: =IF(H13<>0,"x","") ->  | AA13: 5 | AB13: 0
B15: 105-109 UNDERVISNINGSMATERIELL | H15: ( 1000 )
A16: x | B16: 11050 | C16: UNDERVISNINGSMAT. SOM ELEVER BRUKER (INKL. KLASSESETT) | H16: 500 | I16: =IF(AB16=1,IF(INDEX(Periodiserings_tabell,MATCH($J16,Periodiserings_koder,0),15)<>1,"UGYLDIG ->",""),"") ->  | J16: 29 | K16: =INDEX(Periodiserings_tabell,MATCH($J16,Periodiserings_koder,0),MATCH("Beskrivelse",Periodiserings_heading,0)) -> kto 11050 | M16: =ROUND((($H16*1000)*INDEX(Periodiserings_tabell,MATCH($J16,Periodiserings_koder,0),MATCH(M$2,Periodiserings_heading,0))),0) -> 70000 | N16: 25000 | O16: 25000 | P16: 25000 | Q16: 25000 | R16: 25000 | S16: 0 | T16: 285000 | U16: 5000 | V16: 5000 | W16: 5000 | X16: 5000 | Y16: =IF(H16<>0,"x","") -> x | AA16: 5 | AB16: 1
A17: x | B17: 11051 | C17: FRITT SKOLEMATERIELL | H17: 90 | J17: 5 | K17: Driftsutgifter | M17: 2074 | N17: 2106 | O17: 6556 | P17: 6117 | Q17: 9026 | R17: 6746 | S17: 2642 | T17: 7276 | U17: 7436 | V17: 9798 | W17: 8822 | X17: 21403 | Y17: x | AA17: 5 | AB17: 0
A18: x | B18: 11052 | C18: LÆREMIDLER KUNNSKAPSLØFTET | J18: 5 | K18: Driftsutgifter | M18: 0 | N18: 0 | O18: 0 | P18: 0 | Q18: 0 | R18: 0 | S18: 0 | T18: 0 | U18: 0 | V18: 0 | W18: 0 | X18: 0 | AA18: 5 | AB18: 0
A19: x | B19: 11053 | C19: GRATIS LÆREMIDLER VG. OPPLÆRING | J19: 5 | K19: Driftsutgifter | M19: 0 | N19: 0 | O19: 0 | P19: 0 | Q19: 0 | R19: 0 | S19: 0 | T19: 0 | U19: 0 | V19: 0 | W19: 0 | X19: 0 | AA19: 5 | AB19: =IF(J19<>AA19,1,0) -> 0
A20: x | B20: 11070 | C20: MAT. TIL SLØYD, TEKST. TIL HÅNDARB. EL. MATVARER TIL BRUK I UNDERV. | H20: 331 | J20: 12 | K20: Lik fordeling | M20: 27583 | N20: 27583 | O20: 27583 | P20: 27583 | Q20: 27583 | R20: 27583 | S20: 27583 | T20: 27583 | U20: 27583 | V20: 27583 | W20: 27583 | X20: 27583 | Y20: x | AA20: 5 | AB20: 1
A21: x | B21: 11080 | C21: BØKER TIL SKOLEBIBLIOTEK | H21: 50 | J21: 5 | K21: Driftsutgifter | M21: 1152 | N21: 1170 | O21: 3642 | P21: 3398 | Q21: 5014 | R21: 3748 | S21: 1468 | T21: 4042 | U21: 4131 | V21: 5443 | W21: 4901 | X21: 11891 | Y21: x | AA21: 5 | AB21: 0
A22: x | B22: 11090 | C22: ANNET SKOLEMATERIELL | H22: 60 | J22: 5 | K22: Driftsutgifter | M22: 1383 | N22: 1404 | O22: 4371 | P22: 4078 | Q22: 6017 | R22: 4497 | S22: 1761 | T22: 4851 | U22: 4957 | V22: 6532 | W22: 5881 | X22: 14269 | Y22: x | AA22: 5 | AB22: 0
B24: 110-114 MEDISINSK FORBRUKSMATERIELL OG MEDISINER | H24: ( 1000 )
A25: x | B25: 11100 | C25: MEDISINSK FORBRUKSMATERIELL | H25: 15 | I25: =IF(AB25=1,IF(INDEX(Periodiserings_tabell,MATCH($J25,Periodiserings_koder,0),15)<>1,"UGYLDIG ->",""),"") ->  | J25: 5 | K25: =INDEX(Periodiserings_tabell,MATCH($J25,Periodiserings_koder,0),MATCH("Beskrivelse",Periodiserings_heading,0)) -> Driftsutgifter | M25: =ROUND((($H25*1000)*INDEX(Periodiserings_tabell,MATCH($J25,Periodiserings_koder,0),MATCH(M$2,Periodiserings_heading,0))),0) -> 346 | N25: 351 | O25: 1093 | P25: 1020 | Q25: 1504 | R25: 1124 | S25: 440 | T25: 1213 | U25: 1239 | V25: 1633 | W25: 1470 | X25: 3567 | Y25: =IF(H25<>0,"x","") -> x | AA25: 5 | AB25: 0
A26: x | B26: 11140 | C26: INNKJØP AV MEDISINER | I26: =IF(AB26=1,IF(INDEX(Periodiserings_tabell,MATCH($J26,Periodiserings_koder,0),15)<>1,"UGYLDIG ->",""),"") ->  | J26: 5 | K26: =INDEX(Periodiserings_tabell,MATCH($J26,Periodiserings_koder,0),MATCH("Beskrivelse",Periodiserings_heading,0)) -> Driftsutgifter | M26: 0 | N26: 0 | O26: 0 | P26: 0 | Q26: 0 | R26: 0 | S26: 0 | T26: 0 | U26: 0 | V26: 0 | W26: 0 | X26: 0 | Y26: =IF(H26<>0,"x","") ->  | AA26: 5 | AB26: 0
B28: 115-119 MATVARER | H28: ( 1000 )
A29: x | B29: 11150 | C29: BEVERTNING/MATSERVERING VED MØTER/KURS | H29: 25 | I29: =IF(AB29=1,IF(INDEX(Periodiserings_tabell,MATCH($J29,Periodiserings_koder,0),15)<>1,"UGYLDIG ->",""),"") ->  | J29: 5 | K29: =INDEX(Periodiserings_tabell,MATCH($J29,Periodiserings_koder,0),MATCH("Beskrivelse",Periodiserings_heading,0)) -> Driftsutgifter | M29: =ROUND((($H29*1000)*INDEX(Periodiserings_tabell,MATCH($J29,Periodiserings_koder,0),MATCH(M$2,Periodiserings_heading,0))),0) -> 576 | N29: 585 | O29: 1821 | P29: 1699 | Q29: 2507 | R29: 1874 | S29: 734 | T29: 2021 | U29: 2066 | V29: 2722 | W29: 2450 | X29: 5945 | Y29: =IF(H29<>0,"x","") -> x | AA29: 5 | AB29: 0
A30: x | B30: 11151 | C30: SKOLEFRUKT OG GRØNT | I30: =IF(AB30=1,IF(INDEX(Periodiserings_tabell,MATCH($J30,Periodiserings_koder,0),15)<>1,"UGYLDIG ->",""),"") ->  | J30: 5 | K30: =INDEX(Periodiserings_tabell,MATCH($J30,Periodiserings_koder,0),MATCH("Beskrivelse",Periodiserings_heading,0)) -> Driftsutgifter | M30: 0 | N30: 0 | O30: 0 | P30: 0 | Q30: 0 | R30: 0 | S30: 0 | T30: 0 | U30: 0 | V30: 0 | W30: 0 | X30: 0 | Y30: =IF(H30<>0,"x","") ->  | AA30: 5 | AB30: =IF(J30<>AA30,1,0) -> 0
A31: x | B31: 11160 | C31: KIOSKVARER/DRIKKEVARER | H31: 60 | I31: =IF(AB31=1,IF(INDEX(Periodiserings_tabell,MATCH($J31,Periodiserings_koder,0),15)<>1,"UGYLDIG ->",""),"") ->  | J31: 5 | K31: =INDEX(Periodiserings_tabell,MATCH($J31,Periodiserings_koder,0),MATCH("Beskrivelse",Periodiserings_heading,0)) -> Driftsutgifter | M31: 1383 | N31: 1404 | O31: 4371 | P31: 4078 | Q31: 6017 | R31: 4497 | S31: 1761 | T31: 4851 | U31: 4957 | V31: 6532 | W31: 5881 | X31: 14269 | Y31: =IF(H31<>0,"x","") -> x | AA31: 5 | AB31: 0
A32: x | B32: 11170 | C32: STORKJØKKENVIRKSOMHET | I32: =IF(AB32=1,IF(INDEX(Periodiserings_tabell,MATCH($J32,Periodiserings_koder,0),15)<>1,"UGYLDIG ->",""),"") ->  | J32: 5 | K32: =INDEX(Periodiserings_tabell,MATCH($J32,Periodiserings_koder,0),MATCH("Beskrivelse",Periodiserings_heading,0)) -> Driftsutgifter | M32: 0 | N32: 0 | O32: 0 | P32: 0 | Q32: 0 | R32: 0 | S32: 0 | T32: 0 | U32: 0 | V32: 0 | W32: 0 | X32: 0 | Y32: =IF(H32<>0,"x","") ->  | AA32: 5 | AB32: 0
A33: x | B33: 11190 | C33: ANDRE MATVARER | H33: 50 | I33: =IF(AB33=1,IF(INDEX(Periodiserings_tabell,MATCH($J33,Periodiserings_koder,0),15)<>1,"UGYLDIG ->",""),"") ->  | J33: 5 | K33: =INDEX(Periodiserings_tabell,MATCH($J33,Periodiserings_koder,0),MATCH("Beskrivelse",Periodiserings_heading,0)) -> Driftsutgifter | M33: 1152 | N33: 1170 | O33: 3642 | P33: 3398 | Q33: 5014 | R33: 3748 | S33: 1468 | T33: 4042 | U33: 4131 | V33: 5443 | W33: 4901 | X33: 11891 | Y33: =IF(H33<>0,"x","") -> x | AA33: 5 | AB33: 0
B35: 120-129 SAMLEPOST ANNET FORBRUKSMATERIELL, RÅVARER OG TJENESTER | H35: ( 1000 )
A36: x | B36: 11200 | C36: VELFERDSTILTAK ANSATTE OG BRUKERE | H36: 80 | I36: =IF(AB36=1,IF(INDEX(Periodiserings_tabell,MATCH($J36,Periodiserings_koder,0),15)<>1,"UGYLDIG ->",""),"") ->  | J36: 5 | K36: =INDEX(Periodiserings_tabell,MATCH($J36,Periodiserings_koder,0),MATCH("Beskrivelse",Periodiserings_heading,0)) -> Driftsutgifter | M36: =ROUND((($H36*1000)*INDEX(Periodiserings_tabell,MATCH($J36,Periodiserings_koder,0),MATCH(M$2,Periodiserings_heading,0))),0) -> 1844 | N36: 1872 | O36: 5828 | P36: 5437 | Q36: 8023 | R36: 5996 | S36: 2348 | T36: 6467 | U36: 6610 | V36: 8709 | W36: 7841 | X36: 19025 | Y36: =IF(H36<>0,"x","") -> x | AA36: 5 | AB36: 0
A37: x | B37: 11210 | C37: ANNET FORBRUKSMATERIELL, FORBRUKSVARER | J37: 5 | K37: Driftsutgifter | M37: 0 | N37: 0 | O37: 0 | P37: 0 | Q37: 0 | R37: 0 | S37: 0 | T37: 0 | U37: 0 | V37: 0 | W37: 0 | X37: 0 | AA37: 5 | AB37: 0
A38: x | B38: 11213 | C38: DRIFTSMATERIELL TIL DRIFT AV BYGG | I38: =IF(AB38=1,IF(INDEX(Periodiserings_tabell,MATCH($J38,Periodiserings_koder,0),15)<>1,"UGYLDIG ->",""),"") ->  | J38: 5 | K38: Driftsutgifter | M38: 0 | N38: 0 | O38: 0 | P38: 0 | Q38: 0 | R38: 0 | S38: 0 | T38: 0 | U38: 0 | V38: 0 | W38: 0 | X38: 0 | Y38: =IF(H38<>0,"x","") ->  | AA38: 5 | AB38: =IF(J38<>AA38,1,0) -> 0
A39: x | B39: 11214 | C39: MATERIALER TIL VEDLIKEHOLD AV MASKINER, UTSTYR OG INVENTAR | I39: =IF(AB39=1,IF(INDEX(Periodiserings_tabell,MATCH($J39,Periodiserings_koder,0),15)<>1,"UGYLDIG ->",""),"") ->  | J39: 5 | K39: Driftsutgifter | M39: 0 | N39: 0 | O39: 0 | P39: 0 | Q39: 0 | R39: 0 | S39: 0 | T39: 0 | U39: 0 | V39: 0 | W39: 0 | X39: 0 | Y39: =IF(H39<>0,"x","") ->  | AA39: 5 | AB39: =IF(J39<>AA39,1,0) -> 0
A40: x | B40: 11250 | C40: RENHOLDSARTIKLER | J40: 5 | K40: Driftsutgifter | M40: 0 | N40: 0 | O40: 0 | P40: 0 | Q40: 0 | R40: 0 | S40: 0 | T40: 0 | U40: 0 | V40: 0 | W40: 0 | X40: 0 | AA40: 5 | AB40: 0
A41: x | B41: 11260 | C41: SKYSSUTGIFTER OG ANNEN UTGIFTSDEKNING TIL EGNE ANSATTE | H41: 70 | J41: 5 | K41: Driftsutgifter | M41: 1613 | N41: 1638 | O41: 5099 | P41: 4758 | Q41: 7020 | R41: 5247 | S41: 2055 | T41: 5659 | U41: 5784 | V41: 7620 | W41: 6861 | X41: 16647 | Y41: x | AA41: 5 | AB41: 0
A42: x | B42: 11270 | C42: UTGIFTSDEKNING TIL EKSTERNE (IKKE OPPLYSNINGSPLIKTIG) | J42: 5 | K42: Driftsutgifter | M42: 0 | N42: 0 | O42: 0 | P42: 0 | Q42: 0 | R42: 0 | S42: 0 | T42: 0 | U42: 0 | V42: 0 | W42: 0 | X42: 0 | AA42: 5 | AB42: 0
A43: x | B43: 11290 | C43: SVØMMEOPPLÆRING | J43: 5 | K43: Driftsutgifter | M43: 0 | N43: 0 | O43: 0 | P43: 0 | Q43: 0 | R43: 0 | S43: 0 | T43: 0 | U43: 0 | V43: 0 | W43: 0 | X43: 0 | AA43: 5 | AB43: 0
A44: x | B44: 11291 | C44: LEIRSKOLEOPPHOLD | H44: 100 | J44: 5 | K44: Driftsutgifter | M44: 2305 | N44: 2340 | O44: 7285 | P44: 6797 | Q44: 10028 | R44: 7495 | S44: 2935 | T44: 8084 | U44: 8262 | V44: 10886 | W44: 9802 | X44: 23781 | Y44: x | AA44: 5 | AB44: 0
A45: x | B45: 11292 | C45: EKSKURSJONER | H45: 50 | J45: 5 | K45: Driftsutgifter | M45: 1152 | N45: 1170 | O45: 3642 | P45: 3398 | Q45: 5014 | R45: 3748 | S45: 1468 | T45: 4042 | U45: 4131 | V45: 5443 | W45: 4901 | X45: 11891 | Y45: x | AA45: 5 | AB45: 0
A46: x | B46: 11293 | C46: KULTUR/IDRETTSSTEVNER | H46: 2 | J46: 5 | K46: Driftsutgifter | M46: 46 | N46: 47 | O46: 146 | P46: 136 | Q46: 201 | R46: 150 | S46: 59 | T46: 162 | U46: 165 | V46: 218 | W46: 196 | X46: 476 | Y46: x | AA46: 5 | AB46: 0
A47: x | B47: 11295 | C47: ANDRE TJENESTER | J47: 5 | K47: Driftsutgifter | M47: 0 | N47: 0 | O47: 0 | P47: 0 | Q47: 0 | R47: 0 | S47: 0 | T47: 0 | U47: 0 | V47: 0 | W47: 0 | X47: 0 | AA47: 5 | AB47: 0
A48: x | B48: 11297 | C48: JUSTERING VED ELEVTELLING | H48: 0 | I48: =IF(AB48=1,IF(INDEX(Periodiserings_tabell,MATCH($J48,Periodiserings_koder,0),15)<>1,"UGYLDIG ->",""),"") ->  | J48: 21 | K48: Just. elevtelling | M48: 0 | N48: 0 | O48: 0 | P48: 0 | Q48: 0 | R48: 0 | S48: 0 | T48: 0 | U48: 0 | V48: 0 | W48: 0 | X48: 0 | Y48: =IF(H48<>0,"x","") ->  | AA48: 21 | AB48: =IF(J48<>AA48,1,0) -> 0
A49: x | B49: 11298 | C49: OVERFØRING AV MERFORBRUK (Legges inn som positivt tall) | H49: 1458 | I49: =IF(H49<0,"FEIL","") ->  | J49: 11 | K49: Merforbr. 2016 | M49: 0 | N49: 0 | O49: 1458000 | P49: 0 | Q49: 0 | R49: 0 | S49: 0 | T49: 0 | U49: 0 | V49: 0 | W49: 0 | X49: 0 | Y49: x | AA49: 11 | AB49: 0
B51: 130-139 POST, BANKTJENESTER, TELEFON | H51: ( 1000 )
A52: x | B52: 11300 | C52: POSTFORSENDELSER, FRANKERINGSUTGIFTER, FRIMERKER | H52: 35 | I52: =IF(AB52=1,IF(INDEX(Periodiserings_tabell,MATCH($J52,Periodiserings_koder,0),15)<>1,"UGYLDIG ->",""),"") ->  | J52: 5 | K52: =INDEX(Periodiserings_tabell,MATCH($J52,Periodiserings_koder,0),MATCH("Beskrivelse",Periodiserings_heading,0)) -> Driftsutgifter | M52: =ROUND((($H52*1000)*INDEX(Periodiserings_tabell,MATCH($J52,Periodiserings_koder,0),MATCH(M$2,Periodiserings_heading,0))),0) -> 807 | N52: 819 | O52: 2550 | P52: 2379 | Q52: 3510 | R52: 2623 | S52: 1027 | T52: 2829 | U52: 2892 | V52: 3810 | W52: 3431 | X52: 8323 | Y52: =IF(H52<>0,"x","") -> x | AA52: 5 | AB52: 0
A53: x | B53: 11310 | C53: ABONNEMENTSAVGIFT TELEFON OG TELEFAX | H53: 15 | J53: 5 | K53: Driftsutgifter | M53: 346 | N53: 351 | O53: 1093 | P53: 1020 | Q53: 1504 | R53: 1124 | S53: 440 | T53: 1213 | U53: 1239 | V53: 1633 | W53: 1470 | X53: 3567 | Y53: x | AA53: 5 | AB53: 0
A54: x | B54: 11320 | C54: SAMTALEAVGIFT TELEFON OG TELEFAX | J54: 5 | K54: Driftsutgifter | M54: 0 | N54: 0 | O54: 0 | P54: 0 | Q54: 0 | R54: 0 | S54: 0 | T54: 0 | U54: 0 | V54: 0 | W54: 0 | X54: 0 | AA54: 5 | AB54: 0
A55: x | B55: 11330 | C55: ABONNEMENTSAVGIFT MOBILTELEFON OG PERSONSØKER | J55: 5 | K55: Driftsutgifter | M55: 0 | N55: 0 | O55: 0 | P55: 0 | Q55: 0 | R55: 0 | S55: 0 | T55: 0 | U55: 0 | V55: 0 | W55: 0 | X55: 0 | AA55: 5 | AB55: 0
A56: x | B56: 11340 | C56: SAMTALEAVGIFT MOBILTELEFON OG PERSONSØKER | H56: 25 | J56: 5 | K56: Driftsutgifter | M56: 576 | N56: 585 | O56: 1821 | P56: 1699 | Q56: 2507 | R56: 1874 | S56: 734 | T56: 2021 | U56: 2066 | V56: 2722 | W56: 2450 | X56: 5945 | Y56: x | AA56: 5 | AB56: 0
A57: x | B57: 11370 | C57: DATAKOMM., LINJELEIE, SAMBANDSLEIE, INTERNETT | J57: 5 | K57: Driftsutgifter | M57: 0 | N57: 0 | O57: 0 | P57: 0 | Q57: 0 | R57: 0 | S57: 0 | T57: 0 | U57: 0 | V57: 0 | W57: 0 | X57: 0 | AA57: 5 | AB57: 0
B59: 140-149 ANNONSE, REKLAME, INFORMASJON | H59: ( 1000 )
A60: x | B60: 11400 | C60: STILLINGSANNONSER | I60: =IF(AB60=1,IF(INDEX(Periodiserings_tabell,MATCH($J60,Periodiserings_koder,0),15)<>1,"UGYLDIG ->",""),"") ->  | J60: 5 | K60: =INDEX(Periodiserings_tabell,MATCH($J60,Periodiserings_koder,0),MATCH("Beskrivelse",Periodiserings_heading,0)) -> Driftsutgifter | M60: =ROUND((($H60*1000)*INDEX(Periodiserings_tabell,MATCH($J60,Periodiserings_koder,0),MATCH(M$2,Periodiserings_heading,0))),0) -> 0 | N60: 0 | O60: 0 | P60: 0 | Q60: 0 | R60: 0 | S60: 0 | T60: 0 | U60: 0 | V60: 0 | W60: 0 | X60: 0 | Y60: =IF(H60<>0,"x","") ->  | AA60: 5 | AB60: 0
A61: x | B61: 11410 | C61: ANDRE TYPER ANNONSER | J61: 5 | K61: Driftsutgifter | M61: 0 | N61: 0 | O61: 0 | P61: 0 | Q61: 0 | R61: 0 | S61: 0 | T61: 0 | U61: 0 | V61: 0 | W61: 0 | X61: 0 | AA61: 5 | AB61: 0
A62: x | B62: 11430 | C62: INFORMASJONSUTGIFTER | J62: 5 | K62: Driftsutgifter | M62: 0 | N62: 0 | O62: 0 | P62: 0 | Q62: 0 | R62: 0 | S62: 0 | T62: 0 | U62: 0 | V62: 0 | W62: 0 | X62: 0 | AA62: 5 | AB62: 0
A63: x | B63: 11440 | C63: TRYKKING, KOPIERING | J63: 5 | K63: Driftsutgifter | M63: 0 | N63: 0 | O63: 0 | P63: 0 | Q63: 0 | R63: 0 | S63: 0 | T63: 0 | U63: 0 | V63: 0 | W63: 0 | X63: 0 | AA63: 5 | AB63: 0
A64: x | B64: 11450 | C64: REKLAMEUTGIFTER | J64: 5 | K64: Driftsutgifter | M64: 0 | N64: 0 | O64: 0 | P64: 0 | Q64: 0 | R64: 0 | S64: 0 | T64: 0 | U64: 0 | V64: 0 | W64: 0 | X64: 0 | AA64: 5 | AB64: 0
A65: x | B65: 11470 | C65: REPRESENTASJON OG GAVER VED REPRESENTASJON | J65: 5 | K65: Driftsutgifter | M65: 0 | N65: 0 | O65: 0 | P65: 0 | Q65: 0 | R65: 0 | S65: 0 | T65: 0 | U65: 0 | V65: 0 | W65: 0 | X65: 0 | AA65: 5 | AB65: 0
A66: x | B66: 11480 | C66: ANNET VEDR. ANNONSER, REKLAME, INFORMASJON | J66: 5 | K66: Driftsutgifter | M66: 0 | N66: 0 | O66: 0 | P66: 0 | Q66: 0 | R66: 0 | S66: 0 | T66: 0 | U66: 0 | V66: 0 | W66: 0 | X66: 0 | AA66: 5 | AB66: 0
B68: 150-159 OPPLÆRING, KURS | H68: ( 1000 )
A69: x | B69: 11510 | C69: UTGIFTER TIL FORELESER/KURSHOLDER | H69: 20 | I69: =IF(AB69=1,IF(INDEX(Periodiserings_tabell,MATCH($J69,Periodiserings_koder,0),15)<>1,"UGYLDIG ->",""),"") ->  | J69: 5 | K69: =INDEX(Periodiserings_tabell,MATCH($J69,Periodiserings_koder,0),MATCH("Beskrivelse",Periodiserings_heading,0)) -> Driftsutgifter | M69: =ROUND((($H69*1000)*INDEX(Periodiserings_tabell,MATCH($J69,Periodiserings_koder,0),MATCH(M$2,Periodiserings_heading,0))),0) -> 461 | N69: 468 | O69: 1457 | P69: 1359 | Q69: 2006 | R69: 1499 | S69: 587 | T69: 1617 | U69: 1652 | V69: 2177 | W69: 1960 | X69: 4756 | Y69: =IF(H69<>0,"x","") -> x | AA69: 5 | AB69: 0
A70: x | B70: 11520 | C70: OPPLÆRINGSTILTAK FOR ANSATTE | H70: 5 | I70: =IF(AB70=1,IF(INDEX(Periodiserings_tabell,MATCH($J70,Periodiserings_koder,0),15)<>1,"UGYLDIG ->",""),"") ->  | J70: 5 | K70: =INDEX(Periodiserings_tabell,MATCH($J70,Periodiserings_koder,0),MATCH("Beskrivelse",Periodiserings_heading,0)) -> Driftsutgifter | M70: 115 | N70: 117 | O70: 364 | P70: 340 | Q70: 501 | R70: 375 | S70: 147 | T70: 404 | U70: 413 | V70: 544 | W70: 490 | X70: 1189 | Y70: =IF(H70<>0,"x","") -> x | AA70: 5 | AB70: 0
A71: x | B71: 11540 | C71: KURSAVGIFTER | H71: 15 | I71: =IF(AB71=1,IF(INDEX(Periodiserings_tabell,MATCH($J71,Periodiserings_koder,0),15)<>1,"UGYLDIG ->",""),"") ->  | J71: 5 | K71: =INDEX(Periodiserings_tabell,MATCH($J71,Periodiserings_koder,0),MATCH("Beskrivelse",Periodiserings_heading,0)) -> Driftsutgifter | M71: 346 | N71: 351 | O71: 1093 | P71: 1020 | Q71: 1504 | R71: 1124 | S71: 440 | T71: 1213 | U71: 1239 | V71: 1633 | W71: 1470 | X71: 3567 | Y71: =IF(H71<>0,"x","") -> x | AA71: 5 | AB71: 0
A72: x | B72: 11560 | C72: ANNET VEDR. OPPLÆRING/KURS | I72: =IF(AB72=1,IF(INDEX(Periodiserings_tabell,MATCH($J72,Periodiserings_koder,0),15)<>1,"UGYLDIG ->",""),"") ->  | J72: 5 | K72: =INDEX(Periodiserings_tabell,MATCH($J72,Periodiserings_koder,0),MATCH("Beskrivelse",Periodiserings_heading,0)) -> Driftsutgifter | M72: 0 | N72: 0 | O72: 0 | P72: 0 | Q72: 0 | R72: 0 | S72: 0 | T72: 0 | U72: 0 | V72: 0 | W72: 0 | X72: 0 | Y72: =IF(H72<>0,"x","") ->  | AA72: 5 | AB72: 0
B74: 160-164 OPPGAVEPL. UTGIFTER OG GODTJGØRELSER FOR REISER, DIETT, BIL MV. | H74: ( 1000 )
A75: x | B75: 11600 | C75: AVGIFTSPLIKTIG BILGODTGJØRELSE (OSLO-TILLEGGET) | I75: =IF(AB75=1,IF(INDEX(Periodiserings_tabell,MATCH($J75,Periodiserings_koder,0),15)<>1,"UGYLDIG ->",""),"") ->  | J75: 5 | K75: =INDEX(Periodiserings_tabell,MATCH($J75,Periodiserings_koder,0),MATCH("Beskrivelse",Periodiserings_heading,0)) -> Driftsutgifter | M75: =ROUND((($H75*1000)*INDEX(Periodiserings_tabell,MATCH($J75,Periodiserings_koder,0),MATCH(M$2,Periodiserings_heading,0))),0) -> 0 | N75: 0 | O75: 0 | P75: 0 | Q75: 0 | R75: 0 | S75: 0 | T75: 0 | U75: 0 | V75: 0 | W75: 0 | X75: 0 | Y75: =IF(H75<>0,"x","") ->  | AA75: 5 | AB75: 0
A76: x | B76: 11610 | C76: AVGIFTSFRI OPPLYSNINGSPLIKTIG BILGODTGJØRELSE | I76: =IF(AB76=1,IF(INDEX(Periodiserings_tabell,MATCH($J76,Periodiserings_koder,0),15)<>1,"UGYLDIG ->",""),"") ->  | J76: 5 | K76: =INDEX(Periodiserings_tabell,MATCH($J76,Periodiserings_koder,0),MATCH("Beskrivelse",Periodiserings_heading,0)) -> Driftsutgifter | M76: 0 | N76: 0 | O76: 0 | P76: 0 | Q76: 0 | R76: 0 | S76: 0 | T76: 0 | U76: 0 | V76: 0 | W76: 0 | X76: 0 | Y76: =IF(H76<>0,"x","") ->  | AA76: 5 | AB76: 0
A77: x | B77: 11620 | C77: REISEGODTGJØRELSE VED F.EKS KURS OG OPPLÆRING (AVG.FRI) | I77: =IF(AB77=1,IF(INDEX(Periodiserings_tabell,MATCH($J77,Periodiserings_koder,0),15)<>1,"UGYLDIG ->",""),"") ->  | J77: 5 | K77: =INDEX(Periodiserings_tabell,MATCH($J77,Periodiserings_koder,0),MATCH("Beskrivelse",Periodiserings_heading,0)) -> Driftsutgifter | M77: 0 | N77: 0 | O77: 0 | P77: 0 | Q77: 0 | R77: 0 | S77: 0 | T77: 0 | U77: 0 | V77: 0 | W77: 0 | X77: 0 | Y77: =IF(H77<>0,"x","") ->  | AA77: 5 | AB77: 0
A78: x | B78: 11630 | C78: KOSTGODTGJØRELSE/DIETT (AVGIFTSFRI, OPPLYSNINGSPLIKTIG) | H78: 20 | I78: =IF(AB78=1,IF(INDEX(Periodiserings_tabell,MATCH($J78,Periodiserings_koder,0),15)<>1,"UGYLDIG ->",""),"") ->  | J78: 27 | K78: =INDEX(Periodiserings_tabell,MATCH($J78,Periodiserings_koder,0),MATCH("Beskrivelse",Periodiserings_heading,0)) -> annet | M78: 1910 | N78: 1910 | O78: 1910 | P78: 1910 | Q78: 1840 | R78: -272 | S78: 1642 | T78: 1830 | U78: 1830 | V78: 1830 | W78: 1830 | X78: 1830 | Y78: =IF(H78<>0,"x","") -> x | AA78: 5 | AB78: =IF(J78<>AA78,1,0) -> 1
A79: x | B79: 11640 | C79: ANDRE OPPLYSNINGSPL. YTELSER FOR REISER, DIETT, BIL MV. | I79: =IF(AB79=1,IF(INDEX(Periodiserings_tabell,MATCH($J79,Periodiserings_koder,0),15)<>1,"UGYLDIG ->",""),"") ->  | J79: 5 | K79: =INDEX(Periodiserings_tabell,MATCH($J79,Periodiserings_koder,0),MATCH("Beskrivelse",Periodiserings_heading,0)) -> Driftsutgifter | M79: 0 | N79: 0 | O79: 0 | P79: 0 | Q79: 0 | R79: 0 | S79: 0 | T79: 0 | U79: 0 | V79: 0 | W79: 0 | X79: 0 | Y79: =IF(H79<>0,"x","") ->  | AA79: 5 | AB79: 0
B81: 165-169 ANDRE OPPLYSNINGSPLIKTIGE GODTGJØRELSER | H81: ( 1000 )
A82: x | B82: 11650 | C82: AVG.PLIKTIGE YTELSER (FRI AVIS, FRI TELEFON, ARBEIDSTØY OL.) | H82: 20 | I82: =IF(AB82=1,IF(INDEX(Periodiserings_tabell,MATCH($J82,Periodiserings_koder,0),15)<>1,"UGYLDIG ->",""),"") ->  | J82: 5 | K82: =INDEX(Periodiserings_tabell,MATCH($J82,Periodiserings_koder,0),MATCH("Beskrivelse",Periodiserings_heading,0)) -> Driftsutgifter | M82: =ROUND((($H82*1000)*INDEX(Periodiserings_tabell,MATCH($J82,Periodiserings_koder,0),MATCH(M$2,Periodiserings_heading,0))),0) -> 461 | N82: 468 | O82: 1457 | P82: 1359 | Q82: 2006 | R82: 1499 | S82: 587 | T82: 1617 | U82: 1652 | V82: 2177 | W82: 1960 | X82: 4756 | Y82: =IF(H82<>0,"x","") -> x | AA82: 5 | AB82: 0
A83: x | B83: 11670 | C83: STIPENDIER SOM IKKE ER TREKKPLIKTIGE | I83: =IF(AB83=1,IF(INDEX(Periodiserings_tabell,MATCH($J83,Periodiserings_koder,0),15)<>1,"UGYLDIG ->",""),"") ->  | J83: 5 | K83: =INDEX(Periodiserings_tabell,MATCH($J83,Periodiserings_koder,0),MATCH("Beskrivelse",Periodiserings_heading,0)) -> Driftsutgifter | M83: 0 | N83: 0 | O83: 0 | P83: 0 | Q83: 0 | R83: 0 | S83: 0 | T83: 0 | U83: 0 | V83: 0 | W83: 0 | X83: 0 | Y83: =IF(H83<>0,"x","") ->  | AA83: 5 | AB83: 0
A84: x | B84: 11680 | C84: KONSULENTHONORAR SOM ER OPPLYSNINGSPLIKTIGE | I84: =IF(AB84=1,IF(INDEX(Periodiserings_tabell,MATCH($J84,Periodiserings_koder,0),15)<>1,"UGYLDIG ->",""),"") ->  | J84: 5 | K84: =INDEX(Periodiserings_tabell,MATCH($J84,Periodiserings_koder,0),MATCH("Beskrivelse",Periodiserings_heading,0)) -> Driftsutgifter | M84: 0 | N84: 0 | O84: 0 | P84: 0 | Q84: 0 | R84: 0 | S84: 0 | T84: 0 | U84: 0 | V84: 0 | W84: 0 | X84: 0 | Y84: =IF(H84<>0,"x","") ->  | AA84: 5 | AB84: 0
A85: x | B85: 11690 | C85: AVGIFTSFRIE GODTGJØRELSER (HERUNDER TELEFON) | I85: =IF(AB85=1,IF(INDEX(Periodiserings_tabell,MATCH($J85,Periodiserings_koder,0),15)<>1,"UGYLDIG ->",""),"") ->  | J85: 5 | K85: =INDEX(Periodiserings_tabell,MATCH($J85,Periodiserings_koder,0),MATCH("Beskrivelse",Periodiserings_heading,0)) -> Driftsutgifter | M85: 0 | N85: 0 | O85: 0 | P85: 0 | Q85: 0 | R85: 0 | S85: 0 | T85: 0 | U85: 0 | V85: 0 | W85: 0 | X85: 0 | Y85: =IF(H85<>0,"x","") ->  | AA85: 5 | AB85: 0
B87: 170-179 TRANSPORT / DRIFT AV EGNE TRANSPORTMIDLER | H87: ( 1000 )
A88: x | B88: 11700 | C88: DRIVSTOFF EGNE TRANSPORTMIDLER | I88: =IF(AB88=1,IF(INDEX(Periodiserings_tabell,MATCH($J88,Periodiserings_koder,0),15)<>1,"UGYLDIG ->",""),"") ->  | J88: 5 | K88: =INDEX(Periodiserings_tabell,MATCH($J88,Periodiserings_koder,0),MATCH("Beskrivelse",Periodiserings_heading,0)) -> Driftsutgifter | M88: =ROUND((($H88*1000)*INDEX(Periodiserings_tabell,MATCH($J88,Periodiserings_koder,0),MATCH(M$2,Periodiserings_heading,0))),0) -> 0 | N88: 0 | O88: 0 | P88: 0 | Q88: 0 | R88: 0 | S88: 0 | T88: 0 | U88: 0 | V88: 0 | W88: 0 | X88: 0 | Y88: =IF(H88<>0,"x","") ->  | AA88: 5 | AB88: 0
A89: x | B89: 11711 | C89: ÅRSAVGIFTER EGNE TRANSPORTMIDLER | J89: 5 | K89: Driftsutgifter | M89: 0 | N89: 0 | O89: 0 | P89: 0 | Q89: 0 | R89: 0 | S89: 0 | T89: 0 | U89: 0 | V89: 0 | W89: 0 | X89: 0 | AA89: 5 | AB89: 0
A90: x | B90: 11712 | C90: FORSIKRINGER EGNE TRANSPORTMIDLER | J90: 5 | K90: Driftsutgifter | M90: 0 | N90: 0 | O90: 0 | P90: 0 | Q90: 0 | R90: 0 | S90: 0 | T90: 0 | U90: 0 | V90: 0 | W90: 0 | X90: 0 | AA90: 5 | AB90: 0
A91: x | B91: 11719 | C91: ANDRE DRIFTSUTGIFTER VED EGNE TRANSPORTMIDLER | J91: 5 | K91: Driftsutgifter | M91: 0 | N91: 0 | O91: 0 | P91: 0 | Q91: 0 | R91: 0 | S91: 0 | T91: 0 | U91: 0 | V91: 0 | W91: 0 | X91: 0 | AA91: 5 | AB91: 0
A92: x | B92: 11720 | C92: VEDLIKEHOLD/SERVICE AV TRANSPORTMIDLER | J92: 5 | K92: Driftsutgifter | M92: 0 | N92: 0 | O92: 0 | P92: 0 | Q92: 0 | R92: 0 | S92: 0 | T92: 0 | U92: 0 | V92: 0 | W92: 0 | X92: 0 | AA92: 5 | AB92: 0
A93: x | B93: 11730 | C93: DROSJEUTGIFTER ELEVER TIL/FRA SKOLE | J93: 22 | K93: Skyss | M93: 0 | N93: 0 | O93: 0 | P93: 0 | Q93: 0 | R93: 0 | S93: 0 | T93: 0 | U93: 0 | V93: 0 | W93: 0 | X93: 0 | AA93: 22 | AB93: 0
A94: x | B94: 11731 | C94: ANDRE SKYSSUTGIFTER ELEVER TIL/FRA SKOLE | J94: 22 | K94: Skyss | M94: 0 | N94: 0 | O94: 0 | P94: 0 | Q94: 0 | R94: 0 | S94: 0 | T94: 0 | U94: 0 | V94: 0 | W94: 0 | X94: 0 | AA94: 22 | AB94: 0
A95: x | B95: 11732 | C95: TRANSPORT VED SVØMMEOPPLÆRING | J95: 5 | K95: Driftsutgifter | M95: 0 | N95: 0 | O95: 0 | P95: 0 | Q95: 0 | R95: 0 | S95: 0 | T95: 0 | U95: 0 | V95: 0 | W95: 0 | X95: 0 | AA95: 5 | AB95: 0
A96: x | B96: 11733 | C96: TRANSPORT VED LEIRSKOLEOPPHOLD | J96: 5 | K96: Driftsutgifter | M96: 0 | N96: 0 | O96: 0 | P96: 0 | Q96: 0 | R96: 0 | S96: 0 | T96: 0 | U96: 0 | V96: 0 | W96: 0 | X96: 0 | AA96: 5 | AB96: 0
A97: x | B97: 11734 | C97: TRANSPORTUTGIFTER TIL KULTUR/IDRETTSSTEVNER | H97: 40 | J97: 5 | K97: Driftsutgifter | M97: 922 | N97: 936 | O97: 2914 | P97: 2719 | Q97: 4011 | R97: 2998 | S97: 1174 | T97: 3234 | U97: 3305 | V97: 4354 | W97: 3921 | X97: 9512 | Y97: x | AA97: 5 | AB97: 0
A98: x | B98: 11735 | C98: TRANSPORTUTGIFTER VED ANDRE EKSKURSJONER | H98: 70 | J98: 5 | K98: Driftsutgifter | M98: 1613 | N98: 1638 | O98: 5099 | P98: 4758 | Q98: 7020 | R98: 5247 | S98: 2055 | T98: 5659 | U98: 5784 | V98: 7620 | W98: 6861 | X98: 16647 | Y98: x | AA98: 5 | AB98: 0
A99: x | B99: 11736 | C99: TT-KJØRING ELEVER TIL/FRA SKOLE | J99: 5 | K99: Driftsutgifter | M99: 0 | N99: 0 | O99: 0 | P99: 0 | Q99: 0 | R99: 0 | S99: 0 | T99: 0 | U99: 0 | V99: 0 | W99: 0 | X99: 0 | AA99: 5 | AB99: 0
A100: x | B100: 11750 | C100: REISEUTGIFTER, IKKE OPPLYSNINGSPLIKTIG | J100: 5 | K100: Driftsutgifter | M100: 0 | N100: 0 | O100: 0 | P100: 0 | Q100: 0 | R100: 0 | S100: 0 | T100: 0 | U100: 0 | V100: 0 | W100: 0 | X100: 0 | AA100: 5 | AB100: 0
A101: x | B101: 11760 | C101: DROSJEUTGIFTER VED MØTER OG LIGNENDE | H101: 10 | J101: 5 | K101: Driftsutgifter | M101: 230 | N101: 234 | O101: 728 | P101: 680 | Q101: 1003 | R101: 750 | S101: 294 | T101: 808 | U101: 826 | V101: 1089 | W101: 980 | X101: 2378 | Y101: x | AA101: 5 | AB101: 0
A102: x | B102: 11770 | C102: KORTTIDSLEIE AV TRANSPORTMIDLER | J102: 5 | K102: Driftsutgifter | M102: 0 | N102: 0 | O102: 0 | P102: 0 | Q102: 0 | R102: 0 | S102: 0 | T102: 0 | U102: 0 | V102: 0 | W102: 0 | X102: 0 | AA102: 5 | AB102: 0
A103: x | B103: 11780 | C103: ANNET VEDR. TRANSPORT/DRIFT AV EGNE TRANSPORTMIDLER | J103: 5 | K103: Driftsutgifter | M103: 0 | N103: 0 | O103: 0 | P103: 0 | Q103: 0 | R103: 0 | S103: 0 | T103: 0 | U103: 0 | V103: 0 | W103: 0 | X103: 0 | AA103: 5 | AB103: 0
B105: 180-184 ENERGI (ikke til Undervisningsbygg) | H105: ( 1000 )
A106: x | B106: 11800 | C106: STRØM | I106: =IF(AB106=1,IF(INDEX(Periodiserings_tabell,MATCH($J106,Periodiserings_koder,0),15)<>1,"UGYLDIG ->",""),"") ->  | J106: 5 | K106: =INDEX(Periodiserings_tabell,MATCH($J106,Periodiserings_koder,0),MATCH("Beskrivelse",Periodiserings_heading,0)) -> Driftsutgifter | M106: =ROUND((($H106*1000)*INDEX(Periodiserings_tabell,MATCH($J106,Periodiserings_koder,0),MATCH(M$2,Periodiserings_heading,0))),0) -> 0 | N106: 0 | O106: 0 | P106: 0 | Q106: 0 | R106: 0 | S106: 0 | T106: 0 | U106: 0 | V106: 0 | W106: 0 | X106: 0 | Y106: =IF(H106<>0,"x","") ->  | AA106: 5 | AB106: 0
A107: x | B107: 11810 | C107: FJERNVARME | J107: 5 | K107: Driftsutgifter | M107: 0 | N107: 0 | O107: 0 | P107: 0 | Q107: 0 | R107: 0 | S107: 0 | T107: 0 | U107: 0 | V107: 0 | W107: 0 | X107: 0 | AA107: 5 | AB107: 0
A108: x | B108: 11820 | C108: FYRINGSOLJE OG FYRINGSPARAFIN | J108: 5 | K108: Driftsutgifter | M108: 0 | N108: 0 | O108: 0 | P108: 0 | Q108: 0 | R108: 0 | S108: 0 | T108: 0 | U108: 0 | V108: 0 | W108: 0 | X108: 0 | AA108: 5 | AB108: 0
A109: x | B109: 11830 | C109: NATURGASS | I109: =IF(AB109=1,IF(INDEX(Periodiserings_tabell,MATCH($J109,Periodiserings_koder,0),15)<>1,"UGYLDIG ->",""),"") ->  | J109: 5 | K109: Driftsutgifter | M109: 0 | N109: 0 | O109: 0 | P109: 0 | Q109: 0 | R109: 0 | S109: 0 | T109: 0 | U109: 0 | V109: 0 | W109: 0 | X109: 0 | Y109: =IF(H109<>0,"x","") ->  | AA109: 5 | AB109: =IF(J109<>AA109,1,0) -> 0
A110: x | B110: 11840 | C110: BIOENERGI | J110: 5 | K110: Driftsutgifter | M110: 0 | N110: 0 | O110: 0 | P110: 0 | Q110: 0 | R110: 0 | S110: 0 | T110: 0 | U110: 0 | V110: 0 | W110: 0 | X110: 0 | AA110: 5 | AB110: =IF(J110<>AA110,1,0) -> 0
B112: 185-189 FORSIKRINGER, VAKTTJENESTER | H112: ( 1000 )
A113: x | B113: 11851 | C113: YRKESSKADEFORSIKRING | H113: -150 | I113: =IF(AB113=1,IF(INDEX(Periodiserings_tabell,MATCH($J113,Periodiserings_koder,0),15)<>1,"UGYLDIG ->",""),"") ->  | J113: 27 | K113: =INDEX(Periodiserings_tabell,MATCH($J113,Periodiserings_koder,0),MATCH("Beskrivelse",Periodiserings_heading,0)) -> annet | M113: =ROUND((($H113*1000)*INDEX(Periodiserings_tabell,MATCH($J113,Periodiserings_koder,0),MATCH(M$2,Periodiserings_heading,0))),0) -> -14325 | N113: -14325 | O113: -14325 | P113: -14325 | Q113: -13800 | R113: 2040 | S113: -12315 | T113: -13725 | U113: -13725 | V113: -13725 | W113: -13725 | X113: -13725 | Y113: =IF(H113<>0,"x","") -> x | AA113: 5 | AB113: 1
A114: x | B114: 11870 | C114: FORSIKRING AV BYGNINGER, ANLEGG, EIENDOMMER, MASKINER | I114: =IF(AB114=1,IF(INDEX(Periodiserings_tabell,MATCH($J114,Periodiserings_koder,0),15)<>1,"UGYLDIG ->",""),"") ->  | J114: 5 | K114: =INDEX(Periodiserings_tabell,MATCH($J114,Periodiserings_koder,0),MATCH("Beskrivelse",Periodiserings_heading,0)) -> Driftsutgifter | M114: 0 | N114: 0 | O114: 0 | P114: 0 | Q114: 0 | R114: 0 | S114: 0 | T114: 0 | U114: 0 | V114: 0 | W114: 0 | X114: 0 | Y114: =IF(H114<>0,"x","") ->  | AA114: 5 | AB114: 0
A115: x | B115: 11890 | C115: ALARMSYSTEMER, VAKTHOLD, VEKTERTJENESTE | I115: =IF(AB115=1,IF(INDEX(Periodiserings_tabell,MATCH($J115,Periodiserings_koder,0),15)<>1,"UGYLDIG ->",""),"") ->  | J115: 5 | K115: =INDEX(Periodiserings_tabell,MATCH($J115,Periodiserings_koder,0),MATCH("Beskrivelse",Periodiserings_heading,0)) -> Driftsutgifter | M115: 0 | N115: 0 | O115: 0 | P115: 0 | Q115: 0 | R115: 0 | S115: 0 | T115: 0 | U115: 0 | V115: 0 | W115: 0 | X115: 0 | Y115: =IF(H115<>0,"x","") ->  | AA115: 5 | AB115: 0
B117: 190-194 HUSLEIE, LEIE AV LOKALER OG GRUNN (ikke internt i kommunen) | H117: ( 1000 )
A118: x | B118: 11900 | C118: HUSLEIE FOR EIENDOMMER I TJENESTEYTINGEN | I118: =IF(AB118=1,IF(INDEX(Periodiserings_tabell,MATCH($J118,Periodiserings_koder,0),15)<>1,"UGYLDIG ->",""),"") ->  | J118: 5 | K118: =INDEX(Periodiserings_tabell,MATCH($J118,Periodiserings_koder,0),MATCH("Beskrivelse",Periodiserings_heading,0)) -> Driftsutgifter | M118: =ROUND((($H118*1000)*INDEX(Periodiserings_tabell,MATCH($J118,Periodiserings_koder,0),MATCH(M$2,Periodiserings_heading,0))),0) -> 0 | N118: 0 | O118: 0 | P118: 0 | Q118: 0 | R118: 0 | S118: 0 | T118: 0 | U118: 0 | V118: 0 | W118: 0 | X118: 0 | Y118: =IF(H118<>0,"x","") ->  | AA118: 5 | AB118: 0
A119: x | B119: 11940 | C119: ANNET VEDR. HUSLEIE, LEIE AV LOKALER OG GRUNN | I119: =IF(AB119=1,IF(INDEX(Periodiserings_tabell,MATCH($J119,Periodiserings_koder,0),15)<>1,"UGYLDIG ->",""),"") ->  | J119: 5 | K119: =INDEX(Periodiserings_tabell,MATCH($J119,Periodiserings_koder,0),MATCH("Beskrivelse",Periodiserings_heading,0)) -> Driftsutgifter | M119: 0 | N119: 0 | O119: 0 | P119: 0 | Q119: 0 | R119: 0 | S119: 0 | T119: 0 | U119: 0 | V119: 0 | W119: 0 | X119: 0 | Y119: =IF(H119<>0,"x","") ->  | AA119: 5 | AB119: 0
B121: 195-199 AVGIFTER, GEBYRER, LISENSER MV. | H121: ( 1000 )
A122: x | B122: 11960 | C122: KOMM. EIEND.GEBYR (VANN-, KLOAKK-, FEIE-, RENOVASJ.AVGIFT) | I122: =IF(AB122=1,IF(INDEX(Periodiserings_tabell,MATCH($J122,Periodiserings_koder,0),15)<>1,"UGYLDIG ->",""),"") ->  | J122: 5 | K122: =INDEX(Periodiserings_tabell,MATCH($J122,Periodiserings_koder,0),MATCH("Beskrivelse",Periodiserings_heading,0)) -> Driftsutgifter | M122: =ROUND((($H122*1000)*INDEX(Periodiserings_tabell,MATCH($J122,Periodiserings_koder,0),MATCH(M$2,Periodiserings_heading,0))),0) -> 0 | N122: 0 | O122: 0 | P122: 0 | Q122: 0 | R122: 0 | S122: 0 | T122: 0 | U122: 0 | V122: 0 | W122: 0 | X122: 0 | Y122: =IF(H122<>0,"x","") ->  | AA122: 5 | AB122: 0
A123: x | B123: 11980 | C123: LISENSER/LISENSER PÅ DATAPROGRAMMER | H123: 200 | I123: =IF(AB123=1,IF(INDEX(Periodiserings_tabell,MATCH($J123,Periodiserings_koder,0),15)<>1,"UGYLDIG ->",""),"") ->  | J123: 5 | K123: =INDEX(Periodiserings_tabell,MATCH($J123,Periodiserings_koder,0),MATCH("Beskrivelse",Periodiserings_heading,0)) -> Driftsutgifter | M123: 4609 | N123: 4680 | O123: 14570 | P123: 13593 | Q123: 20057 | R123: 14990 | S123: 5870 | T123: 16168 | U123: 16524 | V123: 21772 | W123: 19604 | X123: 47562 | Y123: =IF(H123<>0,"x","") -> x | AA123: 5 | AB123: 0
A124: x | B124: 11990 | C124: KOPIERINGSAVTALER | I124: =IF(AB124=1,IF(INDEX(Periodiserings_tabell,MATCH($J124,Periodiserings_koder,0),15)<>1,"UGYLDIG ->",""),"") ->  | J124: 5 | K124: =INDEX(Periodiserings_tabell,MATCH($J124,Periodiserings_koder,0),MATCH("Beskrivelse",Periodiserings_heading,0)) -> Driftsutgifter | M124: 0 | N124: 0 | O124: 0 | P124: 0 | Q124: 0 | R124: 0 | S124: 0 | T124: 0 | U124: 0 | V124: 0 | W124: 0 | X124: 0 | Y124: =IF(H124<>0,"x","") ->  | AA124: 5 | AB124: 0
A125: x | B125: 11999 | C125: ANNET VEDR. AVGIFTER, GEBYRER, LISENSER MV. | I125: =IF(AB125=1,IF(INDEX(Periodiserings_tabell,MATCH($J125,Periodiserings_koder,0),15)<>1,"UGYLDIG ->",""),"") ->  | J125: 5 | K125: =INDEX(Periodiserings_tabell,MATCH($J125,Periodiserings_koder,0),MATCH("Beskrivelse",Periodiserings_heading,0)) -> Driftsutgifter | M125: 0 | N125: 0 | O125: 0 | P125: 0 | Q125: 0 | R125: 0 | S125: 0 | T125: 0 | U125: 0 | V125: 0 | W125: 0 | X125: 0 | Y125: =IF(H125<>0,"x","") ->  | AA125: 5 | AB125: 0
B127: 200-208 KJØP / FINANSIELL LEASING AV DRIFTSMIDLER | H127: ( 1000 )
A128: x | B128: 12000 | C128: KONTORINVENTAR, KONTORUTSTYR, MEDIAUTSTYR | I128: =IF(AB128=1,IF(INDEX(Periodiserings_tabell,MATCH($J128,Periodiserings_koder,0),15)<>1,"UGYLDIG ->",""),"") ->  | J128: 5 | K128: =INDEX(Periodiserings_tabell,MATCH($J128,Periodiserings_koder,0),MATCH("Beskrivelse",Periodiserings_heading,0)) -> Driftsutgifter | M128: =ROUND((($H128*1000)*INDEX(Periodiserings_tabell,MATCH($J128,Periodiserings_koder,0),MATCH(M$2,Periodiserings_heading,0))),0) -> 0 | N128: 0 | O128: 0 | P128: 0 | Q128: 0 | R128: 0 | S128: 0 | T128: 0 | U128: 0 | V128: 0 | W128: 0 | X128: 0 | Y128: =IF(H128<>0,"x","") ->  | AA128: 5 | AB128: 0
A129: x | B129: 12010 | C129: VERKTØY, INSTRUMENTER, REDSKAPER | J129: 5 | K129: Driftsutgifter | M129: 0 | N129: 0 | O129: 0 | P129: 0 | Q129: 0 | R129: 0 | S129: 0 | T129: 0 | U129: 0 | V129: 0 | W129: 0 | X129: 0 | AA129: 5 | AB129: 0
A130: x | B130: 12020 | C130: MUSIKK- OG VIDEOKASSETTER | J130: 5 | K130: Driftsutgifter | M130: 0 | N130: 0 | O130: 0 | P130: 0 | Q130: 0 | R130: 0 | S130: 0 | T130: 0 | U130: 0 | V130: 0 | W130: 0 | X130: 0 | AA130: 5 | AB130: 0
A131: x | B131: 12040 | C131: INNKJØP AV KUNST, MUSEUMSSAMLING, UTSMYKKING | J131: 5 | K131: Driftsutgifter | M131: 0 | N131: 0 | O131: 0 | P131: 0 | Q131: 0 | R131: 0 | S131: 0 | T131: 0 | U131: 0 | V131: 0 | W131: 0 | X131: 0 | AA131: 5 | AB131: 0
A132: x | B132: 12050 | C132: PC, PRINTERE MV. | H132: 100 | J132: 5 | K132: Driftsutgifter | M132: 2305 | N132: 2340 | O132: 7285 | P132: 6797 | Q132: 10028 | R132: 7495 | S132: 2935 | T132: 8084 | U132: 8262 | V132: 10886 | W132: 9802 | X132: 23781 | Y132: x | AA132: 5 | AB132: 0
A133: x | B133: 12055 | C133: ELEV-PC | H133: 750 | I133: =IF(AB133=1,IF(INDEX(Periodiserings_tabell,MATCH($J133,Periodiserings_koder,0),15)<>1,"UGYLDIG ->",""),"") ->  | J133: 28 | K133: kto 12055 | M133: 750000 | N133: 0 | O133: 0 | P133: 0 | Q133: 0 | R133: 0 | S133: 0 | T133: 0 | U133: 0 | V133: 0 | W133: 0 | X133: 0 | Y133: =IF(H133<>0,"x","") -> x | AA133: 5 | AB133: =IF(J133<>AA133,1,0) -> 1
A134: x | B134: 12060 | C134: PROGRAMVARE | J134: 5 | K134: Driftsutgifter | M134: 0 | N134: 0 | O134: 0 | P134: 0 | Q134: 0 | R134: 0 | S134: 0 | T134: 0 | U134: 0 | V134: 0 | W134: 0 | X134: 0 | AA134: 5 | AB134: 0
A135: x | B135: 12070 | C135: TRYGGHETSALARMER | J135: 5 | K135: Driftsutgifter | M135: 0 | N135: 0 | O135: 0 | P135: 0 | Q135: 0 | R135: 0 | S135: 0 | T135: 0 | U135: 0 | V135: 0 | W135: 0 | X135: 0 | AA135: 5 | AB135: 0
A136: x | B136: 12080 | C136: ANNET INVENTAR OG UTSTYR | H136: 50 | J136: 5 | K136: Driftsutgifter | M136: 1152 | N136: 1170 | O136: 3642 | P136: 3398 | Q136: 5014 | R136: 3748 | S136: 1468 | T136: 4042 | U136: 4131 | V136: 5443 | W136: 4901 | X136: 11891 | Y136: x | AA136: 5 | AB136: 0
B138: 209-209 MEDISINSK UTSTYR | H138: ( 1000 )
A139: x | B139: 12090 | C139: MEDISINSK UTSTYR OG INVENTAR | I139: =IF(AB139=1,IF(INDEX(Periodiserings_tabell,MATCH($J139,Periodiserings_koder,0),15)<>1,"UGYLDIG ->",""),"") ->  | J139: 5 | K139: =INDEX(Periodiserings_tabell,MATCH($J139,Periodiserings_koder,0),MATCH("Beskrivelse",Periodiserings_heading,0)) -> Driftsutgifter | M139: =ROUND((($H139*1000)*INDEX(Periodiserings_tabell,MATCH($J139,Periodiserings_koder,0),MATCH(M$2,Periodiserings_heading,0))),0) -> 0 | N139: 0 | O139: 0 | P139: 0 | Q139: 0 | R139: 0 | S139: 0 | T139: 0 | U139: 0 | V139: 0 | W139: 0 | X139: 0 | Y139: =IF(H139<>0,"x","") ->  | AA139: 5 | AB139: =IF(J139<>AA139,1,0) -> 0
B141: 210-219 LEIE / LEASING AV TRANSPORTMIDLER | H141: ( 1000 )
A142: x | B142: 12160 | C142: LANGTIDSLEIE/LEASING AV TRANSPORTMIDLER | I142: =IF(AB142=1,IF(INDEX(Periodiserings_tabell,MATCH($J142,Periodiserings_koder,0),15)<>1,"UGYLDIG ->",""),"") ->  | J142: 5 | K142: =INDEX(Periodiserings_tabell,MATCH($J142,Periodiserings_koder,0),MATCH("Beskrivelse",Periodiserings_heading,0)) -> Driftsutgifter | M142: =ROUND((($H142*1000)*INDEX(Periodiserings_tabell,MATCH($J142,Periodiserings_koder,0),MATCH(M$2,Periodiserings_heading,0))),0) -> 0 | N142: 0 | O142: 0 | P142: 0 | Q142: 0 | R142: 0 | S142: 0 | T142: 0 | U142: 0 | V142: 0 | W142: 0 | X142: 0 | Y142: =IF(H142<>0,"x","") ->  | AA142: 5 | AB142: 0
B144: 220-229 LEIE AV DRIFTSMIDLER | H144: ( 1000 )
A145: x | B145: 12210 | C145: LEIE/LEASING AV KONTORMASKINER | H145: 180 | I145: =IF(AB145=1,IF(INDEX(Periodiserings_tabell,MATCH($J145,Periodiserings_koder,0),15)<>1,"UGYLDIG ->",""),"") ->  | J145: 5 | K145: =INDEX(Periodiserings_tabell,MATCH($J145,Periodiserings_koder,0),MATCH("Beskrivelse",Periodiserings_heading,0)) -> Driftsutgifter | M145: =ROUND((($H145*1000)*INDEX(Periodiserings_tabell,MATCH($J145,Periodiserings_koder,0),MATCH(M$2,Periodiserings_heading,0))),0) -> 4148 | N145: 4212 | O145: 13113 | P145: 12234 | Q145: 18051 | R145: 13491 | S145: 5283 | T145: 14552 | U145: 14872 | V145: 19595 | W145: 17643 | X145: 42806 | Y145: =IF(H145<>0,"x","") -> x | AA145: 5 | AB145: 0
A146: x | B146: 12230 | C146: LEIE/LEASING AV DATAMASKINER | I146: =IF(AB146=1,IF(INDEX(Periodiserings_tabell,MATCH($J146,Periodiserings_koder,0),15)<>1,"UGYLDIG ->",""),"") ->  | J146: 5 | K146: =INDEX(Periodiserings_tabell,MATCH($J146,Periodiserings_koder,0),MATCH("Beskrivelse",Periodiserings_heading,0)) -> Driftsutgifter | M146: 0 | N146: 0 | O146: 0 | P146: 0 | Q146: 0 | R146: 0 | S146: 0 | T146: 0 | U146: 0 | V146: 0 | W146: 0 | X146: 0 | Y146: =IF(H146<>0,"x","") ->  | AA146: 5 | AB146: 0
A147: x | B147: 12270 | C147: LEIE/LEASING AV ANDRE MASKINER | I147: =IF(AB147=1,IF(INDEX(Periodiserings_tabell,MATCH($J147,Periodiserings_koder,0),15)<>1,"UGYLDIG ->",""),"") ->  | J147: 5 | K147: =INDEX(Periodiserings_tabell,MATCH($J147,Periodiserings_koder,0),MATCH("Beskrivelse",Periodiserings_heading,0)) -> Driftsutgifter | M147: 0 | N147: 0 | O147: 0 | P147: 0 | Q147: 0 | R147: 0 | S147: 0 | T147: 0 | U147: 0 | V147: 0 | W147: 0 | X147: 0 | Y147: =IF(H147<>0,"x","") ->  | AA147: 5 | AB147: 0
B149: 230-239 VEDLIKEHOLD, BYGGETJENESTER | H149: ( 1000 )
A150: x | B150: 12300 | C150: BYGNINGSMESSIG VEDLIKEHOLD: UTVENDIG | I150: =IF(AB150=1,IF(INDEX(Periodiserings_tabell,MATCH($J150,Periodiserings_koder,0),15)<>1,"UGYLDIG ->",""),"") ->  | J150: 5 | K150: =INDEX(Periodiserings_tabell,MATCH($J150,Periodiserings_koder,0),MATCH("Beskrivelse",Periodiserings_heading,0)) -> Driftsutgifter | M150: =ROUND((($H150*1000)*INDEX(Periodiserings_tabell,MATCH($J150,Periodiserings_koder,0),MATCH(M$2,Periodiserings_heading,0))),0) -> 0 | N150: 0 | O150: 0 | P150: 0 | Q150: 0 | R150: 0 | S150: 0 | T150: 0 | U150: 0 | V150: 0 | W150: 0 | X150: 0 | Y150: =IF(H150<>0,"x","") ->  | AA150: 5 | AB150: 0
A151: x | B151: 12302 | C151: BYGNINGSMESSIG VEDLIKEHOLD: INNVENDIG | J151: 5 | K151: Driftsutgifter | M151: 0 | N151: 0 | O151: 0 | P151: 0 | Q151: 0 | R151: 0 | S151: 0 | T151: 0 | U151: 0 | V151: 0 | W151: 0 | X151: 0 | AA151: 5 | AB151: 0
A152: x | B152: 12320 | C152: VVS-ARBEIDER | J152: 5 | K152: Driftsutgifter | M152: 0 | N152: 0 | O152: 0 | P152: 0 | Q152: 0 | R152: 0 | S152: 0 | T152: 0 | U152: 0 | V152: 0 | W152: 0 | X152: 0 | AA152: 5 | AB152: 0
A153: x | B153: 12330 | C153: ELEKTRISKE ARBEIDER | J153: 5 | K153: Driftsutgifter | M153: =ROUND((($H153*1000)*INDEX(Periodiserings_tabell,MATCH($J153,Periodiserings_koder,0),MATCH(M$2,Periodiserings_heading,0))),0) -> 0 | N153: 0 | O153: 0 | P153: 0 | Q153: 0 | R153: 0 | S153: 0 | T153: 0 | U153: 0 | V153: 0 | W153: 0 | X153: 0 | AA153: 5 | AB153: 0
A154: x | B154: 12340 | C154: UTENDØRSARBEIDER | J154: 5 | K154: Driftsutgifter | M154: 0 | N154: 0 | O154: 0 | P154: 0 | Q154: 0 | R154: 0 | S154: 0 | T154: 0 | U154: 0 | V154: 0 | W154: 0 | X154: 0 | AA154: 5 | AB154: 0
A155: x | B155: 12360 | C155: VEDLIKEHOLD AV UTSTYR | H155: 10 | J155: 5 | K155: Driftsutgifter | M155: =ROUND((($H155*1000)*INDEX(Periodiserings_tabell,MATCH($J155,Periodiserings_koder,0),MATCH(M$2,Periodiserings_heading,0))),0) -> 230 | N155: 234 | O155: 728 | P155: 680 | Q155: 1003 | R155: 750 | S155: 294 | T155: 808 | U155: 826 | V155: 1089 | W155: 980 | X155: 2378 | Y155: x | AA155: 5 | AB155: 0
A156: x | B156: 12370 | C156: FAGLIG BISTAND VEDLIKEHOLD, BYGGETJENESTER OG NYBYGG | I156: =IF(AB156=1,IF(INDEX(Periodiserings_tabell,MATCH($J156,Periodiserings_koder,0),15)<>1,"UGYLDIG ->",""),"") ->  | J156: 5 | K156: Driftsutgifter | M156: 0 | N156: 0 | O156: 0 | P156: 0 | Q156: 0 | R156: 0 | S156: 0 | T156: 0 | U156: 0 | V156: 0 | W156: 0 | X156: 0 | Y156: =IF(H156<>0,"x","") ->  | AA156: 5 | AB156: =IF(J156<>AA156,1,0) -> 0
A157: x | B157: 12382 | C157: ANNET VEDLIKEHOLD: GRAFITTISANERING | J157: 5 | K157: Driftsutgifter | M157: 0 | N157: 0 | O157: 0 | P157: 0 | Q157: 0 | R157: 0 | S157: 0 | T157: 0 | U157: 0 | V157: 0 | W157: 0 | X157: 0 | AA157: 5 | AB157: 0
A158: x | B158: 12383 | C158: ANNET VEDLIKEHOLD: HÆRVERK | J158: 5 | K158: Driftsutgifter | M158: 0 | N158: 0 | O158: 0 | P158: 0 | Q158: 0 | R158: 0 | S158: 0 | T158: 0 | U158: 0 | V158: 0 | W158: 0 | X158: 0 | AA158: 5 | AB158: 0
A159: x | B159: 12389 | C159: ANNET VEDLIKEHOLD: DIVERSE UTGIFTER | I159: =IF(AB159=1,IF(INDEX(Periodiserings_tabell,MATCH($J159,Periodiserings_koder,0),15)<>1,"UGYLDIG ->",""),"") ->  | J159: 5 | K159: Driftsutgifter | M159: 0 | N159: 0 | O159: 0 | P159: 0 | Q159: 0 | R159: 0 | S159: 0 | T159: 0 | U159: 0 | V159: 0 | W159: 0 | X159: 0 | Y159: =IF(H159<>0,"x","") ->  | AA159: 5 | AB159: =IF(J159<>AA159,1,0) -> 0
A160: x | B160: 12395 | C160: RÅDGIVNINGSTJENESTER BYGGELEDELSE, PROSJEKTERING MV. | J160: 5 | K160: Driftsutgifter | M160: 0 | N160: 0 | O160: 0 | P160: 0 | Q160: 0 | R160: 0 | S160: 0 | T160: 0 | U160: 0 | V160: 0 | W160: 0 | X160: 0 | AA160: 5 | AB160: 0
B162: 240-249 SERVICEAVTALER, REPARASJONER OG VAKTMESTERTJENESTER | H162: ( 1000 )
A163: x | B163: 12400 | C163: SERVICE-/DRIFTSAVTALER OG REP. - KONTORMASKINER | I163: =IF(AB163=1,IF(INDEX(Periodiserings_tabell,MATCH($J163,Periodiserings_koder,0),15)<>1,"UGYLDIG ->",""),"") ->  | J163: 5 | K163: =INDEX(Periodiserings_tabell,MATCH($J163,Periodiserings_koder,0),MATCH("Beskrivelse",Periodiserings_heading,0)) -> Driftsutgifter | M163: =ROUND((($H163*1000)*INDEX(Periodiserings_tabell,MATCH($J163,Periodiserings_koder,0),MATCH(M$2,Periodiserings_heading,0))),0) -> 0 | N163: 0 | O163: 0 | P163: 0 | Q163: 0 | R163: 0 | S163: 0 | T163: 0 | U163: 0 | V163: 0 | W163: 0 | X163: 0 | Y163: =IF(H163<>0,"x","") ->  | AA163: 5 | AB163: 0
A164: x | B164: 12410 | C164: SERVICE-/DRIFTSAVT. OG REP. - TEKNISK INFRASTRUKTUR, IT | J164: 5 | K164: Driftsutgifter | M164: 0 | N164: 0 | O164: 0 | P164: 0 | Q164: 0 | R164: 0 | S164: 0 | T164: 0 | U164: 0 | V164: 0 | W164: 0 | X164: 0 | AA164: 5 | AB164: 0
A165: x | B165: 12420 | C165: SERVICE-/VEDLIKEHOLDSAVTALER IT | J165: 5 | K165: Driftsutgifter | M165: 0 | N165: 0 | O165: 0 | P165: 0 | Q165: 0 | R165: 0 | S165: 0 | T165: 0 | U165: 0 | V165: 0 | W165: 0 | X165: 0 | AA165: 5 | AB165: 0
A166: x | B166: 12430 | C166: DRIFTSAVTALER MED DATASENTRALER | J166: 5 | K166: Driftsutgifter | M166: 0 | N166: 0 | O166: 0 | P166: 0 | Q166: 0 | R166: 0 | S166: 0 | T166: 0 | U166: 0 | V166: 0 | W166: 0 | X166: 0 | AA166: 5 | AB166: 0
A167: x | B167: 12450 | C167: ANDRE SERVICE-/DRIFTSAVTALER | H167: 60 | J167: 5 | K167: Driftsutgifter | M167: 1383 | N167: 1404 | O167: 4371 | P167: 4078 | Q167: 6017 | R167: 4497 | S167: 1761 | T167: 4851 | U167: 4957 | V167: 6532 | W167: 5881 | X167: 14269 | Y167: x | AA167: 5 | AB167: 0
A168: x | B168: 12455 | C168: VAKTMESTERTJENESTER | J168: 5 | K168: Driftsutgifter | M168: 0 | N168: 0 | O168: 0 | P168: 0 | Q168: 0 | R168: 0 | S168: 0 | T168: 0 | U168: 0 | V168: 0 | W168: 0 | X168: 0 | AA168: 5 | AB168: 0
A169: x | B169: 12456 | C169: SNØBRØYTINGSAVTALER | I169: =IF(AB169=1,IF(INDEX(Periodiserings_tabell,MATCH($J169,Periodiserings_koder,0),15)<>1,"UGYLDIG ->",""),"") ->  | J169: 5 | K169: Driftsutgifter | M169: 0 | N169: 0 | O169: 0 | P169: 0 | Q169: 0 | R169: 0 | S169: 0 | T169: 0 | U169: 0 | V169: 0 | W169: 0 | X169: 0 | Y169: =IF(H169<>0,"x","") ->  | AA169: 5 | AB169: =IF(J169<>AA169,1,0) -> 0
A170: x | B170: 12460 | C170: ANDRE REPARASJONER | I170: =IF(AB170=1,IF(INDEX(Periodiserings_tabell,MATCH($J170,Periodiserings_koder,0),15)<>1,"UGYLDIG ->",""),"") ->  | J170: 5 | K170: Driftsutgifter | M170: 0 | N170: 0 | O170: 0 | P170: 0 | Q170: 0 | R170: 0 | S170: 0 | T170: 0 | U170: 0 | V170: 0 | W170: 0 | X170: 0 | Y170: =IF(H170<>0,"x","") ->  | AA170: 5 | AB170: =IF(J170<>AA170,1,0) -> 0
A171: x | B171: 12490 | C171: FAGLIG BISTAND SERVICEAVTALER, DRIFTSAVTALER OG VAKTM.TJEN. | J171: 5 | K171: Driftsutgifter | M171: 0 | N171: 0 | O171: 0 | P171: 0 | Q171: 0 | R171: 0 | S171: 0 | T171: 0 | U171: 0 | V171: 0 | W171: 0 | X171: 0 | AA171: 5 | AB171: 0
B173: 250-259 MATERIALER TIL VEDLIKEHOLD | H173: ( 1000 )
A174: x | B174: 12500 | C174: MATERIALER TIL VEDLIKEHOLD | I174: =IF(AB174=1,IF(INDEX(Periodiserings_tabell,MATCH($J174,Periodiserings_koder,0),15)<>1,"UGYLDIG ->",""),"") ->  | J174: 5 | K174: =INDEX(Periodiserings_tabell,MATCH($J174,Periodiserings_koder,0),MATCH("Beskrivelse",Periodiserings_heading,0)) -> Driftsutgifter | M174: =ROUND((($H174*1000)*INDEX(Periodiserings_tabell,MATCH($J174,Periodiserings_koder,0),MATCH(M$2,Periodiserings_heading,0))),0) -> 0 | N174: 0 | O174: 0 | P174: 0 | Q174: 0 | R174: 0 | S174: 0 | T174: 0 | U174: 0 | V174: 0 | W174: 0 | X174: 0 | Y174: =IF(H174<>0,"x","") ->  | AA174: 5 | AB174: 0
B176: 260-269 RENHOLDS- OG VASKERITJENESTER | H176: ( 1000 )
A177: x | B177: 12600 | C177: RENGJØRINGSBYRÅ | I177: =IF(AB177=1,IF(INDEX(Periodiserings_tabell,MATCH($J177,Periodiserings_koder,0),15)<>1,"UGYLDIG ->",""),"") ->  | J177: 5 | K177: =INDEX(Periodiserings_tabell,MATCH($J177,Periodiserings_koder,0),MATCH("Beskrivelse",Periodiserings_heading,0)) -> Driftsutgifter | M177: =ROUND((($H177*1000)*INDEX(Periodiserings_tabell,MATCH($J177,Periodiserings_koder,0),MATCH(M$2,Periodiserings_heading,0))),0) -> 0 | N177: 0 | O177: 0 | P177: 0 | Q177: 0 | R177: 0 | S177: 0 | T177: 0 | U177: 0 | V177: 0 | W177: 0 | X177: 0 | Y177: =IF(H177<>0,"x","") ->  | AA177: 5 | AB177: 0
A178: x | B178: 12605 | C178: HOVEDRENHOLD | I178: =IF(AB178=1,IF(INDEX(Periodiserings_tabell,MATCH($J178,Periodiserings_koder,0),15)<>1,"UGYLDIG ->",""),"") ->  | J178: 5 | K178: Driftsutgifter | M178: 0 | N178: 0 | O178: 0 | P178: 0 | Q178: 0 | R178: 0 | S178: 0 | T178: 0 | U178: 0 | V178: 0 | W178: 0 | X178: 0 | Y178: =IF(H178<>0,"x","") ->  | AA178: 5 | AB178: 0
A179: x | B179: 12640 | C179: EKSTERNE VASKERITJENESTER | I179: =IF(AB179=1,IF(INDEX(Periodiserings_tabell,MATCH($J179,Periodiserings_koder,0),15)<>1,"UGYLDIG ->",""),"") ->  | J179: 5 | K179: Driftsutgifter | M179: =ROUND((($H179*1000)*INDEX(Periodiserings_tabell,MATCH($J179,Periodiserings_koder,0),MATCH(M$2,Periodiserings_heading,0))),0) -> 0 | N179: =ROUND((($H179*1000)*INDEX(Periodiserings_tabell,MATCH($J179,Periodiserings_koder,0),MATCH(N$2,Periodiserings_heading,0))),0) -> 0 | O179: 0 | P179: 0 | Q179: 0 | R179: 0 | S179: 0 | T179: 0 | U179: 0 | V179: 0 | W179: 0 | X179: 0 | Y179: =IF(H179<>0,"x","") ->  | AA179: 5 | AB179: 0
A180: x | B180: 12670 | C180: ANNET VEDR. RENHOLD, VASKERITJENESTER | I180: =IF(AB180=1,IF(INDEX(Periodiserings_tabell,MATCH($J180,Periodiserings_koder,0),15)<>1,"UGYLDIG ->",""),"") ->  | J180: 5 | K180: Driftsutgifter | M180: =ROUND((($H180*1000)*INDEX(Periodiserings_tabell,MATCH($J180,Periodiserings_koder,0),MATCH(M$2,Periodiserings_heading,0))),0) -> 0 | N180: 0 | O180: 0 | P180: 0 | Q180: 0 | R180: 0 | S180: 0 | T180: 0 | U180: 0 | V180: 0 | W180: 0 | X180: 0 | Y180: =IF(H180<>0,"x","") ->  | AA180: 5 | AB180: =IF(J180<>AA180,1,0) -> 0
A181: x | B181: 12680 | C181: FAGLIG BISTAND VEDR. RENHOLDSPLANER | I181: =IF(AB181=1,IF(INDEX(Periodiserings_tabell,MATCH($J181,Periodiserings_koder,0),15)<>1,"UGYLDIG ->",""),"") ->  | J181: 5 | K181: Driftsutgifter | M181: =ROUND((($H181*1000)*INDEX(Periodiserings_tabell,MATCH($J181,Periodiserings_koder,0),MATCH(M$2,Periodiserings_heading,0))),0) -> 0 | N181: 0 | O181: 0 | P181: 0 | Q181: 0 | R181: 0 | S181: 0 | T181: 0 | U181: 0 | V181: 0 | W181: 0 | X181: 0 | Y181: =IF(H181<>0,"x","") ->  | AA181: 5 | AB181: 0
B183: 270-277 ANDRE TJENESTER (SOM INNGÅR I TJENESTEPROD.) | H183: ( 1000 )
A184: x | B184: 12720 | C184: KONSULENTTJENESTER: JURIDISK BISTAND | I184: =IF(AB184=1,IF(INDEX(Periodiserings_tabell,MATCH($J184,Periodiserings_koder,0),15)<>1,"UGYLDIG ->",""),"") ->  | J184: 5 | K184: Driftsutgifter | M184: =ROUND((($H184*1000)*INDEX(Periodiserings_tabell,MATCH($J184,Periodiserings_koder,0),MATCH(M$2,Periodiserings_heading,0))),0) -> 0 | N184: =ROUND((($H184*1000)*INDEX(Periodiserings_tabell,MATCH($J184,Periodiserings_koder,0),MATCH(N$2,Periodiserings_heading,0))),0) -> 0 | O184: 0 | P184: 0 | Q184: 0 | R184: 0 | S184: 0 | T184: 0 | U184: 0 | V184: 0 | W184: 0 | X184: 0 | Y184: =IF(H184<>0,"x","") ->  | AA184: 5 | AB184: 0
A185: x | B185: 12730 | C185: KONSULENTTJENESTER INNEN KVALITET OG KONTROLL | J185: 5 | K185: Driftsutgifter | M185: =ROUND((($H185*1000)*INDEX(Periodiserings_tabell,MATCH($J185,Periodiserings_koder,0),MATCH(M$2,Periodiserings_heading,0))),0) -> 0 | N185: 0 | O185: 0 | P185: 0 | Q185: 0 | R185: 0 | S185: 0 | T185: 0 | U185: 0 | V185: 0 | W185: 0 | X185: 0 | AA185: 5 | AB185: 0
A186: x | B186: 12740 | C186: INNLEID ARBEIDSKRAFT - LEDERFUNKSJONER | J186: 5 | K186: Driftsutgifter | M186: =ROUND((($H186*1000)*INDEX(Periodiserings_tabell,MATCH($J186,Periodiserings_koder,0),MATCH(M$2,Periodiserings_heading,0))),0) -> 0 | N186: 0 | O186: 0 | P186: 0 | Q186: 0 | R186: 0 | S186: 0 | T186: 0 | U186: 0 | V186: 0 | W186: 0 | X186: 0 | AA186: 5 | AB186: 0
A187: x | B187: 12750 | C187: INNLEID ARBEIDSKRAFT - ØVRIGE FUNKSJONER | J187: 5 | K187: Driftsutgifter | M187: =ROUND((($H187*1000)*INDEX(Periodiserings_tabell,MATCH($J187,Periodiserings_koder,0),MATCH(M$2,Periodiserings_heading,0))),0) -> 0 | N187: 0 | O187: 0 | P187: 0 | Q187: 0 | R187: 0 | S187: 0 | T187: 0 | U187: 0 | V187: 0 | W187: 0 | X187: 0 | AA187: 5 | AB187: 0
A188: x | B188: 12751 | C188: INNLEID ARBEIDSKRAFT - UNDERVISNING | I188: =IF(AB188=1,IF(INDEX(Periodiserings_tabell,MATCH($J188,Periodiserings_koder,0),15)<>1,"UGYLDIG ->",""),"") ->  | J188: 5 | K188: Driftsutgifter | M188: 0 | N188: 0 | O188: 0 | P188: 0 | Q188: 0 | R188: 0 | S188: 0 | T188: 0 | U188: 0 | V188: 0 | W188: 0 | X188: 0 | Y188: =IF(H188<>0,"x","") ->  | AA188: 5 | AB188: =IF(J188<>AA188,1,0) -> 0
A189: x | B189: 12752 | C189: INNLEID ARBEIDSKRAFT - FYSISK FOSTRING | I189: =IF(AB189=1,IF(INDEX(Periodiserings_tabell,MATCH($J189,Periodiserings_koder,0),15)<>1,"UGYLDIG ->",""),"") ->  | J189: 5 | K189: Driftsutgifter | M189: 0 | N189: 0 | O189: 0 | P189: 0 | Q189: 0 | R189: 0 | S189: 0 | T189: 0 | U189: 0 | V189: 0 | W189: 0 | X189: 0 | Y189: =IF(H189<>0,"x","") ->  | AA189: 5 | AB189: =IF(J189<>AA189,1,0) -> 0
A190: x | B190: 12760 | C190: KONSULENTBISTAND IT | H190: 337 | J190: 5 | K190: Driftsutgifter | M190: =ROUND((($H190*1000)*INDEX(Periodiserings_tabell,MATCH($J190,Periodiserings_koder,0),MATCH(M$2,Periodiserings_heading,0))),0) -> 7766 | N190: 7885 | O190: 24550 | P190: 22905 | Q190: 33796 | R190: 25258 | S190: 9892 | T190: 27244 | U190: 27844 | V190: 36686 | W190: 33032 | X190: 80142 | Y190: x | AA190: 5 | AB190: 0
A191: x | B191: 12770 | C191: KONSULENTBISTAND - ORGANISASJON OG ORG.UTVIKLING | J191: 5 | K191: Driftsutgifter | M191: =ROUND((($H191*1000)*INDEX(Periodiserings_tabell,MATCH($J191,Periodiserings_koder,0),MATCH(M$2,Periodiserings_heading,0))),0) -> 0 | N191: =ROUND((($H191*1000)*INDEX(Periodiserings_tabell,MATCH($J191,Periodiserings_koder,0),MATCH(N$2,Periodiserings_heading,0))),0) -> 0 | O191: 0 | P191: 0 | Q191: 0 | R191: 0 | S191: 0 | T191: 0 | U191: 0 | V191: 0 | W191: 0 | X191: 0 | AA191: 5 | AB191: 0
A192: x | B192: 12775 | C192: KONSULENTBISTAND - HMS | J192: 5 | K192: Driftsutgifter | M192: =ROUND((($H192*1000)*INDEX(Periodiserings_tabell,MATCH($J192,Periodiserings_koder,0),MATCH(M$2,Periodiserings_heading,0))),0) -> 0 | N192: 0 | O192: 0 | P192: 0 | Q192: 0 | R192: 0 | S192: 0 | T192: 0 | U192: 0 | V192: 0 | W192: 0 | X192: 0 | AA192: 5 | AB192: 0
B194: 278-278 INTERNKJØP ANDRE VIRKSOMHETER I OSLO KOMMUNE | H194: ( 1000 )
A195: x | B195: 12783 | C195: FORDELTE UTGIFTER/KONSERNBIDRAG UKE | I195: =IF(AB195=1,IF(INDEX(Periodiserings_tabell,MATCH($J195,Periodiserings_koder,0),15)<>1,"UGYLDIG ->",""),"") ->  | J195: 5 | K195: =INDEX(Periodiserings_tabell,MATCH($J195,Periodiserings_koder,0),MATCH("Beskrivelse",Periodiserings_heading,0)) -> Driftsutgifter | M195: =ROUND((($H195*1000)*INDEX(Periodiserings_tabell,MATCH($J195,Periodiserings_koder,0),MATCH(M$2,Periodiserings_heading,0))),0) -> 0 | N195: 0 | O195: 0 | P195: 0 | Q195: 0 | R195: 0 | S195: 0 | T195: 0 | U195: 0 | V195: 0 | W195: 0 | X195: 0 | Y195: =IF(H195<>0,"x","") ->  | AA195: 5 | AB195: =IF(J195<>AA195,1,0) -> 0
A196: x | B196: 12784 | C196: ANDRE INTERNKJØP INNEN OSLO KOMMUNE | H196: 60 | I196: =IF(AB196=1,IF(INDEX(Periodiserings_tabell,MATCH($J196,Periodiserings_koder,0),15)<>1,"UGYLDIG ->",""),"") ->  | J196: 5 | K196: Driftsutgifter | M196: 1383 | N196: 1404 | O196: 4371 | P196: 4078 | Q196: 6017 | R196: 4497 | S196: 1761 | T196: 4851 | U196: 4957 | V196: 6532 | W196: 5881 | X196: 14269 | Y196: =IF(H196<>0,"x","") -> x | AA196: 5 | AB196: 0
B198: 279-279 ANDRE TJ. (SOM INNGÅR I TJENESTEPROD.) / INTERNT KJØP I UDE | H198: ( 1000 )
A199: x | B199: 12790 | C199: ANDRE KONSULENTTJENESTER | I199: =IF(AB199=1,IF(INDEX(Periodiserings_tabell,MATCH($J199,Periodiserings_koder,0),15)<>1,"UGYLDIG ->",""),"") ->  | J199: 5 | K199: =INDEX(Periodiserings_tabell,MATCH($J199,Periodiserings_koder,0),MATCH("Beskrivelse",Periodiserings_heading,0)) -> Driftsutgifter | M199: =ROUND((($H199*1000)*INDEX(Periodiserings_tabell,MATCH($J199,Periodiserings_koder,0),MATCH(M$2,Periodiserings_heading,0))),0) -> 0 | N199: 0 | O199: 0 | P199: 0 | Q199: 0 | R199: 0 | S199: 0 | T199: 0 | U199: 0 | V199: 0 | W199: 0 | X199: 0 | Y199: =IF(H199<>0,"x","") ->  | AA199: 5 | AB199: =IF(J199<>AA199,1,0) -> 0
C200: Internt innen Utdanningsetaten:
A201: x | B201: 12793 | C201: INTERN UTGIFT INNEN UTDANNINGSETATEN | H201: 150 | J201: 30 | K201: kto 12793 | M201: =ROUND((($H201*1000)*INDEX(Periodiserings_tabell,MATCH($J201,Periodiserings_koder,0),MATCH(M$2,Periodiserings_heading,0))),0) -> 0 | N201: 0 | O201: 0 | P201: 0 | Q201: 0 | R201: 0 | S201: 0 | T201: 0 | U201: 150000 | V201: 0 | W201: 0 | X201: 0 | Y201: x | AA201: 5 | AB201: 1
A202: x | B202: 12794 | C202: INTERN UTGIFT INNEN UDE: IKT-UTGIFTER | H202: 899 | J202: 26 | K202: Interne IKT-utg. | M202: 0 | N202: 0 | O202: 0 | P202: 0 | Q202: 0 | R202: 0 | S202: 0 | T202: 0 | U202: 0 | V202: 0 | W202: 0 | X202: 899000 | Y202: x | AA202: 26 | AB202: 0
A203: x | B203: 12799 | C203: INTERN UTGIFT INNEN UDE: EFT KOMPETANSE | H203: 350 | J203: 12 | K203: Lik fordeling | M203: 29167 | N203: 29167 | O203: 29167 | P203: 29167 | Q203: 29167 | R203: 29167 | S203: 29167 | T203: 29167 | U203: 29167 | V203: 29167 | W203: 29167 | X203: 29167 | Y203: x | AA203: 12 | AB203: 0
B205: 100-299 KJØP AV VARER OG TJ. SOM INNGÅR I KOMM TJ.PROD. | H205: =ROUND(SUM(M205:X205)/1000,0) -> 6272 | M205: =SUM(M9:M204) -> 909596 | N205: 115292 | O205: 1670407 | P205: 202823 | Q205: 266747 | R205: 230725 | S205: 103727 | T205: 488630 | U205: 362122 | V205: 263660 | W205: 242360 | X205: 1415917 | Y205: x

Sheet Erstatningskjøp_Overføringer
M2: JAN | N2: FEB | O2: MAR | P2: APR | Q2: MAI | R2: JUN | S2: JUL | T2: AUG | U2: SEP | V2: OKT | W2: NOV | X2: DES
B3: =CONCATENATE(Ramme!C3," - ",Ramme!D3,IF(Ramme!C7>0,CONCATENATE(" (Prosjekt: ",Ramme!C7," ",Ramme!D7,")"),"")) -> 12213 - Marienlyst skole
B4: DRIFTSUTGIFTER | H4: TOTAL | M4: ='Lønn og sosiale'!M4 -> Budsjett 2017
B8: 300-309 KJØP AV TJENESTER FRA STATEN | H8: ( 1000 ) | I8: =COUNTIF(I9:I51,"UGYLDIG ->") -> 0 | J8: Periodisering | AB8: =SUM(AB9:AB58) -> 0
A9: x | B9: 13010 | C9: DRIFTSAVTALER MED STATEN/STATLIGE INSTITUSJONER | I9: =IF(AB9=1,IF(INDEX(Periodiserings_tabell,MATCH($J9,Periodiserings_koder,0),15)<>1,"UGYLDIG ->",""),"") ->  | J9: 6 | K9: =INDEX(Periodiserings_tabell,MATCH($J9,Periodiserings_koder,0),MATCH("Beskrivelse",Periodiserings_heading,0)) -> Overføringer | M9: =ROUND((($H9*1000)*INDEX(Periodiserings_tabell,MATCH($J9,Periodiserings_koder,0),MATCH(M$2,Periodiserings_heading,0))),0) -> 0 | N9: 0 | O9: 0 | P9: 0 | Q9: 0 | R9: 0 | S9: 0 | T9: 0 | U9: 0 | V9: 0 | W9: 0 | X9: 0 | Y9: =IF(H9<>0,"x","") ->  | AA9: 6 | AB9: =IF(J9<>AA9,1,0) -> 0
A10: x | B10: 13020 | C10: KJØP AV TJENESTER FRA STATEN/STATLIGE INSTITUSJONER | I10: =IF(AB10=1,IF(INDEX(Periodiserings_tabell,MATCH($J10,Periodiserings_koder,0),15)<>1,"UGYLDIG ->",""),"") ->  | J10: 6 | K10: =INDEX(Periodiserings_tabell,MATCH($J10,Periodiserings_koder,0),MATCH("Beskrivelse",Periodiserings_heading,0)) -> Overføringer | M10: 0 | N10: 0 | O10: 0 | P10: 0 | Q10: 0 | R10: 0 | S10: 0 | T10: 0 | U10: 0 | V10: 0 | W10: 0 | X10: 0 | Y10: =IF(H10<>0,"x","") ->  | AA10: 6 | AB10: =IF(J10<>AA10,1,0) -> 0
B12: 330-339 KJØP AV TJENESTER FRA ANDRE FYLKESKOMMUNER | H12: ( 1000 )
A13: x | B13: 13310 | C13: DRIFTSAVTALER MED FYLKESKOMM./ -INSTITUSJONER | I13: =IF(AB13=1,IF(INDEX(Periodiserings_tabell,MATCH($J13,Periodiserings_koder,0),15)<>1,"UGYLDIG ->",""),"") ->  | J13: 6 | K13: =INDEX(Periodiserings_tabell,MATCH($J13,Periodiserings_koder,0),MATCH("Beskrivelse",Periodiserings_heading,0)) -> Overføringer | M13: 0 | N13: 0 | O13: 0 | P13: 0 | Q13: 0 | R13: 0 | S13: 0 | T13: 0 | U13: 0 | V13: 0 | W13: 0 | X13: 0 | Y13: =IF(H13<>0,"x","") ->  | AA13: 6 | AB13: =IF(J13<>AA13,1,0) -> 0
A14: x | B14: 13350 | C14: KJØP AV TJENESTER FRA FYLKESKOMM./-INSTITUSJONER | I14: =IF(AB14=1,IF(INDEX(Periodiserings_tabell,MATCH($J14,Periodiserings_koder,0),15)<>1,"UGYLDIG ->",""),"") ->  | J14: 6 | K14: =INDEX(Periodiserings_tabell,MATCH($J14,Periodiserings_koder,0),MATCH("Beskrivelse",Periodiserings_heading,0)) -> Overføringer | M14: 0 | N14: 0 | O14: 0 | P14: 0 | Q14: 0 | R14: 0 | S14: 0 | T14: 0 | U14: 0 | V14: 0 | W14: 0 | X14: 0 | Y14: =IF(H14<>0,"x","") ->  | AA14: 6 | AB14: =IF(J14<>AA14,1,0) -> 0
B16: 350-359 KJØP AV TJENESTER FRA ANDRE KOMMUNER | H16: ( 1000 )
A17: x | B17: 13510 | C17: DRIFTSAVTALER MED ANDRE KOMM./ -INSTITUSJONER | I17: =IF(AB17=1,IF(INDEX(Periodiserings_tabell,MATCH($J17,Periodiserings_koder,0),15)<>1,"UGYLDIG ->",""),"") ->  | J17: 6 | K17: =INDEX(Periodiserings_tabell,MATCH($J17,Periodiserings_koder,0),MATCH("Beskrivelse",Periodiserings_heading,0)) -> Overføringer | M17: 0 | N17: 0 | O17: 0 | P17: 0 | Q17: 0 | R17: 0 | S17: 0 | T17: 0 | U17: 0 | V17: 0 | W17: 0 | X17: 0 | Y17: =IF(H17<>0,"x","") ->  | AA17: 6 | AB17: =IF(J17<>AA17,1,0) -> 0
A18: x | B18: 13550 | C18: KJØP AV TJENESTER FRA ANDRE KOMM./-INSTITUSJONER | I18: =IF(AB18=1,IF(INDEX(Periodiserings_tabell,MATCH($J18,Periodiserings_koder,0),15)<>1,"UGYLDIG ->",""),"") ->  | J18: 6 | K18: =INDEX(Periodiserings_tabell,MATCH($J18,Periodiserings_koder,0),MATCH("Beskrivelse",Periodiserings_heading,0)) -> Overføringer | M18: 0 | N18: 0 | O18: 0 | P18: 0 | Q18: 0 | R18: 0 | S18: 0 | T18: 0 | U18: 0 | V18: 0 | W18: 0 | X18: 0 | Y18: =IF(H18<>0,"x","") ->  | AA18: 6 | AB18: =IF(J18<>AA18,1,0) -> 0
B20: 370-379 KJØP AV TJENESTER FRA ANDRE (PRIVATE) | H20: ( 1000 )
A21: x | B21: 13700 | C21: KJØP AV TJ. FRA ANDRE SOM ERST. KOM. TJ-PROD | I21: =IF(AB21=1,IF(INDEX(Periodiserings_tabell,MATCH($J21,Periodiserings_koder,0),15)<>1,"UGYLDIG ->",""),"") ->  | J21: 6 | K21: =INDEX(Periodiserings_tabell,MATCH($J21,Periodiserings_koder,0),MATCH("Beskrivelse",Periodiserings_heading,0)) -> Overføringer | M21: 0 | N21: 0 | O21: 0 | P21: 0 | Q21: 0 | R21: 0 | S21: 0 | T21: 0 | U21: 0 | V21: 0 | W21: 0 | X21: 0 | Y21: =IF(H21<>0,"x","") ->  | AA21: 6 | AB21: =IF(J21<>AA21,1,0) -> 0
A22: x | B22: 13701 | C22: SKYSSUTGIFTER ELEVER TIL/FRA SKOLE - VG. SKOLER | I22: =IF(AB22=1,IF(INDEX(Periodiserings_tabell,MATCH($J22,Periodiserings_koder,0),15)<>1,"UGYLDIG ->",""),"") ->  | J22: 6 | K22: =INDEX(Periodiserings_tabell,MATCH($J22,Periodiserings_koder,0),MATCH("Beskrivelse",Periodiserings_heading,0)) -> Overføringer | M22: 0 | N22: 0 | O22: 0 | P22: 0 | Q22: 0 | R22: 0 | S22: 0 | T22: 0 | U22: 0 | V22: 0 | W22: 0 | X22: 0 | Y22: =IF(H22<>0,"x","") ->  | AA22: 6 | AB22: =IF(J22<>AA22,1,0) -> 0
A23: x | B23: 13710 | C23: ORDINÆRE DRIFTSTILSKUDD TIL PRIVATE | I23: =IF(AB23=1,IF(INDEX(Periodiserings_tabell,MATCH($J23,Periodiserings_koder,0),15)<>1,"UGYLDIG ->",""),"") ->  | J23: 6 | K23: =INDEX(Periodiserings_tabell,MATCH($J23,Periodiserings_koder,0),MATCH("Beskrivelse",Periodiserings_heading,0)) -> Overføringer | M23: 0 | N23: 0 | O23: 0 | P23: 0 | Q23: 0 | R23: 0 | S23: 0 | T23: 0 | U23: 0 | V23: 0 | W23: 0 | X23: 0 | Y23: =IF(H23<>0,"x","") ->  | AA23: 6 | AB23: =IF(J23<>AA23,1,0) -> 0
A24: x | B24: 13730 | C24: EKSTRAORDINÆRE DRIFTSTILSKUDD TIL PRIVATE | I24: =IF(AB24=1,IF(INDEX(Periodiserings_tabell,MATCH($J24,Periodiserings_koder,0),15)<>1,"UGYLDIG ->",""),"") ->  | J24: 6 | K24: =INDEX(Periodiserings_tabell,MATCH($J24,Periodiserings_koder,0),MATCH("Beskrivelse",Periodiserings_heading,0)) -> Overføringer | M24: 0 | N24: 0 | O24: 0 | P24: 0 | Q24: 0 | R24: 0 | S24: 0 | T24: 0 | U24: 0 | V24: 0 | W24: 0 | X24: 0 | Y24: =IF(H24<>0,"x","") ->  | AA24: 6 | AB24: =IF(J24<>AA24,1,0) -> 0
A25: x | B25: 13740 | C25: KOMM. FINANS. AV BOLIGER/INSTITUSJ. MED DRIFTSAVTALE | I25: =IF(AB25=1,IF(INDEX(Periodiserings_tabell,MATCH($J25,Periodiserings_koder,0),15)<>1,"UGYLDIG ->",""),"") ->  | J25: 6 | K25: =INDEX(Periodiserings_tabell,MATCH($J25,Periodiserings_koder,0),MATCH("Beskrivelse",Periodiserings_heading,0)) -> Overføringer | M25: 0 | N25: 0 | O25: 0 | P25: 0 | Q25: 0 | R25: 0 | S25: 0 | T25: 0 | U25: 0 | V25: 0 | W25: 0 | X25: 0 | Y25: =IF(H25<>0,"x","") ->  | AA25: 6 | AB25: =IF(J25<>AA25,1,0) -> 0
B27: 380-399 KJØP AV TJENESTER FRA EGNE SÆRBEDRIFTER | H27: ( 1000 )
A28: x | B28: 13810 | C28: LEIE AV LOKALER FRA UNDERVISNINGSBYGG OSLO KF | I28: =IF(AB28=1,IF(INDEX(Periodiserings_tabell,MATCH($J28,Periodiserings_koder,0),15)<>1,"UGYLDIG ->",""),"") ->  | J28: 24 | K28: =INDEX(Periodiserings_tabell,MATCH($J28,Periodiserings_koder,0),MATCH("Beskrivelse",Periodiserings_heading,0)) -> Husleie UBF | M28: 0 | N28: 0 | O28: 0 | P28: 0 | Q28: 0 | R28: 0 | S28: 0 | T28: 0 | U28: 0 | V28: 0 | W28: 0 | X28: 0 | Y28: =IF(H28<>0,"x","") ->  | AA28: 24 | AB28: =IF(J28<>AA28,1,0) -> 0
A29: x | B29: 13811 | C29: FDV-ANDEL HUSLEIE UNDERVISNINGSBYGG OSLO KF | I29: =IF(AB29=1,IF(INDEX(Periodiserings_tabell,MATCH($J29,Periodiserings_koder,0),15)<>1,"UGYLDIG ->",""),"") ->  | J29: 24 | K29: =INDEX(Periodiserings_tabell,MATCH($J29,Periodiserings_koder,0),MATCH("Beskrivelse",Periodiserings_heading,0)) -> Husleie UBF | M29: 0 | N29: 0 | O29: 0 | P29: 0 | Q29: 0 | R29: 0 | S29: 0 | T29: 0 | U29: 0 | V29: 0 | W29: 0 | X29: 0 | Y29: =IF(H29<>0,"x","") ->  | AA29: 24 | AB29: =IF(J29<>AA29,1,0) -> 0
A30: x | B30: 13813 | C30: ANDRE KJØP AV TJENESTER UNDERVISNINGSBYGG OSLO KF | I30: =IF(AB30=1,IF(INDEX(Periodiserings_tabell,MATCH($J30,Periodiserings_koder,0),15)<>1,"UGYLDIG ->",""),"") ->  | J30: 6 | K30: =INDEX(Periodiserings_tabell,MATCH($J30,Periodiserings_koder,0),MATCH("Beskrivelse",Periodiserings_heading,0)) -> Overføringer | M30: 0 | N30: 0 | O30: 0 | P30: 0 | Q30: 0 | R30: 0 | S30: 0 | T30: 0 | U30: 0 | V30: 0 | W30: 0 | X30: 0 | Y30: =IF(H30<>0,"x","") ->  | AA30: 6 | AB30: =IF(J30<>AA30,1,0) -> 0
A31: x | B31: 13819 | C31: KJØP AV TJENESTER FRA ANDRE KOMMUNALE FORETAK | I31: =IF(AB31=1,IF(INDEX(Periodiserings_tabell,MATCH($J31,Periodiserings_koder,0),15)<>1,"UGYLDIG ->",""),"") ->  | J31: 6 | K31: =INDEX(Periodiserings_tabell,MATCH($J31,Periodiserings_koder,0),MATCH("Beskrivelse",Periodiserings_heading,0)) -> Overføringer | M31: 0 | N31: 0 | O31: 0 | P31: 0 | Q31: 0 | R31: 0 | S31: 0 | T31: 0 | U31: 0 | V31: 0 | W31: 0 | X31: 0 | Y31: =IF(H31<>0,"x","") ->  | AA31: 6 | AB31: =IF(J31<>AA31,1,0) -> 0
B33: 300-399 KJØP AV TJEN. SOM ERSTATTER KOMM. EGENPROD. | H33: =SUM(H9:H31) -> 0 | M33: =SUM(M9:M31) -> 0 | N33: 0 | O33: 0 | P33: 0 | Q33: 0 | R33: 0 | S33: 0 | T33: 0 | U33: 0 | V33: 0 | W33: 0 | X33: 0 | Y33: x
Y34: x
Y35: x
B36: 400-409 OVERFØRINGER TIL STATEN | H36: ( 1000 ) | J36: Periodisering
A37: x | B37: 14010 | C37: STATLIGE GEBYR | I37: =IF(AB37=1,IF(INDEX(Periodiserings_tabell,MATCH($J37,Periodiserings_koder,0),15)<>1,"UGYLDIG ->",""),"") ->  | J37: 6 | K37: =INDEX(Periodiserings_tabell,MATCH($J37,Periodiserings_koder,0),MATCH("Beskrivelse",Periodiserings_heading,0)) -> Overføringer | M37: =ROUND((($H37*1000)*INDEX(Periodiserings_tabell,MATCH($J37,Periodiserings_koder,0),MATCH(M$2,Periodiserings_heading,0))),0) -> 0 | N37: 0 | O37: 0 | P37: 0 | Q37: 0 | R37: 0 | S37: 0 | T37: 0 | U37: 0 | V37: 0 | W37: 0 | X37: 0 | Y37: =IF(H37<>0,"x","") ->  | AA37: 6 | AB37: =IF(J37<>AA37,1,0) -> 0
A38: x | B38: 14050 | C38: ANDRE OVERFØRINGER TIL STATEN | I38: =IF(AB38=1,IF(INDEX(Periodiserings_tabell,MATCH($J38,Periodiserings_koder,0),15)<>1,"UGYLDIG ->",""),"") ->  | J38: 6 | K38: =INDEX(Periodiserings_tabell,MATCH($J38,Periodiserings_koder,0),MATCH("Beskrivelse",Periodiserings_heading,0)) -> Overføringer | M38: 0 | N38: 0 | O38: 0 | P38: 0 | Q38: 0 | R38: 0 | S38: 0 | T38: 0 | U38: 0 | V38: 0 | W38: 0 | X38: 0 | Y38: =IF(H38<>0,"x","") ->  | AA38: 6 | AB38: =IF(J38<>AA38,1,0) -> 0
B40: 430-439 OVERFØRINGER TIL ANDRE FYLKESKOMMUNER | H40: ( 1000 )
A41: x | B41: 14310 | C41: OVERFØRINGER TIL FYLKESKOMMUNER | I41: =IF(AB41=1,IF(INDEX(Periodiserings_tabell,MATCH($J41,Periodiserings_koder,0),15)<>1,"UGYLDIG ->",""),"") ->  | J41: 6 | K41: =INDEX(Periodiserings_tabell,MATCH($J41,Periodiserings_koder,0),MATCH("Beskrivelse",Periodiserings_heading,0)) -> Overføringer | M41: =ROUND((($H41*1000)*INDEX(Periodiserings_tabell,MATCH($J41,Periodiserings_koder,0),MATCH(M$2,Periodiserings_heading,0))),0) -> 0 | N41: 0 | O41: 0 | P41: 0 | Q41: 0 | R41: 0 | S41: 0 | T41: 0 | U41: 0 | V41: 0 | W41: 0 | X41: 0 | Y41: =IF(H41<>0,"x","") ->  | AA41: 6 | AB41: =IF(J41<>AA41,1,0) -> 0
B43: 450-459 OVERFØRINGER TIL ANDRE KOMMUNER | H43: ( 1000 )
A44: x | B44: 14510 | C44: OVERFØRINGER TIL ANDRE KOMMUNER | I44: =IF(AB44=1,IF(INDEX(Periodiserings_tabell,MATCH($J44,Periodiserings_koder,0),15)<>1,"UGYLDIG ->",""),"") ->  | J44: 6 | K44: =INDEX(Periodiserings_tabell,MATCH($J44,Periodiserings_koder,0),MATCH("Beskrivelse",Periodiserings_heading,0)) -> Overføringer | M44: =ROUND((($H44*1000)*INDEX(Periodiserings_tabell,MATCH($J44,Periodiserings_koder,0),MATCH(M$2,Periodiserings_heading,0))),0) -> 0 | N44: 0 | O44: 0 | P44: 0 | Q44: 0 | R44: 0 | S44: 0 | T44: 0 | U44: 0 | V44: 0 | W44: 0 | X44: 0 | Y44: =IF(H44<>0,"x","") ->  | AA44: 6 | AB44: =IF(J44<>AA44,1,0) -> 0
B46: 470-479 OVERFØRINGER TIL ANDRE (PRIVATE) | H46: ( 1000 )
A47: x | B47: 14760 | C47: USPESIFISERTE DRIFTSTILSKUDD TIL PRIVATE | I47: =IF(AB47=1,IF(INDEX(Periodiserings_tabell,MATCH($J47,Periodiserings_koder,0),15)<>1,"UGYLDIG ->",""),"") ->  | J47: 6 | K47: =INDEX(Periodiserings_tabell,MATCH($J47,Periodiserings_koder,0),MATCH("Beskrivelse",Periodiserings_heading,0)) -> Overføringer | M47: =ROUND((($H47*1000)*INDEX(Periodiserings_tabell,MATCH($J47,Periodiserings_koder,0),MATCH(M$2,Periodiserings_heading,0))),0) -> 0 | N47: 0 | O47: 0 | P47: 0 | Q47: 0 | R47: 0 | S47: 0 | T47: 0 | U47: 0 | V47: 0 | W47: 0 | X47: 0 | Y47: =IF(H47<>0,"x","") ->  | AA47: 6 | AB47: =IF(J47<>AA47,1,0) -> 0
A48: x | B48: 14761 | C48: TILSKUDD TIL RELIGIONSAMFUNN | I48: =IF(AB48=1,IF(INDEX(Periodiserings_tabell,MATCH($J48,Periodiserings_koder,0),15)<>1,"UGYLDIG ->",""),"") ->  | J48: 6 | K48: =INDEX(Periodiserings_tabell,MATCH($J48,Periodiserings_koder,0),MATCH("Beskrivelse",Periodiserings_heading,0)) -> Overføringer | M48: 0 | N48: 0 | O48: 0 | P48: 0 | Q48: 0 | R48: 0 | S48: 0 | T48: 0 | U48: 0 | V48: 0 | W48: 0 | X48: 0 | Y48: =IF(H48<>0,"x","") ->  | AA48: 6 | AB48: =IF(J48<>AA48,1,0) -> 0
A49: x | B49: 14780 | C49: VIDEREFORMIDLING AV STATSTILSKUDD | I49: =IF(AB49=1,IF(INDEX(Periodiserings_tabell,MATCH($J49,Periodiserings_koder,0),15)<>1,"UGYLDIG ->",""),"") ->  | J49: 6 | K49: =INDEX(Periodiserings_tabell,MATCH($J49,Periodiserings_koder,0),MATCH("Beskrivelse",Periodiserings_heading,0)) -> Overføringer | M49: =ROUND((($H49*1000)*INDEX(Periodiserings_tabell,MATCH($J49,Periodiserings_koder,0),MATCH(M$2,Periodiserings_heading,0))),0) -> 0 | N49: 0 | O49: 0 | P49: 0 | Q49: 0 | R49: 0 | S49: 0 | T49: 0 | U49: 0 | V49: 0 | W49: 0 | X49: 0 | Y49: =IF(H49<>0,"x","") ->  | AA49: 6 | AB49: =IF(J49<>AA49,1,0) -> 0
A50: x | B50: 14790 | C50: UTBETALING AV ERSTATNINGER TIL PRIVATE | I50: =IF(AB50=1,IF(INDEX(Periodiserings_tabell,MATCH($J50,Periodiserings_koder,0),15)<>1,"UGYLDIG ->",""),"") ->  | J50: 6 | K50: =INDEX(Periodiserings_tabell,MATCH($J50,Periodiserings_koder,0),MATCH("Beskrivelse",Periodiserings_heading,0)) -> Overføringer | M50: 0 | N50: 0 | O50: 0 | P50: 0 | Q50: 0 | R50: 0 | S50: 0 | T50: 0 | U50: 0 | V50: 0 | W50: 0 | X50: 0 | Y50: =IF(H50<>0,"x","") ->  | AA50: 6 | AB50: =IF(J50<>AA50,1,0) -> 0
A51: x | B51: 14799 | C51: ANDRE OVERFØRINGER TIL PRIVATE | I51: =IF(AB51=1,IF(INDEX(Periodiserings_tabell,MATCH($J51,Periodiserings_koder,0),15)<>1,"UGYLDIG ->",""),"") ->  | J51: 6 | K51: =INDEX(Periodiserings_tabell,MATCH($J51,Periodiserings_koder,0),MATCH("Beskrivelse",Periodiserings_heading,0)) -> Overføringer | M51: =ROUND((($H51*1000)*INDEX(Periodiserings_tabell,MATCH($J51,Periodiserings_koder,0),MATCH(M$2,Periodiserings_heading,0))),0) -> 0 | N51: 0 | O51: 0 | P51: 0 | Q51: 0 | R51: 0 | S51: 0 | T51: 0 | U51: 0 | V51: 0 | W51: 0 | X51: 0 | Y51: =IF(H51<>0,"x","") ->  | AA51: 6 | AB51: =IF(J51<>AA51,1,0) -> 0
B53: 480-489 OVERFØRINGER TIL KOMMUNALE FORETAK | H53: ( 1000 )
A54: x | B54: 14810 | C54: OVERFØRINGER TIL KOMMUNALE FORETAK | I54: =IF(AB54=1,IF(INDEX(Periodiserings_tabell,MATCH($J54,Periodiserings_koder,0),15)<>1,"UGYLDIG ->",""),"") ->  | J54: 6 | K54: =INDEX(Periodiserings_tabell,MATCH($J54,Periodiserings_koder,0),MATCH("Beskrivelse",Periodiserings_heading,0)) -> Overføringer | M54: =ROUND((($H54*1000)*INDEX(Periodiserings_tabell,MATCH($J54,Periodiserings_koder,0),MATCH(M$2,Periodiserings_heading,0))),0) -> 0 | N54: 0 | O54: 0 | P54: 0 | Q54: 0 | R54: 0 | S54: 0 | T54: 0 | U54: 0 | V54: 0 | W54: 0 | X54: 0 | Y54: =IF(H54<>0,"x","") ->  | AA54: 6 | AB54: =IF(J54<>AA54,1,0) -> 0
A55: x | B55: 14812 | C55: VIDEREFAKTURERTE UTGIFTER UBF: ENERGI Á KONTO | I55: =IF(AB55=1,IF(INDEX(Periodiserings_tabell,MATCH($J55,Periodiserings_koder,0),15)<>1,"UGYLDIG ->",""),"") ->  | J55: 24 | K55: =INDEX(Periodiserings_tabell,MATCH($J55,Periodiserings_koder,0),MATCH("Beskrivelse",Periodiserings_heading,0)) -> Husleie UBF | M55: 0 | N55: 0 | O55: 0 | P55: 0 | Q55: 0 | R55: 0 | S55: 0 | T55: 0 | U55: 0 | V55: 0 | W55: 0 | X55: 0 | Y55: =IF(H55<>0,"x","") ->  | AA55: 24 | AB55: =IF(J55<>AA55,1,0) -> 0
A56: x | B56: 14813 | C56: VIDEREFAKTURERTE UTGIFTER UBF: KOMMUNALE AVGIFTER | I56: =IF(AB56=1,IF(INDEX(Periodiserings_tabell,MATCH($J56,Periodiserings_koder,0),15)<>1,"UGYLDIG ->",""),"") ->  | J56: 24 | K56: =INDEX(Periodiserings_tabell,MATCH($J56,Periodiserings_koder,0),MATCH("Beskrivelse",Periodiserings_heading,0)) -> Husleie UBF | M56: 0 | N56: 0 | O56: 0 | P56: 0 | Q56: 0 | R56: 0 | S56: 0 | T56: 0 | U56: 0 | V56: 0 | W56: 0 | X56: 0 | Y56: =IF(H56<>0,"x","") ->  | AA56: 24 | AB56: =IF(J56<>AA56,1,0) -> 0
A57: x | B57: 14814 | C57: VIDEREFAKTURERTE UTGIFTER UBF: FELLESUTGIFTER | I57: =IF(AB57=1,IF(INDEX(Periodiserings_tabell,MATCH($J57,Periodiserings_koder,0),15)<>1,"UGYLDIG ->",""),"") ->  | J57: 24 | K57: =INDEX(Periodiserings_tabell,MATCH($J57,Periodiserings_koder,0),MATCH("Beskrivelse",Periodiserings_heading,0)) -> Husleie UBF | M57: 0 | N57: 0 | O57: 0 | P57: 0 | Q57: 0 | R57: 0 | S57: 0 | T57: 0 | U57: 0 | V57: 0 | W57: 0 | X57: 0 | Y57: =IF(H57<>0,"x","") ->  | AA57: 24 | AB57: =IF(J57<>AA57,1,0) -> 0
A58: x | B58: 14815 | C58: VIDEREFAKTURERTE UTGIFTER UBF: INNLEIE | I58: =IF(AB58=1,IF(INDEX(Periodiserings_tabell,MATCH($J58,Periodiserings_koder,0),15)<>1,"UGYLDIG ->",""),"") ->  | J58: 24 | K58: =INDEX(Periodiserings_tabell,MATCH($J58,Periodiserings_koder,0),MATCH("Beskrivelse",Periodiserings_heading,0)) -> Husleie UBF | M58: 0 | N58: 0 | O58: 0 | P58: 0 | Q58: 0 | R58: 0 | S58: 0 | T58: 0 | U58: 0 | V58: 0 | W58: 0 | X58: 0 | Y58: =IF(H58<>0,"x","") ->  | AA58: 24 | AB58: =IF(J58<>AA58,1,0) -> 0
B60: 400-499 OVERFØRINGSUTGIFTER | H60: =SUM(H37:H59) -> 0 | M60: =SUM(M37:M59) -> 0 | N60: 0 | O60: 0 | P60: 0 | Q60: 0 | R60: 0 | S60: 0 | T60: 0 | U60: 0 | V60: 0 | W60: 0 | X60: 0 | Y60: x
Y61: x
Y62: x
B63: ='Lønn og sosiale'!B131 -> 000-099 LØNN OG SOSIALE UTGIFTER | H63: ='Lønn og sosiale'!H131 -> 66739 | M63: ='Lønn og sosiale'!M131 -> 5998213 | N63: ='Lønn og sosiale'!N131 -> 6187022 | O63: ='Lønn og sosiale'!O131 -> 6106928 | P63: ='Lønn og sosiale'!P131 -> 6171489 | Q63: ='Lønn og sosiale'!Q131 -> 5949551 | R63: ='Lønn og sosiale'!R131 -> 207622 | S63: ='Lønn og sosiale'!S131 -> 5600947 | T63: ='Lønn og sosiale'!T131 -> 6078250 | U63: ='Lønn og sosiale'!U131 -> 6019788 | V63: ='Lønn og sosiale'!V131 -> 6030850 | W63: ='Lønn og sosiale'!W131 -> 6078975 | X63: ='Lønn og sosiale'!X131 -> 6310309 | Y63: x
B64: =Driftsutgifter!B205 -> 100-299 KJØP AV VARER OG TJ. SOM INNGÅR I KOMM TJ.PROD. | H64: =Driftsutgifter!H205 -> 6272 | M64: =Driftsutgifter!M205 -> 909596 | N64: =Driftsutgifter!N205 -> 115292 | O64: =Driftsutgifter!O205 -> 1670407 | P64: =Driftsutgifter!P205 -> 202823 | Q64: =Driftsutgifter!Q205 -> 266747 | R64: =Driftsutgifter!R205 -> 230725 | S64: =Driftsutgifter!S205 -> 103727 | T64: =Driftsutgifter!T205 -> 488630 | U64: =Driftsutgifter!U205 -> 362122 | V64: =Driftsutgifter!V205 -> 263660 | W64: =Driftsutgifter!W205 -> 242360 | X64: =Driftsutgifter!X205 -> 1415917 | Y64: x
B65: =B33 -> 300-399 KJØP AV TJEN. SOM ERSTATTER KOMM. EGENPROD. | H65: =H33 -> 0 | M65: =M33 -> 0 | N65: 0 | O65: 0 | P65: 0 | Q65: 0 | R65: 0 | S65: 0 | T65: 0 | U65: 0 | V65: 0 | W65: 0 | X65: 0 | Y65: x
B66: =B60 -> 400-499 OVERFØRINGSUTGIFTER | H66: =H60 -> 0 | M66: =M60 -> 0 | N66: =N60 -> 0 | O66: 0 | P66: 0 | Q66: 0 | R66: 0 | S66: 0 | T66: 0 | U66: 0 | V66: 0 | W66: 0 | X66: 0 | Y66: x
Y67: x
B68: 000-499 SUM DRIFTSUTGIFTER | H68: =SUM(H63:H66) -> 73011 | M68: =SUM(M63:M66) -> 6907809 | N68: =SUM(N63:N66) -> 6302314 | O68: 7777335 | P68: 6374312 | Q68: 6216298 | R68: 438347 | S68: 5704674 | T68: 6566880 | U68: 6381910 | V68: 6294510 | W68: 6321335 | X68: 7726226 | Y68: x

Sheet Driftsinntekter
M2: JAN | N2: FEB | O2: MAR | P2: APR | Q2: MAI | R2: JUN | S2: JUL | T2: AUG | U2: SEP | V2: OKT | W2: NOV | X2: DES
B3: =CONCATENATE(Ramme!C3," - ",Ramme!D3,IF(Ramme!C7>0,CONCATENATE(" (Prosjekt: ",Ramme!C7," ",Ramme!D7,")"),"")) -> 12213 - Marienlyst skole
B4: DRIFTSINNTEKTER | H4: TOTAL | M4: ='Lønn og sosiale'!M4 -> Budsjett 2017
B8: 600-618 BRUKERBETALING FOR ORDINÆRE KOMMUNALE TJENESTER | H8: ( 1000 ) | I8: =COUNTIF(I9:I112,"UGYLDIG ->") -> 0 | J8: Periodisering | AB8: =SUM(AB9:AB112) -> 0
A9: x | B9: 16000 | C9: OPPHOLDSBETALING AKTIVITETSSKOLEN | I9: =IF(AB9=1,IF(INDEX(Periodiserings_tabell,MATCH($J9,Periodiserings_koder,0),15)<>1,"UGYLDIG ->",""),"") ->  | J9: 23 | K9: =INDEX(Periodiserings_tabell,MATCH($J9,Periodiserings_koder,0),MATCH("Beskrivelse",Periodiserings_heading,0)) -> Oppholdsbet. | M9: =ROUND((($H9*1000)*INDEX(Periodiserings_tabell,MATCH($J9,Periodiserings_koder,0),MATCH(M$2,Periodiserings_heading,0))),0) -> 0 | N9: 0 | O9: 0 | P9: 0 | Q9: 0 | R9: 0 | S9: 0 | T9: 0 | U9: 0 | V9: 0 | W9: 0 | X9: 0 | Y9: =IF(H9<>0,"x","") ->  | AA9: 23 | AB9: =IF(J9<>AA9,1,0) -> 0
A10: x | B10: 16010 | C10: EGENANDELER (PC etc.) | I10: =IF(AB10=1,IF(INDEX(Periodiserings_tabell,MATCH($J10,Periodiserings_koder,0),15)<>1,"UGYLDIG ->",""),"") ->  | J10: 7 | K10: =INDEX(Periodiserings_tabell,MATCH($J10,Periodiserings_koder,0),MATCH("Beskrivelse",Periodiserings_heading,0)) -> Inntekter | M10: 0 | N10: 0 | O10: 0 | P10: 0 | Q10: 0 | R10: 0 | S10: 0 | T10: 0 | U10: 0 | V10: 0 | W10: 0 | X10: 0 | Y10: =IF(H10<>0,"x","") ->  | AA10: 7 | AB10: =IF(J10<>AA10,1,0) -> 0
A11: x | B11: 16020 | C11: EKSAMENSAVGIFT VIDEREGÅENDE SKOLER | I11: =IF(AB11=1,IF(INDEX(Periodiserings_tabell,MATCH($J11,Periodiserings_koder,0),15)<>1,"UGYLDIG ->",""),"") ->  | J11: 7 | K11: =INDEX(Periodiserings_tabell,MATCH($J11,Periodiserings_koder,0),MATCH("Beskrivelse",Periodiserings_heading,0)) -> Inntekter | M11: =ROUND((($H11*1000)*INDEX(Periodiserings_tabell,MATCH($J11,Periodiserings_koder,0),MATCH(M$2,Periodiserings_heading,0))),0) -> 0 | N11: =ROUND((($H11*1000)*INDEX(Periodiserings_tabell,MATCH($J11,Periodiserings_koder,0),MATCH(N$2,Periodiserings_heading,0))),0) -> 0 | O11: 0 | P11: 0 | Q11: 0 | R11: 0 | S11: 0 | T11: 0 | U11: 0 | V11: 0 | W11: 0 | X11: 0 | Y11: =IF(H11<>0,"x","") ->  | AA11: 7 | AB11: 0
A12: x | B12: 16030 | C12: BRUKERBETALING KOMM. TJENESTER, ANDRE INNTEKTER | I12: =IF(AB12=1,IF(INDEX(Periodiserings_tabell,MATCH($J12,Periodiserings_koder,0),15)<>1,"UGYLDIG ->",""),"") ->  | J12: 7 | K12: Inntekter | M12: 0 | N12: 0 | O12: 0 | P12: 0 | Q12: 0 | R12: 0 | S12: 0 | T12: 0 | U12: 0 | V12: 0 | W12: 0 | X12: 0 | Y12: =IF(H12<>0,"x","") ->  | AA12: 7 | AB12: 0
B14: 620-628 ANNET SALG AV VARER OG TJENESTER, GEBYRER MV. UTEN AVGIFT | H14: ( 1000 )
A15: x | B15: 16200 | C15: SALG AV ELEVARBEIDER (AVGIFTSFRITT) | I15: =IF(AB15=1,IF(INDEX(Periodiserings_tabell,MATCH($J15,Periodiserings_koder,0),15)<>1,"UGYLDIG ->",""),"") ->  | J15: 7 | K15: =INDEX(Periodiserings_tabell,MATCH($J15,Periodiserings_koder,0),MATCH("Beskrivelse",Periodiserings_heading,0)) -> Inntekter | M15: =ROUND((($H15*1000)*INDEX(Periodiserings_tabell,MATCH($J15,Periodiserings_koder,0),MATCH(M$2,Periodiserings_heading,0))),0) -> 0 | N15: 0 | O15: 0 | P15: 0 | Q15: 0 | R15: 0 | S15: 0 | T15: 0 | U15: 0 | V15: 0 | W15: 0 | X15: 0 | Y15: =IF(H15<>0,"x","") ->  | AA15: 7 | AB15: 0
A16: x | B16: 16210 | C16: INNTEKTER FRA UTSALG OG RESTAURANTER (AVGIFTSFRITT) | I16: =IF(AB16=1,IF(INDEX(Periodiserings_tabell,MATCH($J16,Periodiserings_koder,0),15)<>1,"UGYLDIG ->",""),"") ->  | J16: 7 | K16: Inntekter | M16: 0 | N16: 0 | O16: 0 | P16: 0 | Q16: 0 | R16: 0 | S16: 0 | T16: 0 | U16: 0 | V16: 0 | W16: 0 | X16: 0 | Y16: =IF(H16<>0,"x","") ->  | AA16: 7 | AB16: 0
A17: x | B17: 16220 | C17: SALG AV KOMPETANSE/UNDERVISNING (AVGIFTSFRITT) | I17: =IF(AB17=1,IF(INDEX(Periodiserings_tabell,MATCH($J17,Periodiserings_koder,0),15)<>1,"UGYLDIG ->",""),"") ->  | J17: 7 | K17: Inntekter | M17: 0 | N17: 0 | O17: 0 | P17: 0 | Q17: 0 | R17: 0 | S17: 0 | T17: 0 | U17: 0 | V17: 0 | W17: 0 | X17: 0 | Y17: =IF(H17<>0,"x","") ->  | AA17: 7 | AB17: 0
A18: x | B18: 16230 | C18: SALG TIL UTLANDET | I18: =IF(AB18=1,IF(INDEX(Periodiserings_tabell,MATCH($J18,Periodiserings_koder,0),15)<>1,"UGYLDIG ->",""),"") ->  | J18: 7 | K18: Inntekter | M18: 0 | N18: 0 | O18: 0 | P18: 0 | Q18: 0 | R18: 0 | S18: 0 | T18: 0 | U18: 0 | V18: 0 | W18: 0 | X18: 0 | Y18: =IF(H18<>0,"x","") ->  | AA18: 7 | AB18: 0
A19: x | B19: 16240 | C19: DIVERSE AVGIFTER/GEBYRER | I19: =IF(AB19=1,IF(INDEX(Periodiserings_tabell,MATCH($J19,Periodiserings_koder,0),15)<>1,"UGYLDIG ->",""),"") ->  | J19: 7 | K19: Inntekter | M19: 0 | N19: 0 | O19: 0 | P19: 0 | Q19: 0 | R19: 0 | S19: 0 | T19: 0 | U19: 0 | V19: 0 | W19: 0 | X19: 0 | Y19: =IF(H19<>0,"x","") ->  | AA19: 7 | AB19: 0
B21: 630-639 HUSLEIEINNTEKTER, FESTEAVGIFTER OG UTLEIE AV LOKALER | H21: ( 1000 )
A22: x | B22: 16300 | C22: LEIEINNTEKTER SKOLELOKALER - KORTTIDSLEIE | I22: =IF(AB22=1,IF(INDEX(Periodiserings_tabell,MATCH($J22,Periodiserings_koder,0),15)<>1,"UGYLDIG ->",""),"") ->  | J22: 7 | K22: =INDEX(Periodiserings_tabell,MATCH($J22,Periodiserings_koder,0),MATCH("Beskrivelse",Periodiserings_heading,0)) -> Inntekter | M22: =ROUND((($H22*1000)*INDEX(Periodiserings_tabell,MATCH($J22,Periodiserings_koder,0),MATCH(M$2,Periodiserings_heading,0))),0) -> 0 | N22: 0 | O22: 0 | P22: 0 | Q22: 0 | R22: 0 | S22: 0 | T22: 0 | U22: 0 | V22: 0 | W22: 0 | X22: 0 | Y22: =IF(H22<>0,"x","") ->  | AA22: 7 | AB22: 0
A23: x | B23: 16310 | C23: LEIEINNTEKTER SKOLELOKALER - LANGTIDSLEIE | I23: =IF(AB23=1,IF(INDEX(Periodiserings_tabell,MATCH($J23,Periodiserings_koder,0),15)<>1,"UGYLDIG ->",""),"") ->  | J23: 7 | K23: =INDEX(Periodiserings_tabell,MATCH($J23,Periodiserings_koder,0),MATCH("Beskrivelse",Periodiserings_heading,0)) -> Inntekter | M23: 0 | N23: 0 | O23: 0 | P23: 0 | Q23: 0 | R23: 0 | S23: 0 | T23: 0 | U23: 0 | V23: 0 | W23: 0 | X23: 0 | Y23: =IF(H23<>0,"x","") ->  | AA23: 7 | AB23: 0
A24: x | B24: 16330 | C24: HUSLEIEINNTEKTER | I24: =IF(AB24=1,IF(INDEX(Periodiserings_tabell,MATCH($J24,Periodiserings_koder,0),15)<>1,"UGYLDIG ->",""),"") ->  | J24: 7 | K24: =INDEX(Periodiserings_tabell,MATCH($J24,Periodiserings_koder,0),MATCH("Beskrivelse",Periodiserings_heading,0)) -> Inntekter | M24: 0 | N24: 0 | O24: 0 | P24: 0 | Q24: 0 | R24: 0 | S24: 0 | T24: 0 | U24: 0 | V24: 0 | W24: 0 | X24: 0 | Y24: =IF(H24<>0,"x","") ->  | AA24: 7 | AB24: 0
B26: 650-659 AVGIFTSPLIKTIG SALG AV VARER OG TJENESTER | H26: ( 1000 )
A27: x | B27: 16500 | C27: SALG AV ELEVARBEIDER (AVGIFTSPLIKTIG) | I27: =IF(AB27=1,IF(INDEX(Periodiserings_tabell,MATCH($J27,Periodiserings_koder,0),15)<>1,"UGYLDIG ->",""),"") ->  | J27: 7 | K27: =INDEX(Periodiserings_tabell,MATCH($J27,Periodiserings_koder,0),MATCH("Beskrivelse",Periodiserings_heading,0)) -> Inntekter | M27: =ROUND((($H27*1000)*INDEX(Periodiserings_tabell,MATCH($J27,Periodiserings_koder,0),MATCH(M$2,Periodiserings_heading,0))),0) -> 0 | N27: 0 | O27: 0 | P27: 0 | Q27: 0 | R27: 0 | S27: 0 | T27: 0 | U27: 0 | V27: 0 | W27: 0 | X27: 0 | Y27: =IF(H27<>0,"x","") ->  | AA27: 7 | AB27: 0
A28: x | B28: 16510 | C28: INNTEKTER FRA UTSALG OG RESTAURANTER (AVGIFTSPLIKTIG) | J28: 7 | K28: Inntekter | M28: 0 | N28: 0 | O28: 0 | P28: 0 | Q28: 0 | R28: 0 | S28: 0 | T28: 0 | U28: 0 | V28: 0 | W28: 0 | X28: 0 | AA28: 7 | AB28: 0
A29: x | B29: 16520 | C29: VARESALG MAT (AVGIFTSPLIKTIG) | J29: 7 | K29: Inntekter | M29: 0 | N29: 0 | O29: 0 | P29: 0 | Q29: 0 | R29: 0 | S29: 0 | T29: 0 | U29: 0 | V29: 0 | W29: 0 | X29: 0 | AA29: 7 | AB29: 0
A30: x | B30: 16525 | C30: VARESALG DRIKKE (AVGIFTSPLIKTIG) | J30: 7 | K30: Inntekter | M30: 0 | N30: 0 | O30: 0 | P30: 0 | Q30: 0 | R30: 0 | S30: 0 | T30: 0 | U30: 0 | V30: 0 | W30: 0 | X30: 0 | AA30: 7 | AB30: 0
A31: x | B31: 16530 | C31: SALG AV KOMPETANSE/UNDERVISNING (AVGIFTSPLIKTIG) | J31: 7 | K31: Inntekter | M31: 0 | N31: 0 | O31: 0 | P31: 0 | Q31: 0 | R31: 0 | S31: 0 | T31: 0 | U31: 0 | V31: 0 | W31: 0 | X31: 0 | AA31: 7 | AB31: 0
A32: x | B32: 16540 | C32: ANDRE AVGIFTSPLIKTIGE INNTEKTER | J32: 7 | K32: Inntekter | M32: 0 | N32: 0 | O32: 0 | P32: 0 | Q32: 0 | R32: 0 | S32: 0 | T32: 0 | U32: 0 | V32: 0 | W32: 0 | X32: 0 | AA32: 7 | AB32: 0
A33: x | B33: 16550 | C33: AVGIFTSPLIKTIGE INNTEKTER 12% | J33: 7 | K33: Inntekter | M33: 0 | N33: 0 | O33: 0 | P33: 0 | Q33: 0 | R33: 0 | S33: 0 | T33: 0 | U33: 0 | V33: 0 | W33: 0 | X33: 0 | AA33: 7 | AB33: 0
B35: 660-669 SALG AV DRIFTSMIDLER | H35: ( 1000 )
A36: x | B36: 16600 | C36: SALG AV INVENTAR OG UTSTYR | I36: =IF(AB36=1,IF(INDEX(Periodiserings_tabell,MATCH($J36,Periodiserings_koder,0),15)<>1,"UGYLDIG ->",""),"") ->  | J36: 7 | K36: =INDEX(Periodiserings_tabell,MATCH($J36,Periodiserings_koder,0),MATCH("Beskrivelse",Periodiserings_heading,0)) -> Inntekter | M36: =ROUND((($H36*1000)*INDEX(Periodiserings_tabell,MATCH($J36,Periodiserings_koder,0),MATCH(M$2,Periodiserings_heading,0))),0) -> 0 | N36: 0 | O36: 0 | P36: 0 | Q36: 0 | R36: 0 | S36: 0 | T36: 0 | U36: 0 | V36: 0 | W36: 0 | X36: 0 | Y36: =IF(H36<>0,"x","") ->  | AA36: 7 | AB36: 0
A37: x | B37: 16601 | C37: SALG AV DATAUTSTYR | I37: =IF(AB37=1,IF(INDEX(Periodiserings_tabell,MATCH($J37,Periodiserings_koder,0),15)<>1,"UGYLDIG ->",""),"") ->  | J37: 7 | K37: Inntekter | M37: 0 | N37: 0 | O37: 0 | P37: 0 | Q37: 0 | R37: 0 | S37: 0 | T37: 0 | U37: 0 | V37: 0 | W37: 0 | X37: 0 | Y37: =IF(H37<>0,"x","") ->  | AA37: 7 | AB37: 0
A38: x | B38: 16602 | C38: SALG AV TRANSPORTMIDLER | I38: =IF(AB38=1,IF(INDEX(Periodiserings_tabell,MATCH($J38,Periodiserings_koder,0),15)<>1,"UGYLDIG ->",""),"") ->  | J38: 7 | K38: Inntekter | M38: 0 | N38: 0 | O38: 0 | P38: 0 | Q38: 0 | R38: 0 | S38: 0 | T38: 0 | U38: 0 | V38: 0 | W38: 0 | X38: 0 | Y38: =IF(H38<>0,"x","") ->  | AA38: 7 | AB38: 0
A39: x | B39: 16603 | C39: SALG AV MASKINER | I39: =IF(AB39=1,IF(INDEX(Periodiserings_tabell,MATCH($J39,Periodiserings_koder,0),15)<>1,"UGYLDIG ->",""),"") ->  | J39: 7 | K39: Inntekter | M39: 0 | N39: 0 | O39: 0 | P39: 0 | Q39: 0 | R39: 0 | S39: 0 | T39: 0 | U39: 0 | V39: 0 | W39: 0 | X39: 0 | Y39: =IF(H39<>0,"x","") ->  | AA39: 7 | AB39: 0
B41: 690-698 INTERNSALG ANDRE VIRKSOMHETER I OSLO KOMMUNE | H41: ( 1000 )
A42: x | B42: 16902 | C42: INTERNSALG: SALG AV PLASSER BARN/UNGDOM TIL BYDEL | I42: =IF(AB42=1,IF(INDEX(Periodiserings_tabell,MATCH($J42,Periodiserings_koder,0),15)<>1,"UGYLDIG ->",""),"") ->  | J42: 7 | K42: =INDEX(Periodiserings_tabell,MATCH($J42,Periodiserings_koder,0),MATCH("Beskrivelse",Periodiserings_heading,0)) -> Inntekter | M42: =ROUND((($H42*1000)*INDEX(Periodiserings_tabell,MATCH($J42,Periodiserings_koder,0),MATCH(M$2,Periodiserings_heading,0))),0) -> 0 | N42: 0 | O42: 0 | P42: 0 | Q42: 0 | R42: 0 | S42: 0 | T42: 0 | U42: 0 | V42: 0 | W42: 0 | X42: 0 | Y42: =IF(H42<>0,"x","") ->  | AA42: 7 | AB42: =IF(J42<>AA42,1,0) -> 0
A43: x | B43: 16904 | C43: ANNET INTERNSALG INNEN OSLO KOMMUNE | I43: =IF(AB43=1,IF(INDEX(Periodiserings_tabell,MATCH($J43,Periodiserings_koder,0),15)<>1,"UGYLDIG ->",""),"") ->  | J43: 7 | K43: =INDEX(Periodiserings_tabell,MATCH($J43,Periodiserings_koder,0),MATCH("Beskrivelse",Periodiserings_heading,0)) -> Inntekter | M43: 0 | N43: 0 | O43: 0 | P43: 0 | Q43: 0 | R43: 0 | S43: 0 | T43: 0 | U43: 0 | V43: 0 | W43: 0 | X43: 0 | Y43: =IF(H43<>0,"x","") ->  | AA43: 7 | AB43: 0
B45: 699-699 INTERNT SALG INNEN UTDANNINGSETATEN | H45: ( 1000 )
A46: x | B46: 16993 | C46: INTERN INNTEKT INNEN UTDANNINGSETATEN | H46: 1697 | I46: =IF(AB46=1,IF(INDEX(Periodiserings_tabell,MATCH($J46,Periodiserings_koder,0),15)<>1,"UGYLDIG ->",""),"") ->  | J46: 7 | K46: =INDEX(Periodiserings_tabell,MATCH($J46,Periodiserings_koder,0),MATCH("Beskrivelse",Periodiserings_heading,0)) -> Inntekter | M46: =ROUND((($H46*1000)*INDEX(Periodiserings_tabell,MATCH($J46,Periodiserings_koder,0),MATCH(M$2,Periodiserings_heading,0))),0) -> 122160 | N46: 59421 | O46: 121523 | P46: 73534 | Q46: 138077 | R46: 181894 | S46: 115560 | T46: 139666 | U46: 157460 | V46: 274746 | W46: 160042 | X46: 152918 | Y46: =IF(H46<>0,"x","") -> x | AA46: 7 | AB46: =IF(J46<>AA46,1,0) -> 0
A47: x | B47: 16994 | C47: INTERN INNTEKT INNEN UDE: IKT-UTGIFTER | I47: =IF(AB47=1,IF(INDEX(Periodiserings_tabell,MATCH($J47,Periodiserings_koder,0),15)<>1,"UGYLDIG ->",""),"") ->  | J47: 26 | K47: Interne IKT-utg. | M47: 0 | N47: 0 | O47: 0 | P47: 0 | Q47: 0 | R47: 0 | S47: 0 | T47: 0 | U47: 0 | V47: 0 | W47: 0 | X47: 0 | Y47: =IF(H47<>0,"x","") ->  | AA47: 26 | AB47: =IF(J47<>AA47,1,0) -> 0
A48: x | B48: 16995 | C48: INTERN INNTEKT INNEN UDE: KOMP. GRATISUTLEIE LOKALER | I48: =IF(AB48=1,IF(INDEX(Periodiserings_tabell,MATCH($J48,Periodiserings_koder,0),15)<>1,"UGYLDIG ->",""),"") ->  | J48: 17 | K48: Halvårlig | M48: 0 | N48: 0 | O48: 0 | P48: 0 | Q48: 0 | R48: 0 | S48: 0 | T48: 0 | U48: 0 | V48: 0 | W48: 0 | X48: 0 | Y48: =IF(H48<>0,"x","") ->  | AA48: 17 | AB48: =IF(J48<>AA48,1,0) -> 0
A49: x | B49: 16996 | C49: INTERN INNTEKT INNEN UDE: LÆRLINGTILSKUDD | J49: 7 | K49: Inntekter | M49: 0 | N49: 0 | O49: 0 | P49: 0 | Q49: 0 | R49: 0 | S49: 0 | T49: 0 | U49: 0 | V49: 0 | W49: 0 | X49: 0 | AA49: 7 | AB49: 0
B51: 600-699 SALGSINNTEKTER | H51: =SUM(H9:H50) -> 1697 | M51: =SUM(M9:M50) -> 122160 | N51: 59421 | O51: 121523 | P51: 73534 | Q51: 138077 | R51: 181894 | S51: 115560 | T51: 139666 | U51: 157460 | V51: 274746 | W51: 160042 | X51: 152918 | Y51: x
Y52: x
Y53: x
B54: 700-709 REFUSJONER FRA STATEN | H54: ( 1000 ) | J54: Periodisering
A55: x | B55: 17010 | C55: REFUSJONER VEDR. SKOLE - SPESIALSKOLER | I55: =IF(AB55=1,IF(INDEX(Periodiserings_tabell,MATCH($J55,Periodiserings_koder,0),15)<>1,"UGYLDIG ->",""),"") ->  | J55: 19 | K55: =INDEX(Periodiserings_tabell,MATCH($J55,Periodiserings_koder,0),MATCH("Beskrivelse",Periodiserings_heading,0)) -> And. ref./overf. | M55: =ROUND((($H55*1000)*INDEX(Periodiserings_tabell,MATCH($J55,Periodiserings_koder,0),MATCH(M$2,Periodiserings_heading,0))),0) -> 0 | N55: 0 | O55: 0 | P55: 0 | Q55: 0 | R55: 0 | S55: 0 | T55: 0 | U55: 0 | V55: 0 | W55: 0 | X55: 0 | Y55: =IF(H55<>0,"x","") ->  | AA55: 19 | AB55: 0
A56: x | B56: 17011 | C56: REFUSJONER VEDR. SKOLE - FENGSELSUNDERVISNING | J56: 19 | K56: And. ref./overf. | M56: 0 | N56: 0 | O56: 0 | P56: 0 | Q56: 0 | R56: 0 | S56: 0 | T56: 0 | U56: 0 | V56: 0 | W56: 0 | X56: 0 | AA56: 19 | AB56: 0
A57: x | B57: 17012 | C57: REFUSJONER VEDR. SKOLE - LEIRSKOLE | H57: 46 | I57: =IF(AB57=1,IF(INDEX(Periodiserings_tabell,MATCH($J57,Periodiserings_koder,0),15)<>1,"UGYLDIG ->",""),"") ->  | J57: 19 | K57: And. ref./overf. | M57: 3220 | N57: 460 | O57: 2300 | P57: 1380 | Q57: 1380 | R57: 1380 | S57: 5520 | T57: 4140 | U57: 11040 | V57: 1840 | W57: 2300 | X57: 11040 | Y57: =IF(H57<>0,"x","") -> x | AA57: 19 | AB57: =IF(J57<>AA57,1,0) -> 0
A58: x | B58: 17019 | C58: REFUSJONER VEDR. SKOLE - ANNET | J58: 19 | K58: And. ref./overf. | M58: 0 | N58: 0 | O58: 0 | P58: 0 | Q58: 0 | R58: 0 | S58: 0 | T58: 0 | U58: 0 | V58: 0 | W58: 0 | X58: 0 | AA58: 19 | AB58: 0
A59: x | B59: 17020 | C59: REFUSJON TILKN. LØNN/ARBEIDSKRAFT | H59: 200 | J59: 19 | K59: And. ref./overf. | M59: 14000 | N59: 2000 | O59: 10000 | P59: 6000 | Q59: 6000 | R59: 6000 | S59: 24000 | T59: 18000 | U59: 48000 | V59: 8000 | W59: 10000 | X59: 48000 | Y59: x | AA59: 19 | AB59: 0
A60: x | B60: 17021 | C60: REFUSJON AV LØNNS- OG VIKARUTGIFTER | J60: 19 | K60: And. ref./overf. | M60: 0 | N60: 0 | O60: 0 | P60: 0 | Q60: 0 | R60: 0 | S60: 0 | T60: 0 | U60: 0 | V60: 0 | W60: 0 | X60: 0 | AA60: 19 | AB60: 0
A61: x | B61: 17022 | C61: REFUNDERTE FERIEPENGER | J61: 19 | K61: And. ref./overf. | M61: 0 | N61: 0 | O61: 0 | P61: 0 | Q61: 0 | R61: 0 | S61: 0 | T61: 0 | U61: 0 | V61: 0 | W61: 0 | X61: 0 | AA61: 19 | AB61: 0
A62: x | B62: 17023 | C62: REFUSJONER FRA TRYGDEKONTORET | J62: 19 | K62: And. ref./overf. | M62: 0 | N62: 0 | O62: 0 | P62: 0 | Q62: 0 | R62: 0 | S62: 0 | T62: 0 | U62: 0 | V62: 0 | W62: 0 | X62: 0 | AA62: 19 | AB62: =IF(J62<>AA62,1,0) -> 0
A63: x | B63: 17025 | C63: REFUSJONER ØVINGSLÆRER | H63: 250 | I63: =IF(AB63=1,IF(INDEX(Periodiserings_tabell,MATCH($J63,Periodiserings_koder,0),15)<>1,"UGYLDIG ->",""),"") ->  | J63: 8 | K63: Ref. øv.lærer | M63: 0 | N63: 0 | O63: 0 | P63: 0 | Q63: 0 | R63: 150000 | S63: 0 | T63: 0 | U63: 0 | V63: 0 | W63: 0 | X63: 100000 | Y63: =IF(H63<>0,"x","") -> x | AA63: 8 | AB63: =IF(J63<>AA63,1,0) -> 0
A64: x | B64: 17040 | C64: REFUSJONER SKYSSUTGIFTER | J64: 19 | K64: And. ref./overf. | M64: 0 | N64: 0 | O64: 0 | P64: 0 | Q64: 0 | R64: 0 | S64: 0 | T64: 0 | U64: 0 | V64: 0 | W64: 0 | X64: 0 | AA64: 19 | AB64: 0
A65: x | B65: 17060 | C65: REFUSJONER VEDR. BARN/UNGE EKSKL. SKOLE | J65: 19 | K65: And. ref./overf. | M65: 0 | N65: 0 | O65: 0 | P65: 0 | Q65: 0 | R65: 0 | S65: 0 | T65: 0 | U65: 0 | V65: 0 | W65: 0 | X65: 0 | AA65: 19 | AB65: 0
A66: x | B66: 17070 | C66: TILSKUDD FREMMEDSPRÅK | J66: 18 | K66: Tilskudd | M66: 0 | N66: 0 | O66: 0 | P66: 0 | Q66: 0 | R66: 0 | S66: 0 | T66: 0 | U66: 0 | V66: 0 | W66: 0 | X66: 0 | AA66: 18 | AB66: 0
A67: x | B67: 17071 | C67: TILSKUDD NORSKOPPLÆRING FREMMEDSPRÅKLIGE | J67: 18 | K67: Tilskudd | M67: 0 | N67: 0 | O67: 0 | P67: 0 | Q67: 0 | R67: 0 | S67: 0 | T67: 0 | U67: 0 | V67: 0 | W67: 0 | X67: 0 | AA67: 18 | AB67: 0
A68: x | B68: 17072 | C68: TILSKUDD EKSTRA SPRÅKOPPLÆRING | J68: 18 | K68: Tilskudd | M68: 0 | N68: 0 | O68: 0 | P68: 0 | Q68: 0 | R68: 0 | S68: 0 | T68: 0 | U68: 0 | V68: 0 | W68: 0 | X68: 0 | AA68: 18 | AB68: 0
A69: x | B69: 17080 | C69: REFUSJONER VEDR. FLYKTNINGER OG INNVANDRERE | J69: 18 | K69: Tilskudd | M69: 0 | N69: 0 | O69: 0 | P69: 0 | Q69: 0 | R69: 0 | S69: 0 | T69: 0 | U69: 0 | V69: 0 | W69: 0 | X69: 0 | AA69: 18 | AB69: 0
A70: x | B70: 17090 | C70: ANDRE TILSK./REF. KNYTTET TIL PROD. AV ET BEST. ANTALL TJEN. | J70: 19 | K70: And. ref./overf. | M70: 0 | N70: 0 | O70: 0 | P70: 0 | Q70: 0 | R70: 0 | S70: 0 | T70: 0 | U70: 0 | V70: 0 | W70: 0 | X70: 0 | AA70: 19 | AB70: 0
B72: 710-719 SYKELØNNSREFUSJON | H72: ( 1000 )
A73: x | B73: 17110 | C73: REFUNDERT SYKELØNN | H73: 546 | I73: =IF(AB73=1,IF(INDEX(Periodiserings_tabell,MATCH($J73,Periodiserings_koder,0),15)<>1,"UGYLDIG ->",""),"") ->  | J73: 9 | K73: =INDEX(Periodiserings_tabell,MATCH($J73,Periodiserings_koder,0),MATCH("Beskrivelse",Periodiserings_heading,0)) -> Ref. lønn | M73: 54661 | N73: 54557 | O73: 61751 | P73: 40709 | Q73: 55289 | R73: 45126 | S73: 4716 | T73: 46419 | U73: 43073 | V73: 57019 | W73: 51088 | X73: 31593 | Y73: =IF(H73<>0,"x","") -> x | AA73: 9 | AB73: 0
A74: x | B74: 17119 | C74: REFUNDERTE FERIEPENGER AV SYKELØNN | H74: 25 | I74: =IF(AB74=1,IF(INDEX(Periodiserings_tabell,MATCH($J74,Periodiserings_koder,0),15)<>1,"UGYLDIG ->",""),"") ->  | J74: 9 | K74: =INDEX(Periodiserings_tabell,MATCH($J74,Periodiserings_koder,0),MATCH("Beskrivelse",Periodiserings_heading,0)) -> Ref. lønn | M74: 2503 | N74: 2498 | O74: 2827 | P74: 1864 | Q74: 2532 | R74: 2066 | S74: 216 | T74: 2125 | U74: 1972 | V74: 2611 | W74: 2339 | X74: 1447 | Y74: =IF(H74<>0,"x","") -> x | AA74: 9 | AB74: 0
A75: x | B75: 17120 | C75: REFUSJON ATTFØRING | I75: =IF(AB75=1,IF(INDEX(Periodiserings_tabell,MATCH($J75,Periodiserings_koder,0),15)<>1,"UGYLDIG ->",""),"") ->  | J75: 9 | K75: =INDEX(Periodiserings_tabell,MATCH($J75,Periodiserings_koder,0),MATCH("Beskrivelse",Periodiserings_heading,0)) -> Ref. lønn | M75: 0 | N75: 0 | O75: 0 | P75: 0 | Q75: 0 | R75: 0 | S75: 0 | T75: 0 | U75: 0 | V75: 0 | W75: 0 | X75: 0 | Y75: =IF(H75<>0,"x","") ->  | AA75: 9 | AB75: 0
A76: x | B76: 17130 | C76: REFUSJON FØDSELSPENGER | H76: 950 | I76: =IF(AB76=1,IF(INDEX(Periodiserings_tabell,MATCH($J76,Periodiserings_koder,0),15)<>1,"UGYLDIG ->",""),"") ->  | J76: 9 | K76: =INDEX(Periodiserings_tabell,MATCH($J76,Periodiserings_koder,0),MATCH("Beskrivelse",Periodiserings_heading,0)) -> Ref. lønn | M76: 95106 | N76: 94926 | O76: 107443 | P76: 70830 | Q76: 96199 | R76: 78517 | S76: 8205 | T76: 80765 | U76: 74944 | V76: 99208 | W76: 88889 | X76: 54969 | Y76: =IF(H76<>0,"x","") -> x | AA76: 9 | AB76: 0
A77: x | B77: 17139 | C77: REFUNDERTE FERIEPENGER AV FØDSELSPENGER | H77: 50 | I77: =IF(AB77=1,IF(INDEX(Periodiserings_tabell,MATCH($J77,Periodiserings_koder,0),15)<>1,"UGYLDIG ->",""),"") ->  | J77: 9 | K77: =INDEX(Periodiserings_tabell,MATCH($J77,Periodiserings_koder,0),MATCH("Beskrivelse",Periodiserings_heading,0)) -> Ref. lønn | M77: 5006 | N77: 4996 | O77: 5655 | P77: 3728 | Q77: 5063 | R77: 4132 | S77: 432 | T77: 4251 | U77: 3944 | V77: 5221 | W77: 4678 | X77: 2893 | Y77: =IF(H77<>0,"x","") -> x | AA77: 9 | AB77: 0
B79: 730-739 REFUSJONER FRA ANDRE FYLKESKOMMUNER | H79: ( 1000 )
A80: x | B80: 17310 | C80: REFUSJON FRA FYLKESKOMMUNER | I80: =IF(AB80=1,IF(INDEX(Periodiserings_tabell,MATCH($J80,Periodiserings_koder,0),15)<>1,"UGYLDIG ->",""),"") ->  | J80: 19 | K80: =INDEX(Periodiserings_tabell,MATCH($J80,Periodiserings_koder,0),MATCH("Beskrivelse",Periodiserings_heading,0)) -> And. ref./overf. | M80: =ROUND((($H80*1000)*INDEX(Periodiserings_tabell,MATCH($J80,Periodiserings_koder,0),MATCH(M$2,Periodiserings_heading,0))),0) -> 0 | N80: 0 | O80: 0 | P80: 0 | Q80: 0 | R80: 0 | S80: 0 | T80: 0 | U80: 0 | V80: 0 | W80: 0 | X80: 0 | Y80: =IF(H80<>0,"x","") ->  | AA80: 19 | AB80: =IF(J80<>AA80,1,0) -> 0
A81: x | B81: 17350 | C81: BETALING FOR TJENESTER FRA FYLKESKOMMUNER | I81: =IF(AB81=1,IF(INDEX(Periodiserings_tabell,MATCH($J81,Periodiserings_koder,0),15)<>1,"UGYLDIG ->",""),"") ->  | J81: 19 | K81: =INDEX(Periodiserings_tabell,MATCH($J81,Periodiserings_koder,0),MATCH("Beskrivelse",Periodiserings_heading,0)) -> And. ref./overf. | M81: 0 | N81: 0 | O81: 0 | P81: 0 | Q81: 0 | R81: 0 | S81: 0 | T81: 0 | U81: 0 | V81: 0 | W81: 0 | X81: 0 | Y81: =IF(H81<>0,"x","") ->  | AA81: 19 | AB81: =IF(J81<>AA81,1,0) -> 0
B83: 750-759 REFUSJONER FRA ANDRE KOMMUNER | H83: ( 1000 )
A84: x | B84: 17510 | C84: REFUSJON FRA ANDRE KOMMUNER | I84: =IF(AB84=1,IF(INDEX(Periodiserings_tabell,MATCH($J84,Periodiserings_koder,0),15)<>1,"UGYLDIG ->",""),"") ->  | J84: 19 | K84: =INDEX(Periodiserings_tabell,MATCH($J84,Periodiserings_koder,0),MATCH("Beskrivelse",Periodiserings_heading,0)) -> And. ref./overf. | M84: =ROUND((($H84*1000)*INDEX(Periodiserings_tabell,MATCH($J84,Periodiserings_koder,0),MATCH(M$2,Periodiserings_heading,0))),0) -> 0 | N84: 0 | O84: 0 | P84: 0 | Q84: 0 | R84: 0 | S84: 0 | T84: 0 | U84: 0 | V84: 0 | W84: 0 | X84: 0 | Y84: =IF(H84<>0,"x","") ->  | AA84: 19 | AB84: =IF(J84<>AA84,1,0) -> 0
A85: x | B85: 17550 | C85: BETALING FOR TJENESTER FRA ANDRE KOMMUNER | I85: =IF(AB85=1,IF(INDEX(Periodiserings_tabell,MATCH($J85,Periodiserings_koder,0),15)<>1,"UGYLDIG ->",""),"") ->  | J85: 19 | K85: =INDEX(Periodiserings_tabell,MATCH($J85,Periodiserings_koder,0),MATCH("Beskrivelse",Periodiserings_heading,0)) -> And. ref./overf. | M85: 0 | N85: 0 | O85: 0 | P85: 0 | Q85: 0 | R85: 0 | S85: 0 | T85: 0 | U85: 0 | V85: 0 | W85: 0 | X85: 0 | Y85: =IF(H85<>0,"x","") ->  | AA85: 19 | AB85: =IF(J85<>AA85,1,0) -> 0
B87: 770-779 REFUSJONER FRA ANDRE (PRIVATE) | H87: ( 1000 )
A88: x | B88: 17710 | C88: ERSTATNING FRA FORSIKRINGSSELSKAPER | I88: =IF(AB88=1,IF(INDEX(Periodiserings_tabell,MATCH($J88,Periodiserings_koder,0),15)<>1,"UGYLDIG ->",""),"") ->  | J88: 19 | K88: =INDEX(Periodiserings_tabell,MATCH($J88,Periodiserings_koder,0),MATCH("Beskrivelse",Periodiserings_heading,0)) -> And. ref./overf. | M88: 0 | N88: 0 | O88: 0 | P88: 0 | Q88: 0 | R88: 0 | S88: 0 | T88: 0 | U88: 0 | V88: 0 | W88: 0 | X88: 0 | Y88: =IF(H88<>0,"x","") ->  | AA88: 19 | AB88: =IF(J88<>AA88,1,0) -> 0
A89: x | B89: 17719 | C89: ANDRE REFUSJONER FRA PRIVATE (F.EKS. TILLITSVALGTE) | H89: 65 | I89: =IF(AB89=1,IF(INDEX(Periodiserings_tabell,MATCH($J89,Periodiserings_koder,0),15)<>1,"UGYLDIG ->",""),"") ->  | J89: 19 | K89: =INDEX(Periodiserings_tabell,MATCH($J89,Periodiserings_koder,0),MATCH("Beskrivelse",Periodiserings_heading,0)) -> And. ref./overf. | M89: 4550 | N89: 650 | O89: 3250 | P89: 1950 | Q89: 1950 | R89: 1950 | S89: 7800 | T89: 5850 | U89: 15600 | V89: 2600 | W89: 3250 | X89: 15600 | Y89: =IF(H89<>0,"x","") -> x | AA89: 19 | AB89: =IF(J89<>AA89,1,0) -> 0
B91: 780-789 REFUSJONER FRA KOMMUNALE FORETAK OG BEDRIFTER | H91: ( 1000 )
A92: x | B92: 17810 | C92: SALG AV TJENESTER TIL UNDERVISNINGSBYGG OSLO KF | I92: =IF(AB92=1,IF(INDEX(Periodiserings_tabell,MATCH($J92,Periodiserings_koder,0),15)<>1,"UGYLDIG ->",""),"") ->  | J92: 19 | K92: =INDEX(Periodiserings_tabell,MATCH($J92,Periodiserings_koder,0),MATCH("Beskrivelse",Periodiserings_heading,0)) -> And. ref./overf. | M92: 0 | N92: 0 | O92: 0 | P92: 0 | Q92: 0 | R92: 0 | S92: 0 | T92: 0 | U92: 0 | V92: 0 | W92: 0 | X92: 0 | Y92: =IF(H92<>0,"x","") ->  | AA92: 19 | AB92: =IF(J92<>AA92,1,0) -> 0
A93: x | B93: 17811 | C93: VAKTMESTERTJENESTER UNDERVISNINGSBYGG OSLO KF | I93: =IF(AB93=1,IF(INDEX(Periodiserings_tabell,MATCH($J93,Periodiserings_koder,0),15)<>1,"UGYLDIG ->",""),"") ->  | J93: 25 | K93: =INDEX(Periodiserings_tabell,MATCH($J93,Periodiserings_koder,0),MATCH("Beskrivelse",Periodiserings_heading,0)) -> Ref. vaktm. UBF | M93: 0 | N93: 0 | O93: 0 | P93: 0 | Q93: 0 | R93: 0 | S93: 0 | T93: 0 | U93: 0 | V93: 0 | W93: 0 | X93: 0 | Y93: =IF(H93<>0,"x","") ->  | AA93: 25 | AB93: =IF(J93<>AA93,1,0) -> 0
A94: x | B94: 17819 | C94: SALG AV TJENESTER TIL ANDRE KOMMUNALE FORETAK | I94: =IF(AB94=1,IF(INDEX(Periodiserings_tabell,MATCH($J94,Periodiserings_koder,0),15)<>1,"UGYLDIG ->",""),"") ->  | J94: 19 | K94: =INDEX(Periodiserings_tabell,MATCH($J94,Periodiserings_koder,0),MATCH("Beskrivelse",Periodiserings_heading,0)) -> And. ref./overf. | M94: 0 | N94: 0 | O94: 0 | P94: 0 | Q94: 0 | R94: 0 | S94: 0 | T94: 0 | U94: 0 | V94: 0 | W94: 0 | X94: 0 | Y94: =IF(H94<>0,"x","") ->  | AA94: 19 | AB94: =IF(J94<>AA94,1,0) -> 0
B96: 700-799 REFUSJONER | H96: =SUM(H55:H95) -> 2132 | M96: =SUM(M55:M95) -> 179046 | N96: 160087 | O96: 193226 | P96: 126461 | Q96: 168413 | R96: 289171 | S96: 50889 | T96: 161550 | U96: 198573 | V96: 176499 | W96: 162544 | X96: 265542 | Y96: x
Y97: x
Y98: x
B99: 810-819 OVERFØRINGER FRA STATEN | H99: ( 1000 ) | J99: Periodisering
A100: x | B100: 18190 | C100: ANDRE STATLIGE OVERFØRINGER | I100: =IF(AB100=1,IF(INDEX(Periodiserings_tabell,MATCH($J100,Periodiserings_koder,0),15)<>1,"UGYLDIG ->",""),"") ->  | J100: 18 | K100: =INDEX(Periodiserings_tabell,MATCH($J100,Periodiserings_koder,0),MATCH("Beskrivelse",Periodiserings_heading,0)) -> Tilskudd | M100: =ROUND((($H100*1000)*INDEX(Periodiserings_tabell,MATCH($J100,Periodiserings_koder,0),MATCH(M$2,Periodiserings_heading,0))),0) -> 0 | N100: 0 | O100: 0 | P100: 0 | Q100: 0 | R100: 0 | S100: 0 | T100: 0 | U100: 0 | V100: 0 | W100: 0 | X100: 0 | Y100: =IF(H100<>0,"x","") ->  | AA100: 18 | AB100: =IF(J100<>AA100,1,0) -> 0
B102: 830-839 OVERFØRINGER FRA ANDRE FYLKESKOMMUNER | H102: ( 1000 )
A103: x | B103: 18310 | C103: OVERFØRINGER FRA FYLKESKOMMUNER | I103: =IF(AB103=1,IF(INDEX(Periodiserings_tabell,MATCH($J103,Periodiserings_koder,0),15)<>1,"UGYLDIG ->",""),"") ->  | J103: 18 | K103: =INDEX(Periodiserings_tabell,MATCH($J103,Periodiserings_koder,0),MATCH("Beskrivelse",Periodiserings_heading,0)) -> Tilskudd | M103: =ROUND((($H103*1000)*INDEX(Periodiserings_tabell,MATCH($J103,Periodiserings_koder,0),MATCH(M$2,Periodiserings_heading,0))),0) -> 0 | N103: 0 | O103: 0 | P103: 0 | Q103: 0 | R103: 0 | S103: 0 | T103: 0 | U103: 0 | V103: 0 | W103: 0 | X103: 0 | Y103: =IF(H103<>0,"x","") ->  | AA103: 18 | AB103: =IF(J103<>AA103,1,0) -> 0
B105: 850-859 OVERFØRINGER FRA ANDRE KOMMUNER | H105: ( 1000 )
A106: x | B106: 18510 | C106: OVERFØRINGER FRA ANDRE KOMMUNER | I106: =IF(AB106=1,IF(INDEX(Periodiserings_tabell,MATCH($J106,Periodiserings_koder,0),15)<>1,"UGYLDIG ->",""),"") ->  | J106: 18 | K106: =INDEX(Periodiserings_tabell,MATCH($J106,Periodiserings_koder,0),MATCH("Beskrivelse",Periodiserings_heading,0)) -> Tilskudd | M106: =ROUND((($H106*1000)*INDEX(Periodiserings_tabell,MATCH($J106,Periodiserings_koder,0),MATCH(M$2,Periodiserings_heading,0))),0) -> 0 | N106: 0 | O106: 0 | P106: 0 | Q106: 0 | R106: 0 | S106: 0 | T106: 0 | U106: 0 | V106: 0 | W106: 0 | X106: 0 | Y106: =IF(H106<>0,"x","") ->  | AA106: 18 | AB106: =IF(J106<>AA106,1,0) -> 0
B108: 880-889 OVERFØRINGER FRA KOMMUNALE FORETAK / SÆRBEDRIFTER | H108: ( 1000 )
A109: x | B109: 18850 | C109: ANDRE OVERFØR. FRA KOMMUNALE FORETAK/SÆRBEDRIFTER | I109: =IF(AB109=1,IF(INDEX(Periodiserings_tabell,MATCH($J109,Periodiserings_koder,0),15)<>1,"UGYLDIG ->",""),"") ->  | J109: 18 | K109: =INDEX(Periodiserings_tabell,MATCH($J109,Periodiserings_koder,0),MATCH("Beskrivelse",Periodiserings_heading,0)) -> Tilskudd | M109: =ROUND((($H109*1000)*INDEX(Periodiserings_tabell,MATCH($J109,Periodiserings_koder,0),MATCH(M$2,Periodiserings_heading,0))),0) -> 0 | N109: 0 | O109: 0 | P109: 0 | Q109: 0 | R109: 0 | S109: 0 | T109: 0 | U109: 0 | V109: 0 | W109: 0 | X109: 0 | Y109: =IF(H109<>0,"x","") ->  | AA109: 18 | AB109: =IF(J109<>AA109,1,0) -> 0
B111: 890-899 OVERFØRINGER FRA ANDRE (PRIVATE) | H111: ( 1000 )
A112: x | B112: 18910 | C112: OVERFØRINGER FRA ANDRE (PRIVATE) | H112: 120 | I112: =IF(AB112=1,IF(INDEX(Periodiserings_tabell,MATCH($J112,Periodiserings_koder,0),15)<>1,"UGYLDIG ->",""),"") ->  | J112: 18 | K112: =INDEX(Periodiserings_tabell,MATCH($J112,Periodiserings_koder,0),MATCH("Beskrivelse",Periodiserings_heading,0)) -> Tilskudd | M112: =ROUND((($H112*1000)*INDEX(Periodiserings_tabell,MATCH($J112,Periodiserings_koder,0),MATCH(M$2,Periodiserings_heading,0))),0) -> 0 | N112: 0 | O112: 0 | P112: 0 | Q112: 0 | R112: 0 | S112: 0 | T112: 70000 | U112: 0 | V112: 0 | W112: 0 | X112: 50000 | Y112: =IF(H112<>0,"x","") -> x | AA112: 18 | AB112: =IF(J112<>AA112,1,0) -> 0
B114: 800-899 OVERFØRINGSINNTEKTER | H114: =SUM(H100:H113) -> 120 | M114: =SUM(M100:M113) -> 0 | N114: 0 | O114: 0 | P114: 0 | Q114: 0 | R114: 0 | S114: 0 | T114: 70000 | U114: 0 | V114: 0 | W114: 0 | X114: 50000 | Y114: x
Y115: x
Y116: x
B117: =B51 -> 600-699 SALGSINNTEKTER | H117: =H51 -> 1697 | M117: =M51 -> 122160 | N117: 59421 | O117: 121523 | P117: 73534 | Q117: 138077 | R117: 181894 | S117: 115560 | T117: 139666 | U117: 157460 | V117: 274746 | W117: 160042 | X117: 152918 | Y117: x
B118: =B96 -> 700-799 REFUSJONER | H118: =H96 -> 2132 | M118: =M96 -> 179046 | N118: =N96 -> 160087 | O118: 193226 | P118: 126461 | Q118: 168413 | R118: 289171 | S118: 50889 | T118: 161550 | U118: 198573 | V118: 176499 | W118: 162544 | X118: 265542 | Y118: x
B119: =B114 -> 800-899 OVERFØRINGSINNTEKTER | H119: =H114 -> 120 | M119: =M114 -> 0 | N119: =N114 -> 0 | O119: 0 | P119: 0 | Q119: 0 | R119: 0 | S119: 0 | T119: 70000 | U119: 0 | V119: 0 | W119: 0 | X119: 50000 | Y119: x
Y120: x
B121: =Erstatningskjøp_Overføringer!B68 -> 000-499 SUM DRIFTSUTGIFTER | H121: =Erstatningskjøp_Overføringer!H68 -> 73011 | M121: =Erstatningskjøp_Overføringer!M68 -> 6907809 | N121: =Erstatningskjøp_Overføringer!N68 -> 6302314 | O121: =Erstatningskjøp_Overføringer!O68 -> 7777335 | P121: =Erstatningskjøp_Overføringer!P68 -> 6374312 | Q121: =Erstatningskjøp_Overføringer!Q68 -> 6216298 | R121: =Erstatningskjøp_Overføringer!R68 -> 438347 | S121: =Erstatningskjøp_Overføringer!S68 -> 5704674 | T121: =Erstatningskjøp_Overføringer!T68 -> 6566880 | U121: =Erstatningskjøp_Overføringer!U68 -> 6381910 | V121: =Erstatningskjøp_Overføringer!V68 -> 6294510 | W121: =Erstatningskjøp_Overføringer!W68 -> 6321335 | X121: =Erstatningskjøp_Overføringer!X68 -> 7726226 | Y121: x
B122: 600-899 SUM DRIFTSINNTEKTER | H122: =SUM(H117:H120) -> 3949 | M122: =SUM(M117:M120) -> 301206 | N122: =SUM(N117:N120) -> 219508 | O122: 314749 | P122: 199995 | Q122: 306490 | R122: 471065 | S122: 166449 | T122: 371216 | U122: 356033 | V122: 451245 | W122: 322586 | X122: 468460 | Y122: x
Y123: x
B124: NETTO DRIFTSUTGIFTER | H124: =H121-H122 -> 69062 | M124: =M121-M122 -> 6606603 | N124: =N121-N122 -> 6082806 | O124: 7462586 | P124: 6174317 | Q124: 5909808 | R124: -32718 | S124: 5538225 | T124: 6195664 | U124: 6025877 | V124: 5843265 | W124: 5998749 | X124: 7257766 | Y124: x

Sheet Periodisering
B1: Periodiseringsnøkler | P1: =MOD(ROUND(SUM(P3:P62)*100,2),100) -> 0
B2: Beskrivelse | C2: Kode | D2: Jan | E2: Feb | F2: Mar | G2: Apr | H2: Mai | I2: Jun | J2: Jul | K2: Aug | L2: Sep | M2: Okt | N2: Nov | O2: Des | P2: Totalt
A3: =IF(AND(P3<>0,ABS(P3*100-100)>0.01),"<>100","") ->  | B3: Lønn ped. | C3: 1 | D3: 0.0906251474 | E3: 0.09459513612 | F3: 0.09232815254 | G3: 0.09256866568 | H3: 0.09250315416 | I3: -0.01361426569 | J3: 0.09166973732 | K3: 0.08872668871 | L3: 0.09472775754 | M3: 0.09199740863 | N3: 0.09146170239 | O3: 0.09241071521 | P3: =SUM(D3:O3) -> 1 | Q3: =IF(AND(P3<>0,ABS(P3*100-100)>0.01),"<>100","") -> 
A4: =IF(AND(P4<>0,ABS(P4*100-100)>0.01),"<>100","") ->  | B4: Lønn komm. | C4: 2 | D4: 0.08723627489 | E4: 0.09150716185 | F4: 0.0913019868 | G4: 0.09203132957 | H4: 0.09100283823 | I4: -0.006048868244 | J4: 0.09096015764 | K4: 0.08696175023 | L4: 0.09410913017 | M4: 0.09251087593 | N4: 0.09360477838 | O4: 0.09482258455 | P4: =SUM(D4:O4) -> 1
A5: =IF(AND(P5<>0,ABS(P5*100-100)>0.01),"<>100","") ->  | B5: Lønn tillegg | C5: 3 | D5: 0.0975897293 | E5: 0.09148023747 | F5: 0.09286919669 | G5: 0.09329154882 | H5: 0.09077770416 | I5: -0.007083100864 | J5: 0.09490399787 | K5: 0.07504311824 | L5: 0.08457941858 | M5: 0.09304891015 | N5: 0.09090247825 | O5: 0.1025967613 | P5: =SUM(D5:O5) -> 1 | Q5: =IF(AND(P5<>0,ABS(P5*100-100)>0.01),"<>100","") -> 
A6: =IF(AND(P6<>0,ABS(P6*100-100)>0.01),"<>100","") ->  | B6: Lønn variabel | C6: 4 | D6: 0.06019364874 | E6: 0.1026399407 | F6: 0.08347926901 | G6: 0.09829357563 | H6: 0.08630029411 | I6: 0.06638379978 | J6: 0.1162758346 | K6: 0.02790538214 | L6: 0.06114645784 | M6: 0.07099796579 | N6: 0.08418401128 | O6: 0.1421998204 | P6: =SUM(D6:O6) -> 1 | Q6: =IF(AND(P6<>0,ABS(P6*100-100)>0.01),"<>100","") -> 
B7: Driftsutgifter | C7: 5 | D7: 0.02304546642 | E7: 0.02339788465 | F7: 0.07284807006 | G7: 0.067966671 | H7: 0.1002843836 | I7: 0.07495009848 | J7: 0.02935216083 | K7: 0.08084225817 | L7: 0.08262231495 | M7: 0.1088611608 | N7: 0.0980183197 | O7: 0.2378112114 | P7: 1
B8: Overføringer | C8: 6 | D8: 0.071 | E8: 0.03 | F8: 0.135 | G8: 0.027 | H8: 0.104 | I8: 0.04 | J8: 0.094 | K8: 0.092 | L8: 0.175 | M8: 0.04 | N8: 0.089 | O8: 0.103 | P8: 1
B9: Inntekter | C9: 7 | D9: 0.07198566175 | E9: 0.0350153358 | F9: 0.07161069649 | G9: 0.04333147654 | H9: 0.0813655037 | I9: 0.1071854162 | J9: 0.06809639831 | K9: 0.08230146238 | L9: 0.09278747937 | M9: 0.1619009848 | N9: 0.09430851509 | O9: 0.09011106959 | P9: 1
B10: Ref. øv.lærer | C10: 8 | I10: 0.6 | O10: 0.4 | P10: 1
B11: Ref. lønn | C11: 9 | D11: 0.1001114042 | E11: 0.09992170329 | F11: 0.1130975067 | G11: 0.07455822055 | H11: 0.1012618999 | I11: 0.08264894934 | J11: 0.008636602221 | K11: 0.0850158705 | L11: 0.07888871895 | M11: 0.1044295861 | N11: 0.09356757306 | O11: 0.05786196521 | P11: 1
B12: Korr. feriep. | C12: 10 | J12: 1 | P12: 1
B13: Merforbr. 2016 | C13: 11 | F13: 1 | P13: 1
B14: Lik fordeling | C14: 12 | D14: 0.08333333333 | E14: 0.08333333333 | F14: 0.08333333333 | G14: 0.08333333333 | H14: 0.08333333333 | I14: 0.08333333333 | J14: 0.08333333333 | K14: 0.08333333333 | L14: 0.08333333333 | M14: 0.08333333333 | N14: 0.08333333333 | O14: 0.08333333333 | P14: 1
B15: Energi: nettleie | C15: 13 | D15: 0.14 | E15: 0.02 | F15: 0.01 | G15: 0.25 | H15: 0.02 | I15: 0.02 | J15: 0.25 | K15: 0.01 | L15: 0.01 | M15: 0.25 | N15: 0.01 | O15: 0.01 | P15: 1
B16: Energi: kraft oa. | C16: 14 | D16: 0.12 | E16: 0.12 | F16: 0.12 | G16: 0.1 | H16: 0.05 | I16: 0.04 | J16: 0.03 | K16: 0.03 | L16: 0.05 | M16: 0.08 | N16: 0.1 | O16: 0.16 | P16: 1
B17: Kvartalsvis 1 | C17: 15 | D17: 0.25 | G17: 0.25 | J17: 0.25 | M17: 0.25 | P17: =SUM(D17:O17) -> 1
B18: Kvartalsvis 3 | C18: 16 | F18: 0.25 | I18: 0.25 | L18: 0.25 | O18: 0.25 | P18: 1
B19: Halvårlig | C19: 17 | I19: 0.5 | O19: 0.5 | P19: 1
B20: Tilskudd | C20: 18 | K20: =7/12 -> 0.5833333333 | O20: =5/12 -> 0.4166666667 | P20: 1
B21: And. ref./overf. | C21: 19 | D21: 0.07 | E21: 0.01 | F21: 0.05 | G21: 0.03 | H21: 0.03 | I21: 0.03 | J21: 0.12 | K21: 0.09 | L21: 0.24 | M21: 0.04 | N21: 0.05 | O21: 0.24 | P21: 1
B22: Komp. lønns. | C22: 20 | K22: =2.86/6.86 -> 0.416909621 | L22: =1/6.86 -> 0.1457725948 | M22: =1/6.86 -> 0.1457725948 | N22: =1/6.86 -> 0.1457725948 | O22: =1/6.86 -> 0.1457725948 | P22: 1
B23: Just. elevtelling | C23: 21 | M23: 1 | P23: 1
B24: Skyss | C24: 22 | D24: 0.04675766048 | E24: 0.04494421313 | F24: 0.103553544 | G24: 0.1037923031 | H24: 0.1245790501 | I24: 0.1048534426 | J24: 0.0281801203 | K24: 0.05416470679 | L24: 0.03928309609 | M24: 0.07407513699 | N24: 0.1011315005 | O24: 0.1746852259 | P24: =SUM(D24:O24) -> 1
B25: Oppholdsbet. | C25: 23 | D25: 0.08902768246 | E25: 0.08816249695 | F25: 0.08678818567 | G25: 0.08588117079 | H25: 0.08431139544 | I25: 0.08265286811 | K25: 0.08988500203 | L25: 0.09944788389 | M25: 0.1015681363 | N25: 0.09663796893 | O25: 0.09563720945 | P25: 1
B26: Husleie UBF | C26: 24 | E26: 0.25 | F26: 0.25 | I26: 0.25 | L26: 0.25 | P26: 1
B27: Ref. vaktm. UBF | C27: 25 | G27: 0.25 | J27: 0.25 | M27: 0.25 | O27: 0.25 | P27: 1
B28: Interne IKT-utg. | C28: 26 | O28: 1 | P28: 1
B29: annet | C29: 27 | D29: 0.0955 | E29: 0.0955 | F29: 0.0955 | G29: 0.0955 | H29: 0.092 | I29: -0.0136 | J29: 0.0821 | K29: 0.0915 | L29: 0.0915 | M29: 0.0915 | N29: 0.0915 | O29: 0.0915 | P29: 1
B30: kto 12055 | C30: 28 | D30: 1 | P30: 1
B31: kto 11050 | C31: 29 | D31: 0.14 | E31: 0.05 | F31: 0.05 | G31: 0.05 | H31: 0.05 | I31: 0.05 | J31: 0 | K31: 0.57 | L31: 0.01 | M31: 0.01 | N31: 0.01 | O31: 0.01 | P31: 1
B32: kto 12793 | C32: 30 | L32: 1 | P32: 1
C33: 31 | P33: 0
C34: 32 | P34: 0
C35: 33 | P35: 0
C36: 34 | P36: 0
C37: 35 | P37: =SUM(D37:O37) -> 0
C38: 36 | P38: 0
C39: 37 | P39: 0
A40: =IF(AND(P40<>0,ABS(P40*100-100)>0.01),"<>100","") ->  | C40: 38 | P40: 0
C41: 39 | P41: 0
C42: 40 | P42: 0
C43: 41 | P43: 0
C44: 42 | P44: 0
C45: 43 | P45: 0
C46: 44 | P46: 0
C47: 45 | P47: 0
C48: 46 | P48: 0
C49: 47 | P49: 0
C50: 48 | P50: 0
C51: 49 | P51: 0
C52: 50 | P52: 0
C53: 51 | P53: 0
C54: 52 | P54: 0
C55: 53 | P55: 0
C56: 54 | P56: 0
C57: 55 | P57: 0
C58: 56 | P58: 0
C59: 57 | P59: 0
C60: 58 | P60: 0
C61: 59 | P61: 0
C62: 60 | P62: 0

Sheet Valg
A1: TRUE | B1: TRUE | C1: FALSE
C2: Budsjett 2017
C3: Valg for budsjettering:
C4: SPK-sats:
C5: Grunnskoler
C6: Videregående skoler
C8: Aktivitetsskole | D8: (se art 10169)
